{"text_format":"1","workbook":"xlsx","n_sheets":18,"sheets":["MENU","CARATULA","C. FILIACION","CODIGO Y FOTOGRAFIA ","ASIS. 1° B","VAL. 1° B","ASIS. 2° B","VAL. 2° B","ASIS. 3° B","VAL. 3° B","ASIS. 4° B","VAL. 4° B","CENTRALIZADOR","% REP-APR","CEN. POR AREA","BOLETINES ","NOT_ALT","EST_DEST"],"not_rendered":{"charts":9,"images":15,"macros":1,"external_links":5,"defined_names":117,"comments":5,"pivot_tables":0},"unopened":[],"bounds":{"document_bytes":16777216,"sheet_cells":100000,"rows_first":2000,"rows_last":500,"rows_between":2000,"halvings":0,"cell_chars":16384,"cell_head_chars":4096},"cells_cut":0,"cells_raw":0,"read":"whole","date_system":"1900"}

{"sheet":"MENU","index":0,"n_rows":0,"n_cols":0,"rows_kept":0,"cut":false,"hidden":false,"merged":[]}

{"sheet":"CARATULA","index":1,"n_rows":85,"n_cols":6,"rows_kept":85,"cut":false,"hidden":false,"merged":[[11,3,11,7],[39,3,39,6],[15,6,15,7],[17,6,17,7],[19,6,19,7],[21,6,21,7],[23,6,23,7],[25,6,25,7],[29,6,29,7],[31,6,31,7],[33,6,33,7]]}
[]
[]
[]
[]
[]
[null,null,null,null,null,{"$f":"CONCATENATE(CARATULA!G28,\" \",[5]INICIO!BH6)","v":" B"}]
[]
[]
[]
[]
[]
[null,null,null,"DATOS REFERENCIALES "]
[]
[]
[]
[null,null,null,"DISTRITO EDUCATIVO ",":"]
[]
[null,null,null,"RED/NÚCLEO EDUCATIVO",":"]
[]
[null,null,null,"UNIDAD EDUCATIVA ",":"]
[]
[null,null,null,"DIRECTOR/A",":"]
[]
[null,null,null,"MAESTRO/A",":"]
[]
[null,null,null,"NIVEL ",":"]
[]
[null,null,null,"AÑO DE ESCOLARIDAD ",":"]
[]
[null,null,null,"CAMPO ",":"]
[]
[null,null,null,"ÁREA ",":"]
[]
[null,null,null,"GESTIÓN ",":"]
[]
[]
[]
[]
[]
[]
[]
[]
[]
[]
[]
[]
[]
[]
[null,null,"ED. SECUNDARIA COMUNITARIA PRODUCTIVA"]
[]
[null,null,"A"]
[null,null,"B"]
[null,null,"C"]
[null,null,"D"]
[null,null,"E"]
[null,null,"F"]
[]
[]
[null,null,"PRIMERO "]
[null,null,"SEGUNDO "]
[null,null,"TERCERO "]
[null,null,"CUARTO "]
[null,null,"QUINTO "]
[null,null,"SEXTO "]
[]
[null,null,null,"CIENCIA TECNOLOGÍA Y PRODUCCIÓN "]
[null,null,null,"COMUNIDAD Y SOCIEDAD "]
[null,null,null,"VIDA TIERRA Y TERRITORIO "]
[null,null,null,"COSMOS Y PENSAMIENTO "]
[]
[null,null,"COMUNICIÓN Y LENGUAJES: L.C. Y O."]
[null,null,"LENGUA EXTRANJERA"]
[null,null,"CIENCIAS SOCIALES"]
[null,null,"EDUCACIÓN FÍSICA Y DEPORTES"]
[null,null,"EDUCACIÓN MUSICAL"]
[null,null,"ARTES PLÁSTICAS Y VISUALES"]
[null,null,"MATEMÁTICA"]
[null,null,"TÉCNICA TECNOLÓGICA GENERAL"]
[null,null,"TÉCNICA TECNOLÓGICA ESPECIALIZADA"]
[null,null,"CIENCIAS NATURALES: BIOLOGÍA-GEOGRAFÍA"]
[null,null,"CIENCIAS NATURALES: FÍSICA-QUÍMICA"]
[null,null," ---FÍSICA"]
[null,null," ---QUÍMICA"]
[null,null,"COSMOVISIONES, FILOSOFÍA Y SICOLOGÍA"]
[null,null,"VALORES, ESPIRITUALIDAD Y RELIGIONES"]

{"sheet":"C. FILIACION","index":2,"n_rows":100,"n_cols":18,"rows_kept":100,"cut":false,"hidden":false,"merged":[[60,4,60,7],[61,4,61,7],[1,1,2,16],[12,2,12,3],[12,5,12,7],[12,11,12,12],[4,15,4,16],[9,15,10,16]]}
[]
[null,"REGISTRO Y CUADRO DE FILIACIÓN "]
[]
[]
[null,null,"UNIDAD EDUCATIVA ",":",{"$f":"CARATULA!G20","v":0},null,null,null,null,null,"FECHA:",{"$f":"TODAY()","v":"2018-06-13"},null,"TOTAL FEMENINO (F)","TOTAL MASCULINO (M)","DATOS DE REGISTRO"]
[null,null,"NIVEL ",":",{"$f":"CARATULA!G26","v":0},null,null,null,null,null,null,null,null,{"$f":"COUNTIF(E14:E58,\"F\")","v":0},{"$f":"COUNTIF(E14:E58,\"M\")","v":0},"INSCRITOS",{"$f":"COUNTIF(R14:R58,\"*\")","v":0}]
[null,null,"AÑO DE ESCOLARIDAD",":",{"$f":"CONCATENATE(CARATULA!G28,\" \",CARATULA!H28)","v":" "},null,null,null,null,null,null,null,null,null,null,"RETIRO O ABANDONO",{"$f":"COUNTIF(R14:R58,\"RETIRO O ABANDONO\")","v":0}]
[null,null,"DIRECTOR/A",":",{"$f":"CARATULA!G22","v":0},null,null,null,null,null,null,null,null,null,null,"NO INCORPORADO",{"$f":"COUNTIF(R14:R58,\"NO INCORPORADO\")","v":0}]
[null,null,"MAESTRO/A",":",{"$f":"CARATULA!G24","v":0},null,null,null,null,null,null,null,null,null,null,"EFECTIVOS",{"$f":"Q6-(Q7+Q8)","v":0}]
[null,null,"CAMPO ",":",{"$f":"CARATULA!G30","v":0},null,null,null,null,null,null,null,null,null,null,"ES IMPORTANTE QUE REGISTRE EL ESTADO DEL ESTUDIANTE "]
[null,null,"ÁREA",":",{"$f":"CARATULA!G32","v":0}]
[]
[null,"N°","APELLIDOS Y NOMBRES ",null,"GÉNERO","FECHA NACIMIENTO",null,null,"EDAD","LUGAR DE NAC.","RUDE","CI ",null,"DIRECCIÓN ACTUAL","NOMBRE DE TUTOR ","PARENTESCO","TELF/CEL","REGISTRO"]
["A1",1,null,null,null,null,null,null,{"$f":"(YEAR(TODAY())-YEAR(DATE(H14,G14,F14)))","v":{"$error":"#NUM!"}}]
["A2",2,null,null,null,null,null,null,{"$f":"(YEAR(TODAY())-YEAR(DATE(H15,G15,F15)))","v":{"$error":"#NUM!"}}]
["A3",3,null,null,null,null,null,null,{"$f":"(YEAR(TODAY())-YEAR(DATE(H16,G16,F16)))","v":{"$error":"#NUM!"}}]
["A4",4,null,null,null,null,null,null,{"$error":"#NUM!"}]
["A5",5,null,null,null,null,null,null,{"$error":"#NUM!"}]
["A6",6,null,null,null,null,null,null,{"$error":"#NUM!"}]
["A7",7,null,null,null,null,null,null,{"$error":"#NUM!"}]
["A8",8,null,null,null,null,null,null,{"$error":"#NUM!"}]
["A9",9,null,null,null,null,null,null,{"$error":"#NUM!"}]
["A10",10,null,null,null,null,null,null,{"$error":"#NUM!"}]
["A11",11,null,null,null,null,null,null,{"$error":"#NUM!"}]
["A12",12,null,null,null,null,null,null,{"$error":"#NUM!"}]
["A13",13,null,null,null,null,null,null,{"$error":"#NUM!"}]
["A14",14,null,null,null,null,null,null,{"$error":"#NUM!"}]
["A15",15,null,null,null,null,null,null,{"$error":"#NUM!"}]
["A16",16,null,null,null,null,null,null,{"$error":"#NUM!"}]
["A17",17,null,null,null,null,null,null,{"$error":"#NUM!"}]
["A18",18,null,null,null,null,null,null,{"$error":"#NUM!"}]
["A19",19,null,null,null,null,null,null,{"$error":"#NUM!"}]
["A20",20,null,null,null,null,null,null,{"$error":"#NUM!"}]
["A21",21,null,null,null,null,null,null,{"$error":"#NUM!"}]
["A22",22,null,null,null,null,null,null,{"$error":"#NUM!"}]
["A23",23,null,null,null,null,null,null,{"$error":"#NUM!"}]
["A24",24,null,null,null,null,null,null,{"$error":"#NUM!"}]
["A25",25,null,null,null,null,null,null,{"$error":"#NUM!"}]
["A26",26,null,null,null,null,null,null,{"$error":"#NUM!"}]
["A27",27,null,null,null,null,null,null,{"$error":"#NUM!"}]
["A28",28,null,null,null,null,null,null,{"$error":"#NUM!"}]
["A29",29,null,null,null,null,null,null,{"$error":"#NUM!"}]
["A30",30,null,null,null,null,null,null,{"$error":"#NUM!"}]
["A31",31,null,null,null,null,null,null,{"$error":"#NUM!"}]
["A32",32,null,null,null,null,null,null,{"$error":"#NUM!"}]
["A33",33,null,null,null,null,null,null,{"$error":"#NUM!"}]
["A34",34,null,null,null,null,null,null,{"$error":"#NUM!"}]
["A35",35,null,null,null,null,null,null,{"$error":"#NUM!"}]
["A36",36,null,null,null,null,null,null,{"$error":"#NUM!"}]
["A37",37,null,null,null,null,null,null,{"$error":"#NUM!"}]
["A38",38,null,null,null,null,null,null,{"$error":"#NUM!"}]
["A39",39,null,null,null,null,null,null,{"$error":"#NUM!"}]
["A40",40,null,null,null,null,null,null,{"$error":"#NUM!"}]
["A41",41,null,null,null,null,null,null,{"$error":"#NUM!"}]
["A42",42,null,null,null,null,null,null,{"$error":"#NUM!"}]
["A43",43,null,null,null,null,null,null,{"$error":"#NUM!"}]
["A44",44,null,null,null,null,null,null,{"$error":"#NUM!"}]
["A45",45,null,null,null,null,null,null,{"$error":"#NUM!"}]
[]
[]
[]
[null,null,null,null,{"$f":"CARATULA!G22","v":0},null,null,null,null,{"$f":"CARATULA!G24","v":0}]
[]
["INSCRITO"]
["RETIRO O ABANDONO"]
["NO INCORPORADO"]
[null,"M"]
[null,"F"]
[]
[null,1,1997,null,"LP"]
[null,2,1998,null,"SC"]
[null,3,1999,null,"CB"]
[null,4,2000,null,"TR"]
[null,5,2001,null,"PT"]
[null,6,2002,null,"BN"]
[null,7,2003,null,"PN"]
[null,8,2004,null,"OR"]
[null,9,2005,null,"SCR"]
[null,10,2006]
[null,11,2007]
[null,12,2008]
[null,13,2009]
[null,14,2010]
[null,15,2011]
[null,16,2012]
[null,17,2013]
[null,18,2014]
[null,19,2015]
[null,20,2016]
[null,21,2017]
[null,22,2018]
[null,23]
[null,24]
[null,25]
[null,26]
[null,27]
[null,28]
[null,29]
[null,30]
[null,31]

{"sheet":"CODIGO Y FOTOGRAFIA ","index":3,"n_rows":47,"n_cols":5,"rows_kept":47,"cut":false,"hidden":false,"merged":[]}
[]
[null,"CÓDIGO ","APELLIDOS Y NOMBRES ","FOTOGRAFÍA "]
[null,"A1",{"$f":"'C. FILIACION'!C14:D14","v":0},null,"IMAG1"]
[null,"A2",{"$f":"'C. FILIACION'!C15:D15","v":0},null,"IMAG2"]
[null,"A3",{"$f":"'C. FILIACION'!C16:D16","v":0},null,"IMAG3"]
[null,"A4",{"$f":"'C. FILIACION'!C17:D17","v":0},null,"IMAG4"]
[null,"A5",{"$f":"'C. FILIACION'!C18:D18","v":0},null,"IMAG5"]
[null,"A6",{"$f":"'C. FILIACION'!C19:D19","v":0},null,"IMAG6"]
[null,"A7",{"$f":"'C. FILIACION'!C20:D20","v":0},null,"IMAG7"]
[null,"A8",{"$f":"'C. FILIACION'!C21:D21","v":0},null,"IMAG8"]
[null,"A9",{"$f":"'C. FILIACION'!C22:D22","v":0},null,"IMAG9"]
[null,"A10",{"$f":"'C. FILIACION'!C23:D23","v":0},null,"IMAG10"]
[null,"A11",{"$f":"'C. FILIACION'!C24:D24","v":0},null,"IMAG11"]
[null,"A12",{"$f":"'C. FILIACION'!C25:D25","v":0},null,"IMAG12"]
[null,"A13",{"$f":"'C. FILIACION'!C26:D26","v":0},null,"IMAG13"]
[null,"A14",{"$f":"'C. FILIACION'!C27:D27","v":0},null,"IMAG14"]
[null,"A15",{"$f":"'C. FILIACION'!C28:D28","v":0},null,"IMAG15"]
[null,"A16",{"$f":"'C. FILIACION'!C29:D29","v":0},null,"IMAG16"]
[null,"A17",{"$f":"'C. FILIACION'!C30:D30","v":0},null,"IMAG17"]
[null,"A18",{"$f":"'C. FILIACION'!C31:D31","v":0},null,"IMAG18"]
[null,"A19",{"$f":"'C. FILIACION'!C32:D32","v":0},null,"IMAG19"]
[null,"A20",{"$f":"'C. FILIACION'!C33:D33","v":0},null,"IMAG20"]
[null,"A21",{"$f":"'C. FILIACION'!C34:D34","v":0},null,"IMAG21"]
[null,"A22",{"$f":"'C. FILIACION'!C35:D35","v":0},null,"IMAG22"]
[null,"A23",{"$f":"'C. FILIACION'!C36:D36","v":0},null,"IMAG23"]
[null,"A24",{"$f":"'C. FILIACION'!C37:D37","v":0},null,"IMAG24"]
[null,"A25",{"$f":"'C. FILIACION'!C38:D38","v":0},null,"IMAG25"]
[null,"A26",{"$f":"'C. FILIACION'!C39:D39","v":0},null,"IMAG26"]
[null,"A27",{"$f":"'C. FILIACION'!C40:D40","v":0},null,"IMAG27"]
[null,"A28",{"$f":"'C. FILIACION'!C41:D41","v":0},null,"IMAG28"]
[null,"A29",{"$f":"'C. FILIACION'!C42:D42","v":0},null,"IMAG29"]
[null,"A30",{"$f":"'C. FILIACION'!C43:D43","v":0},null,"IMAG30"]
[null,"A31",{"$f":"'C. FILIACION'!C44:D44","v":0},null,"IMAG31"]
[null,"A32",{"$f":"'C. FILIACION'!C45:D45","v":0},null,"IMAG32"]
[null,"A33",{"$f":"'C. FILIACION'!C46:D46","v":0},null,"IMAG33"]
[null,"A34",{"$f":"'C. FILIACION'!C47:D47","v":0},null,"IMAG34"]
[null,"A35",{"$f":"'C. FILIACION'!C48:D48","v":0},null,"IMAG35"]
[null,"A36",{"$f":"'C. FILIACION'!C49:D49","v":0},null,"IMAG36"]
[null,"A37",{"$f":"'C. FILIACION'!C50:D50","v":0},null,"IMAG37"]
[null,"A38",{"$f":"'C. FILIACION'!C51:D51","v":0},null,"IMAG38"]
[null,"A39",{"$f":"'C. FILIACION'!C52:D52","v":0},null,"IMAG39"]
[null,"A40",{"$f":"'C. FILIACION'!C53:D53","v":0},null,"IMAG40"]
[null,"A41",{"$f":"'C. FILIACION'!C54:D54","v":0},null,"IMAG41"]
[null,"A42",{"$f":"'C. FILIACION'!C55:D55","v":0},null,"IMAG42"]
[null,"A43",{"$f":"'C. FILIACION'!C56:D56","v":0},null,"IMAG43"]
[null,"A44",{"$f":"'C. FILIACION'!C57:D57","v":0},null,"IMAG44"]
[null,"A45",{"$f":"'C. FILIACION'!C58:D58","v":0},null,"IMAG45"]

{"sheet":"ASIS. 1° B","index":4,"n_rows":63,"n_cols":34,"rows_kept":63,"cut":false,"hidden":false,"merged":[[1,1,2,33],[4,24,4,29],[6,24,6,29],[4,30,4,32],[6,30,6,32],[3,1,3,33],[12,1,13,1],[12,4,12,28],[12,29,12,32],[8,24,8,29],[8,30,8,32],[24,2,24,3],[12,33,13,33],[62,4,62,14],[62,20,62,29],[12,2,13,3],[14,2,14,3],[15,2,15,3],[16,2,16,3],[17,2,17,3],[18,2,18,3],[19,2,19,3],[20,2,20,3],[21,2,21,3],[22,2,22,3],[23,2,23,3],[36,2,36,3],[25,2,25,3],[26,2,26,3],[27,2,27,3],[28,2,28,3],[29,2,29,3],[30,2,30,3],[31,2,31,3],[32,2,32,3],[33,2,33,3],[34,2,34,3],[35,2,35,3],[45,2,45,3],[46,2,46,3],[55,2,55,3],[56,2,56,3],[47,2,47,3],[48,2,48,3],[37,2,37,3],[38,2,38,3],[39,2,39,3],[40,2,40,3],[41,2,41,3],[42,2,42,3],[43,2,43,3],[44,2,44,3],[57,2,57,3],[58,2,58,3],[49,2,49,3],[50,2,50,3],[51,2,51,3],[52,2,52,3],[53,2,53,3],[54,2,54,3]]}
[]
[null,"REGISTRO DE ASISTENCIA 1⁰ BIMESTRE "]
[]
[]
[null,null,"UNIDAD EDUCATIVA ",":",{"$f":"CARATULA!G20","v":0},null,null,null,null,null,null,null,null,null,null,null,null,null,null,null,null,null,null,null,"INICIO DE BIMESTRE ",null,null,null,null,null,"2018-02-05"]
[null,null,"NIVEL ",":",{"$f":"CARATULA!G26","v":0}]
[null,null,"AÑO DE ESCOLARIDAD",":",{"$f":"CONCATENATE(CARATULA!G28,\" \",CARATULA!H28)","v":" "},null,null,null,null,null,null,null,null,null,null,null,null,null,null,null,null,null,null,null,"FIN DE BIMESTRE ",null,null,null,null,null,"2018-04-20"]
[null,null,"DIRECTOR/A",":",{"$f":"CARATULA!G22","v":0}]
[null,null,"MAESTRO/A",":",{"$f":"CARATULA!G24","v":0},null,null,null,null,null,null,null,null,null,null,null,null,null,null,null,null,null,null,null,"FECHA ACTUAL",null,null,null,null,null,{"$f":"TODAY()","v":"2018-06-13"}]
[null,null,"CAMPO ",":",{"$f":"CARATULA!G30","v":0}]
[null,null,"ÁREA",":",{"$f":"CARATULA!G32","v":0}]
[]
[null,"N","APELLIDOS Y NOMBRES ",null," 1ER BIMESTRE",null,null,null,null,null,null,null,null,null,null,null,null,null,null,null,null,null,null,null,null,null,null,null,null,"TOTALES ",null,null,null," DÍAS TRABAJADOS "]
[null,null,null,null,null,null,null,null,null,null,null,null,null,null,null,null,null,null,null,null,null,null,null,null,null,null,null,null,null,"ASISTENCIAS (A)","FALTAS (F)","RETRASOS (R)","LICENCIAS (L)"]
[null,1,{"$f":"'C. FILIACION'!C14","v":0},null,null,null,null,null,null,null,null,null,null,null,null,null,null,null,null,null,null,null,null,null,null,null,null,null,null,{"$f":"IF(COUNTIF(E15:AC15,\"A\")=0,\"\",COUNTIF(E15:AC15,\"A\"))","v":""},{"$f":"IF(COUNTIF(E15:AC15,\"F\")=0,\"\",COUNTIF(E15:AC15,\"F\"))","v":""},{"$f":"IF(COUNTIF(E15:AC15,\"R\")=0,\"\",COUNTIF(E15:AC15,\"R\"))","v":""},{"$f":"IF(COUNTIF(E15:AC15,\"L\")=0,\"\",COUNTIF(E15:AC15,\"L\"))","v":""},{"$f":"IF((IF(AD15=\"\",0,AD15)+IF(AF15=\"\",0,AF15))=0,\"\",(IF(AD15=\"\",0,AD15)+IF(AF15=\"\",0,AF15)))","v":""}]
[null,2,{"$f":"'C. FILIACION'!C15","v":0},null,null,null,null,null,null,null,null,null,null,null,null,null,null,null,null,null,null,null,null,null,null,null,null,null,null,{"$f":"IF(COUNTIF(E16:AC16,\"A\")=0,\"\",COUNTIF(E16:AC16,\"A\"))","v":""},{"$f":"IF(COUNTIF(E16:AC16,\"F\")=0,\"\",COUNTIF(E16:AC16,\"F\"))","v":""},{"$f":"IF(COUNTIF(E16:AC16,\"R\")=0,\"\",COUNTIF(E16:AC16,\"R\"))","v":""},{"$f":"IF(COUNTIF(E16:AC16,\"L\")=0,\"\",COUNTIF(E16:AC16,\"L\"))","v":""},{"$f":"IF((IF(AD16=\"\",0,AD16)+IF(AF16=\"\",0,AF16))=0,\"\",(IF(AD16=\"\",0,AD16)+IF(AF16=\"\",0,AF16)))","v":""}]
[null,3,{"$f":"'C. FILIACION'!C16","v":0},null,null,null,null,null,null,null,null,null,null,null,null,null,null,null,null,null,null,null,null,null,null,null,null,null,null,"","","","",""]
[null,4,{"$f":"'C. FILIACION'!C17","v":0},null,null,null,null,null,null,null,null,null,null,null,null,null,null,null,null,null,null,null,null,null,null,null,null,null,null,"","","","",""]
[null,5,{"$f":"'C. FILIACION'!C18","v":0},null,null,null,null,null,null,null,null,null,null,null,null,null,null,null,null,null,null,null,null,null,null,null,null,null,null,"","","","",""]
[null,6,{"$f":"'C. FILIACION'!C19","v":0},null,null,null,null,null,null,null,null,null,null,null,null,null,null,null,null,null,null,null,null,null,null,null,null,null,null,"","","","",""]
[null,7,{"$f":"'C. FILIACION'!C20","v":0},null,null,null,null,null,null,null,null,null,null,null,null,null,null,null,null,null,null,null,null,null,null,null,null,null,null,"","","","",""]
[null,8,{"$f":"'C. FILIACION'!C21","v":0},null,null,null,null,null,null,null,null,null,null,null,null,null,null,null,null,null,null,null,null,null,null,null,null,null,null,"","","","",""]
[null,9,{"$f":"'C. FILIACION'!C22","v":0},null,null,null,null,null,null,null,null,null,null,null,null,null,null,null,null,null,null,null,null,null,null,null,null,null,null,"","","","",""]
[null,10,{"$f":"'C. FILIACION'!C23","v":0},null,null,null,null,null,null,null,null,null,null,null,null,null,null,null,null,null,null,null,null,null,null,null,null,null,null,"","","","",""]
[null,11,{"$f":"'C. FILIACION'!C24","v":0},null,null,null,null,null,null,null,null,null,null,null,null,null,null,null,null,null,null,null,null,null,null,null,null,null,null,"","","","",""]
[null,12,{"$f":"'C. FILIACION'!C25","v":0},null,null,null,null,null,null,null,null,null,null,null,null,null,null,null,null,null,null,null,null,null,null,null,null,null,null,"","","","",""]
[null,13,{"$f":"'C. FILIACION'!C26","v":0},null,null,null,null,null,null,null,null,null,null,null,null,null,null,null,null,null,null,null,null,null,null,null,null,null,null,"","","","",""]
[null,14,{"$f":"'C. FILIACION'!C27","v":0},null,null,null,null,null,null,null,null,null,null,null,null,null,null,null,null,null,null,null,null,null,null,null,null,null,null,"","","","",""]
[null,15,{"$f":"'C. FILIACION'!C28","v":0},null,null,null,null,null,null,null,null,null,null,null,null,null,null,null,null,null,null,null,null,null,null,null,null,null,null,"","","","",""]
[null,16,{"$f":"'C. FILIACION'!C29","v":0},null,null,null,null,null,null,null,null,null,null,null,null,null,null,null,null,null,null,null,null,null,null,null,null,null,null,"","","","",""]
[null,17,{"$f":"'C. FILIACION'!C30","v":0},null,null,null,null,null,null,null,null,null,null,null,null,null,null,null,null,null,null,null,null,null,null,null,null,null,null,"","","","",""]
[null,18,{"$f":"'C. FILIACION'!C31","v":0},null,null,null,null,null,null,null,null,null,null,null,null,null,null,null,null,null,null,null,null,null,null,null,null,null,null,"","","","",""]
[null,19,{"$f":"'C. FILIACION'!C32","v":0},null,null,null,null,null,null,null,null,null,null,null,null,null,null,null,null,null,null,null,null,null,null,null,null,null,null,"","","","",""]
[null,20,{"$f":"'C. FILIACION'!C33","v":0},null,null,null,null,null,null,null,null,null,null,null,null,null,null,null,null,null,null,null,null,null,null,null,null,null,null,"","","","",""]
[null,21,{"$f":"'C. FILIACION'!C34","v":0},null,null,null,null,null,null,null,null,null,null,null,null,null,null,null,null,null,null,null,null,null,null,null,null,null,null,"","","","",""]
[null,22,{"$f":"'C. FILIACION'!C35","v":0},null,null,null,null,null,null,null,null,null,null,null,null,null,null,null,null,null,null,null,null,null,null,null,null,null,null,"","","","",""]
[null,23,{"$f":"'C. FILIACION'!C36","v":0},null,null,null,null,null,null,null,null,null,null,null,null,null,null,null,null,null,null,null,null,null,null,null,null,null,null,"","","","",""]
[null,24,{"$f":"'C. FILIACION'!C37","v":0},null,null,null,null,null,null,null,null,null,null,null,null,null,null,null,null,null,null,null,null,null,null,null,null,null,null,"","","","",""]
[null,25,{"$f":"'C. FILIACION'!C38","v":0},null,null,null,null,null,null,null,null,null,null,null,null,null,null,null,null,null,null,null,null,null,null,null,null,null,null,"","","","",""]
[null,26,{"$f":"'C. FILIACION'!C39","v":0},null,null,null,null,null,null,null,null,null,null,null,null,null,null,null,null,null,null,null,null,null,null,null,null,null,null,"","","","",""]
[null,27,{"$f":"'C. FILIACION'!C40","v":0},null,null,null,null,null,null,null,null,null,null,null,null,null,null,null,null,null,null,null,null,null,null,null,null,null,null,"","","","",""]
[null,28,{"$f":"'C. FILIACION'!C41","v":0},null,null,null,null,null,null,null,null,null,null,null,null,null,null,null,null,null,null,null,null,null,null,null,null,null,null,"","","","",""]
[null,29,{"$f":"'C. FILIACION'!C42","v":0},null,null,null,null,null,null,null,null,null,null,null,null,null,null,null,null,null,null,null,null,null,null,null,null,null,null,"","","","",""]
[null,30,{"$f":"'C. FILIACION'!C43","v":0},null,null,null,null,null,null,null,null,null,null,null,null,null,null,null,null,null,null,null,null,null,null,null,null,null,null,"","","","",""]
[null,31,{"$f":"'C. FILIACION'!C44","v":0},null,null,null,null,null,null,null,null,null,null,null,null,null,null,null,null,null,null,null,null,null,null,null,null,null,null,"","","","",""]
[null,32,{"$f":"'C. FILIACION'!C45","v":0},null,null,null,null,null,null,null,null,null,null,null,null,null,null,null,null,null,null,null,null,null,null,null,null,null,null,"","","","",""]
[null,33,{"$f":"'C. FILIACION'!C46","v":0},null,null,null,null,null,null,null,null,null,null,null,null,null,null,null,null,null,null,null,null,null,null,null,null,null,null,"","","","",""]
[null,34,{"$f":"'C. FILIACION'!C47","v":0},null,null,null,null,null,null,null,null,null,null,null,null,null,null,null,null,null,null,null,null,null,null,null,null,null,null,"","","","",""]
[null,35,{"$f":"'C. FILIACION'!C48","v":0},null,null,null,null,null,null,null,null,null,null,null,null,null,null,null,null,null,null,null,null,null,null,null,null,null,null,"","","","",""]
[null,36,{"$f":"'C. FILIACION'!C49","v":0},null,null,null,null,null,null,null,null,null,null,null,null,null,null,null,null,null,null,null,null,null,null,null,null,null,null,"","","","",""]
[null,37,{"$f":"'C. FILIACION'!C50","v":0},null,null,null,null,null,null,null,null,null,null,null,null,null,null,null,null,null,null,null,null,null,null,null,null,null,null,"","","","",""]
[null,38,{"$f":"'C. FILIACION'!C51","v":0},null,null,null,null,null,null,null,null,null,null,null,null,null,null,null,null,null,null,null,null,null,null,null,null,null,null,"","","","",""]
[null,39,{"$f":"'C. FILIACION'!C52","v":0},null,null,null,null,null,null,null,null,null,null,null,null,null,null,null,null,null,null,null,null,null,null,null,null,null,null,"","","","",""]
[null,40,{"$f":"'C. FILIACION'!C53","v":0},null,null,null,null,null,null,null,null,null,null,null,null,null,null,null,null,null,null,null,null,null,null,null,null,null,null,"","","","",""]
[null,41,{"$f":"'C. FILIACION'!C54","v":0},null,null,null,null,null,null,null,null,null,null,null,null,null,null,null,null,null,null,null,null,null,null,null,null,null,null,"","","","",""]
[null,42,{"$f":"'C. FILIACION'!C55","v":0},null,null,null,null,null,null,null,null,null,null,null,null,null,null,null,null,null,null,null,null,null,null,null,null,null,null,"","","","",""]
[null,43,{"$f":"'C. FILIACION'!C56","v":0},null,null,null,null,null,null,null,null,null,null,null,null,null,null,null,null,null,null,null,null,null,null,null,null,null,null,"","","","",""]
[null,44,{"$f":"'C. FILIACION'!C57","v":0},null,null,null,null,null,null,null,null,null,null,null,null,null,null,null,null,null,null,null,null,null,null,null,null,null,null,"","","","",""]
[null,45,{"$f":"'C. FILIACION'!C58","v":0},null,null,null,null,null,null,null,null,null,null,null,null,null,null,null,null,null,null,null,null,null,null,null,null,null,null,"","","","",""]
[]
[]
[]
[null,null,null,null,{"$f":"CARATULA!G22","v":0},null,null,null,null,null,null,null,null,null,null,null,null,null,null,null,{"$f":"CARATULA!G24","v":0}]

{"sheet":"VAL. 1° B","index":5,"n_rows":68,"n_cols":52,"rows_kept":68,"cut":false,"hidden":false,"merged":[[66,8,66,19],[66,30,66,42],[67,8,67,19],[67,30,67,42],[16,4,16,8],[16,10,16,14],[16,36,16,40],[16,42,16,46],[16,9,17,9],[16,25,17,25],[16,41,17,41],[13,51,17,51],[13,1,16,2],[13,48,13,49],[14,48,14,49],[16,48,17,48],[16,49,17,49],[16,20,16,24],[16,31,16,35],[16,15,16,19],[16,26,16,30],[15,10,15,25],[15,26,15,41],[16,47,17,47],[15,42,15,47],[13,50,17,50],[2,1,3,51],[5,29,5,33],[7,29,7,33],[5,50,6,51],[7,50,11,51],[64,48,64,49],[9,29,9,33],[65,48,65,49],[5,35,5,41],[7,35,7,41],[5,42,5,43],[7,42,7,43],[6,35,6,41],[6,42,6,43],[13,3,13,47],[14,3,14,47],[15,3,15,9],[5,44,11,49],[9,21,9,27]]}
[]
[]
[null,"REGISTRO DE VALORACIÓN 1⁰ BIMESTRE"]
[]
[]
[null,null,"UNIDAD EDUCATIVA ",":",null,{"$f":"CARATULA!G20","v":0},null,null,null,null,null,null,null,null,null,null,null,null,null,null,null,"INICIO DE BIMESTRE ",null,null,null,null,null,null,":","2018-02-05",null,null,null,null,null,null,null,null,null,null,null,null,null,null,null,null,null,null,null,null,"DÍAS RESTANTES PARA FIN DE BIMESTRE "]
[null,null,"NIVEL ",":",null,{"$f":"CARATULA!G26","v":0},null,null,null,null,null,null,null,null,null,null,null,null,null,null,null,null,null,null,null,null,null,null,null,null,null,null,null,null,null,"N° TOTAL APROBADOS",null,null,null,null,null,null,{"$f":"COUNTIF(AY19:AY63,\">=51\")","v":0}]
[null,null,"AÑO DE ESCOLARIDAD",":",null,{"$f":"CONCATENATE(CARATULA!G28,\" \",CARATULA!H28)","v":" "},null,null,null,null,null,null,null,null,null,null,null,null,null,null,null,"FIN DE BIMESTRE ",null,null,null,null,null,null,":","2018-04-20",null,null,null,null,null,"N° TOTAL REPROBADOS",null,null,null,null,null,null,{"$f":"COUNTIFS(AY19:AY63,\">=1\",AY19:AY63,\"<=50\")","v":0},null,null,null,null,null,null,null,{"$f":"AD8-AD10","v":-54}]
[null,null,"DIRECTOR/A",":",null,{"$f":"CARATULA!G22","v":0}]
[null,null,"MAESTRO/A",":",null,{"$f":"CARATULA!G24","v":0},null,null,null,null,null,null,null,null,null,null,null,null,null,null,null,"FECHA ACTUAL",null,null,null,null,null,null,":",{"$f":"TODAY()","v":"2018-06-13"}]
[{"$f":"COUNTIF(AY19:AY63,¨>=50)","v":0},null,"CAMPO ",":",null,{"$f":"CARATULA!G30","v":0}]
[null,null,"ÁREA",":",null,{"$f":"CARATULA!G32","v":0}]
[]
[null,null,null,"EVALUACIÓN MAESTRA(O)",null,null,null,null,null,null,null,null,null,null,null,null,null,null,null,null,null,null,null,null,null,null,null,null,null,null,null,null,null,null,null,null,null,null,null,null,null,null,null,null,null,null,null,null,"AUTO EVALUACIÓN ESTUDIANTE ",null," TOTAL BIMESTRAL","SITUACIÓN BIMESTRAL"]
[null,null,null,"DIMENSIONES ",null,null,null,null,null,null,null,null,null,null,null,null,null,null,null,null,null,null,null,null,null,null,null,null,null,null,null,null,null,null,null,null,null,null,null,null,null,null,null,null,null,null,null,null,"DIMENSIONES "]
[null,null,null,"SER -10",null,null,null,null,null,null,"SABER - 35",null,null,null,null,null,null,null,null,null,null,null,null,null,null,null,"HACER - 35",null,null,null,null,null,null,null,null,null,null,null,null,null,null,null,"DECIDIR - 10 ",null,null,null,null,null,"SER - 5","DECIDIR - 5"]
[null,null,null,"CRITERIOS DE EVALUACIÓN  ",null,null,null,null,null,"VALORACIÓN 10 PUN.",null,null,null,null,null,null,null,null,null,null,null,null,null,null,null,"VALORACIÓN 35 PUN.",null,null,null,null,null,null,null,null,null,null,null,null,null,null,null,"VALORACIÓN 35 PUN.",null,null,null,null,null,"VALORACIÓN 10 PUN."]
[null,"N ","NOMBRES Y APELLIDOS ","ACTIVIDADES"]
[null,1,{"$f":"'C. FILIACION'!C14","v":0},null,null,null,null,null,null,{"$f":"(IFERROR((SUM(E19:I19)/(COUNT(E19:I19))),0))","v":0},null,null,null,null,null,null,null,null,null,null,null,null,null,null,null,{"$f":"IFERROR(((SUM(K19:Y19))/(COUNT(K19:Y19))),0)","v":0},null,null,null,null,null,null,null,null,null,null,null,null,null,null,null,{"$f":"IFERROR(((SUM(AA19:AO19))/(COUNT(AA19:AO19))),0)","v":0},null,null,null,null,null,{"$f":"IFERROR(((SUM(AQ19:AU19))/(COUNT(AQ19:AU19))),0)","v":0},null,null,{"$f":"ROUND((SUM(J19,Z19,AP19,AV19,AW19,AX19)),0)","v":0},{"$f":"IF(AY19=0,\" \",IF(AY19>=51,\"APROBADO\",\"REPROBADO\"))","v":" "}]
[null,2,{"$f":"'C. FILIACION'!C15","v":0},null,null,null,null,null,null,{"$f":"IFERROR((SUM(E20:I20)/(COUNT(E20:I20))),0)","v":0},null,null,null,null,null,null,null,null,null,null,null,null,null,null,null,0,null,null,null,null,null,null,null,null,null,null,null,null,null,null,null,0,null,null,null,null,null,0,null,null,{"$f":"ROUND((SUM(J20,Z20,AP20,AV20,AW20,AX20)),0)","v":0},{"$f":"IF(AY20=0,\" \",IF(AY20>=51,\"APROBADO\",\"REPROBADO\"))","v":" "}]
[null,3,{"$f":"'C. FILIACION'!C16","v":0},null,null,null,null,null,null,0,null,null,null,null,null,null,null,null,null,null,null,null,null,null,null,0,null,null,null,null,null,null,null,null,null,null,null,null,null,null,null,0,null,null,null,null,null,0,null,null,0," "]
[null,4,{"$f":"'C. FILIACION'!C17","v":0},null,null,null,null,null,null,{"$f":"IFERROR((SUM(E22:I22)/(COUNT(E22:I22))),0)","v":0},null,null,null,null,null,null,null,null,null,null,null,null,null,null,null,0,null,null,null,null,null,null,null,null,null,null,null,null,null,null,null,0,null,null,null,null,null,0,null,null,0," "]
[null,5,{"$f":"'C. FILIACION'!C18","v":0},null,null,null,null,null,null,0,null,null,null,null,null,null,null,null,null,null,null,null,null,null,null,0,null,null,null,null,null,null,null,null,null,null,null,null,null,null,null,0,null,null,null,null,null,0,null,null,0," "]
[null,6,{"$f":"'C. FILIACION'!C19","v":0},null,null,null,null,null,null,0,null,null,null,null,null,null,null,null,null,null,null,null,null,null,null,0,null,null,null,null,null,null,null,null,null,null,null,null,null,null,null,0,null,null,null,null,null,0,null,null,0," "]
[null,7,{"$f":"'C. FILIACION'!C20","v":0},null,null,null,null,null,null,0,null,null,null,null,null,null,null,null,null,null,null,null,null,null,null,0,null,null,null,null,null,null,null,null,null,null,null,null,null,null,null,0,null,null,null,null,null,0,null,null,0," "]
[null,8,{"$f":"'C. FILIACION'!C21","v":0},null,null,null,null,null,null,0,null,null,null,null,null,null,null,null,null,null,null,null,null,null,null,0,null,null,null,null,null,null,null,null,null,null,null,null,null,null,null,0,null,null,null,null,null,0,null,null,0," "]
[null,9,{"$f":"'C. FILIACION'!C22","v":0},null,null,null,null,null,null,0,null,null,null,null,null,null,null,null,null,null,null,null,null,null,null,0,null,null,null,null,null,null,null,null,null,null,null,null,null,null,null,0,null,null,null,null,null,0,null,null,0," "]
[null,10,{"$f":"'C. FILIACION'!C23","v":0},null,null,null,null,null,null,0,null,null,null,null,null,null,null,null,null,null,null,null,null,null,null,0,null,null,null,null,null,null,null,null,null,null,null,null,null,null,null,0,null,null,null,null,null,0,null,null,0," "]
[null,11,{"$f":"'C. FILIACION'!C24","v":0},null,null,null,null,null,null,0,null,null,null,null,null,null,null,null,null,null,null,null,null,null,null,0,null,null,null,null,null,null,null,null,null,null,null,null,null,null,null,0,null,null,null,null,null,0,null,null,0," "]
[null,12,{"$f":"'C. FILIACION'!C25","v":0},null,null,null,null,null,null,0,null,null,null,null,null,null,null,null,null,null,null,null,null,null,null,0,null,null,null,null,null,null,null,null,null,null,null,null,null,null,null,0,null,null,null,null,null,0,null,null,0," "]
[null,13,{"$f":"'C. FILIACION'!C26","v":0},null,null,null,null,null,null,0,null,null,null,null,null,null,null,null,null,null,null,null,null,null,null,0,null,null,null,null,null,null,null,null,null,null,null,null,null,null,null,0,null,null,null,null,null,0,null,null,0," "]
[null,14,{"$f":"'C. FILIACION'!C27","v":0},null,null,null,null,null,null,0,null,null,null,null,null,null,null,null,null,null,null,null,null,null,null,0,null,null,null,null,null,null,null,null,null,null,null,null,null,null,null,0,null,null,null,null,null,0,null,null,0," "]
[null,15,{"$f":"'C. FILIACION'!C28","v":0},null,null,null,null,null,null,0,null,null,null,null,null,null,null,null,null,null,null,null,null,null,null,0,null,null,null,null,null,null,null,null,null,null,null,null,null,null,null,0,null,null,null,null,null,0,null,null,0," "]
[null,16,{"$f":"'C. FILIACION'!C29","v":0},null,null,null,null,null,null,0,null,null,null,null,null,null,null,null,null,null,null,null,null,null,null,0,null,null,null,null,null,null,null,null,null,null,null,null,null,null,null,0,null,null,null,null,null,0,null,null,0," "]
[null,17,{"$f":"'C. FILIACION'!C30","v":0},null,null,null,null,null,null,0,null,null,null,null,null,null,null,null,null,null,null,null,null,null,null,0,null,null,null,null,null,null,null,null,null,null,null,null,null,null,null,0,null,null,null,null,null,0,null,null,0," "]
[null,18,{"$f":"'C. FILIACION'!C31","v":0},null,null,null,null,null,null,0,null,null,null,null,null,null,null,null,null,null,null,null,null,null,null,0,null,null,null,null,null,null,null,null,null,null,null,null,null,null,null,0,null,null,null,null,null,0,null,null,0," "]
[null,19,{"$f":"'C. FILIACION'!C32","v":0},null,null,null,null,null,null,0,null,null,null,null,null,null,null,null,null,null,null,null,null,null,null,0,null,null,null,null,null,null,null,null,null,null,null,null,null,null,null,0,null,null,null,null,null,0,null,null,0," "]
[null,20,{"$f":"'C. FILIACION'!C33","v":0},null,null,null,null,null,null,0,null,null,null,null,null,null,null,null,null,null,null,null,null,null,null,0,null,null,null,null,null,null,null,null,null,null,null,null,null,null,null,0,null,null,null,null,null,0,null,null,0," "]
[null,21,{"$f":"'C. FILIACION'!C34","v":0},null,null,null,null,null,null,0,null,null,null,null,null,null,null,null,null,null,null,null,null,null,null,0,null,null,null,null,null,null,null,null,null,null,null,null,null,null,null,0,null,null,null,null,null,0,null,null,0," "]
[null,22,{"$f":"'C. FILIACION'!C35","v":0},null,null,null,null,null,null,0,null,null,null,null,null,null,null,null,null,null,null,null,null,null,null,0,null,null,null,null,null,null,null,null,null,null,null,null,null,null,null,0,null,null,null,null,null,0,null,null,0," "]
[null,23,{"$f":"'C. FILIACION'!C36","v":0},null,null,null,null,null,null,0,null,null,null,null,null,null,null,null,null,null,null,null,null,null,null,0,null,null,null,null,null,null,null,null,null,null,null,null,null,null,null,0,null,null,null,null,null,0,null,null,0," "]
[null,24,{"$f":"'C. FILIACION'!C37","v":0},null,null,null,null,null,null,0,null,null,null,null,null,null,null,null,null,null,null,null,null,null,null,0,null,null,null,null,null,null,null,null,null,null,null,null,null,null,null,0,null,null,null,null,null,0,null,null,0," "]
[null,25,{"$f":"'C. FILIACION'!C38","v":0},null,null,null,null,null,null,0,null,null,null,null,null,null,null,null,null,null,null,null,null,null,null,0,null,null,null,null,null,null,null,null,null,null,null,null,null,null,null,0,null,null,null,null,null,0,null,null,0," "]
[null,26,{"$f":"'C. FILIACION'!C39","v":0},null,null,null,null,null,null,0,null,null,null,null,null,null,null,null,null,null,null,null,null,null,null,0,null,null,null,null,null,null,null,null,null,null,null,null,null,null,null,0,null,null,null,null,null,0,null,null,0," "]
[null,27,{"$f":"'C. FILIACION'!C40","v":0},null,null,null,null,null,null,0,null,null,null,null,null,null,null,null,null,null,null,null,null,null,null,0,null,null,null,null,null,null,null,null,null,null,null,null,null,null,null,0,null,null,null,null,null,0,null,null,0," "]
[null,28,{"$f":"'C. FILIACION'!C41","v":0},null,null,null,null,null,null,0,null,null,null,null,null,null,null,null,null,null,null,null,null,null,null,0,null,null,null,null,null,null,null,null,null,null,null,null,null,null,null,0,null,null,null,null,null,0,null,null,0," "]
[null,29,{"$f":"'C. FILIACION'!C42","v":0},null,null,null,null,null,null,0,null,null,null,null,null,null,null,null,null,null,null,null,null,null,null,0,null,null,null,null,null,null,null,null,null,null,null,null,null,null,null,0,null,null,null,null,null,0,null,null,0," "]
[null,30,{"$f":"'C. FILIACION'!C43","v":0},null,null,null,null,null,null,0,null,null,null,null,null,null,null,null,null,null,null,null,null,null,null,0,null,null,null,null,null,null,null,null,null,null,null,null,null,null,null,0,null,null,null,null,null,0,null,null,0," "]
[null,31,{"$f":"'C. FILIACION'!C44","v":0},null,null,null,null,null,null,0,null,null,null,null,null,null,null,null,null,null,null,null,null,null,null,0,null,null,null,null,null,null,null,null,null,null,null,null,null,null,null,0,null,null,null,null,null,0,null,null,0," "]
[null,32,{"$f":"'C. FILIACION'!C45","v":0},null,null,null,null,null,null,0,null,null,null,null,null,null,null,null,null,null,null,null,null,null,null,0,null,null,null,null,null,null,null,null,null,null,null,null,null,null,null,0,null,null,null,null,null,0,null,null,0," "]
[null,33,{"$f":"'C. FILIACION'!C46","v":0},null,null,null,null,null,null,0,null,null,null,null,null,null,null,null,null,null,null,null,null,null,null,0,null,null,null,null,null,null,null,null,null,null,null,null,null,null,null,0,null,null,null,null,null,0,null,null,0," "]
[null,34,{"$f":"'C. FILIACION'!C47","v":0},null,null,null,null,null,null,0,null,null,null,null,null,null,null,null,null,null,null,null,null,null,null,0,null,null,null,null,null,null,null,null,null,null,null,null,null,null,null,0,null,null,null,null,null,0,null,null,0," "]
[null,35,{"$f":"'C. FILIACION'!C48","v":0},null,null,null,null,null,null,0,null,null,null,null,null,null,null,null,null,null,null,null,null,null,null,0,null,null,null,null,null,null,null,null,null,null,null,null,null,null,null,0,null,null,null,null,null,0,null,null,0," "]
[null,36,{"$f":"'C. FILIACION'!C49","v":0},null,null,null,null,null,null,0,null,null,null,null,null,null,null,null,null,null,null,null,null,null,null,0,null,null,null,null,null,null,null,null,null,null,null,null,null,null,null,0,null,null,null,null,null,0,null,null,0," "]
[null,37,{"$f":"'C. FILIACION'!C50","v":0},null,null,null,null,null,null,0,null,null,null,null,null,null,null,null,null,null,null,null,null,null,null,0,null,null,null,null,null,null,null,null,null,null,null,null,null,null,null,0,null,null,null,null,null,0,null,null,0," "]
[null,38,{"$f":"'C. FILIACION'!C51","v":0},null,null,null,null,null,null,0,null,null,null,null,null,null,null,null,null,null,null,null,null,null,null,0,null,null,null,null,null,null,null,null,null,null,null,null,null,null,null,0,null,null,null,null,null,0,null,null,0," "]
[null,39,{"$f":"'C. FILIACION'!C52","v":0},null,null,null,null,null,null,0,null,null,null,null,null,null,null,null,null,null,null,null,null,null,null,0,null,null,null,null,null,null,null,null,null,null,null,null,null,null,null,0,null,null,null,null,null,0,null,null,0," "]
[null,40,{"$f":"'C. FILIACION'!C53","v":0},null,null,null,null,null,null,0,null,null,null,null,null,null,null,null,null,null,null,null,null,null,null,0,null,null,null,null,null,null,null,null,null,null,null,null,null,null,null,0,null,null,null,null,null,0,null,null,0," "]
[null,41,{"$f":"'C. FILIACION'!C54","v":0},null,null,null,null,null,null,0,null,null,null,null,null,null,null,null,null,null,null,null,null,null,null,0,null,null,null,null,null,null,null,null,null,null,null,null,null,null,null,0,null,null,null,null,null,0,null,null,0," "]
[null,42,{"$f":"'C. FILIACION'!C55","v":0},null,null,null,null,null,null,0,null,null,null,null,null,null,null,null,null,null,null,null,null,null,null,0,null,null,null,null,null,null,null,null,null,null,null,null,null,null,null,0,null,null,null,null,null,0,null,null,0," "]
[null,43,{"$f":"'C. FILIACION'!C56","v":0},null,null,null,null,null,null,0,null,null,null,null,null,null,null,null,null,null,null,null,null,null,null,0,null,null,null,null,null,null,null,null,null,null,null,null,null,null,null,0,null,null,null,null,null,0,null,null,0," "]
[null,44,{"$f":"'C. FILIACION'!C57","v":0},null,null,null,null,null,null,0,null,null,null,null,null,null,null,null,null,null,null,null,null,null,null,0,null,null,null,null,null,null,null,null,null,null,null,null,null,null,null,0,null,null,null,null,null,0,null,null,0," "]
[null,45,{"$f":"'C. FILIACION'!C58","v":0},null,null,null,null,null,null,0,null,null,null,null,null,null,null,null,null,null,null,null,null,null,null,0,null,null,null,null,null,null,null,null,null,null,null,null,null,null,null,0,null,null,null,null,null,0,null,null,0," "]
[]
[]
[]
[]
[null,null,null,null,null,null,null,null,{"$f":"CARATULA!G22","v":0},null,null,null,null,null,null,null,null,null,null,null,null,null,null,null,null,null,null,null,null,null,{"$f":"CARATULA!G24","v":0}]

{"sheet":"ASIS. 2° B","index":6,"n_rows":70,"n_cols":34,"rows_kept":70,"cut":false,"hidden":false,"merged":[[62,20,62,29],[54,2,54,3],[55,2,55,3],[56,2,56,3],[57,2,57,3],[58,2,58,3],[62,4,62,14],[53,2,53,3],[42,2,42,3],[43,2,43,3],[44,2,44,3],[45,2,45,3],[46,2,46,3],[47,2,47,3],[48,2,48,3],[49,2,49,3],[50,2,50,3],[51,2,51,3],[52,2,52,3],[41,2,41,3],[30,2,30,3],[31,2,31,3],[32,2,32,3],[33,2,33,3],[34,2,34,3],[35,2,35,3],[36,2,36,3],[37,2,37,3],[38,2,38,3],[39,2,39,3],[40,2,40,3],[12,33,13,33],[14,2,14,3],[15,2,15,3],[16,2,16,3],[29,2,29,3],[18,2,18,3],[19,2,19,3],[20,2,20,3],[21,2,21,3],[22,2,22,3],[23,2,23,3],[24,2,24,3],[25,2,25,3],[26,2,26,3],[27,2,27,3],[28,2,28,3],[17,2,17,3],[12,1,13,1],[12,2,13,3],[12,4,12,28],[8,24,8,29],[12,29,12,32],[8,30,8,32],[1,1,2,33],[3,1,3,33],[4,24,4,29],[4,30,4,32],[6,24,6,29],[6,30,6,32]]}
[]
[null,"REGISTRO DE ASISTENCIA 2⁰ BIMESTRE "]
[]
[]
[null,null,"UNIDAD EDUCATIVA ",":",{"$f":"CARATULA!G20","v":0},null,null,null,null,null,null,null,null,null,null,null,null,null,null,null,null,null,null,null,"INICIO DE BIMESTRE ",null,null,null,null,null,"2018-04-23"]
[null,null,"NIVEL ",":",{"$f":"CARATULA!G26","v":0}]
[null,null,"AÑO DE ESCOLARIDAD",":",{"$f":"CONCATENATE(CARATULA!G28,\" \",CARATULA!H28)","v":" "},null,null,null,null,null,null,null,null,null,null,null,null,null,null,null,null,null,null,null,"FIN DE BIMESTRE ",null,null,null,null,null,"2018-06-29"]
[null,null,"DIRECTOR/A",":",{"$f":"CARATULA!G22","v":0}]
[null,null,"MAESTRO/A",":",{"$f":"CARATULA!G24","v":0},null,null,null,null,null,null,null,null,null,null,null,null,null,null,null,null,null,null,null,"FECHA ACTUAL ",null,null,null,null,null,{"$f":"TODAY()","v":"2018-06-13"}]
[null,null,"CAMPO ",":",{"$f":"CARATULA!G30","v":0}]
[null,null,"ÁREA",":",{"$f":"CARATULA!G32","v":0}]
[]
[null,"N","APELLIDOS Y NOMBRES ",null," 2DO BIMESTRE",null,null,null,null,null,null,null,null,null,null,null,null,null,null,null,null,null,null,null,null,null,null,null,null,"TOTALES ",null,null,null," DÍAS TRABAJADOS "]
[null,null,null,null,null,null,null,null,null,null,null,null,null,null,null,null,null,null,null,null,null,null,null,null,null,null,null,null,null,"ASISTENCIAS (A)","FALTAS (F)","RETRASOS (R)","LICENCIAS (L)"]
[null,1,{"$f":"'C. FILIACION'!C14","v":0},null,null,null,null,null,null,null,null,null,null,null,null,null,null,null,null,null,null,null,null,null,null,null,null,null,null,{"$f":"IF(COUNTIF(E15:AC15,\"A\")=0,\"\",COUNTIF(E15:AC15,\"A\"))","v":""},{"$f":"IF(COUNTIF(E15:AC15,\"F\")=0,\"\",COUNTIF(E15:AC15,\"F\"))","v":""},{"$f":"IF(COUNTIF(E15:AC15,\"R\")=0,\"\",COUNTIF(E15:AC15,\"R\"))","v":""},{"$f":"IF(COUNTIF(E15:AC15,\"L\")=0,\"\",COUNTIF(E15:AC15,\"L\"))","v":""},{"$f":"IF((IF(AD15=\"\",0,AD15)+IF(AF15=\"\",0,AF15))=0,\"\",(IF(AD15=\"\",0,AD15)+IF(AF15=\"\",0,AF15)))","v":""}]
[null,2,{"$f":"'C. FILIACION'!C15","v":0},null,null,null,null,null,null,null,null,null,null,null,null,null,null,null,null,null,null,null,null,null,null,null,null,null,null,{"$f":"IF(COUNTIF(E16:AC16,\"A\")=0,\"\",COUNTIF(E16:AC16,\"A\"))","v":""},{"$f":"IF(COUNTIF(E16:AC16,\"F\")=0,\"\",COUNTIF(E16:AC16,\"F\"))","v":""},{"$f":"IF(COUNTIF(E16:AC16,\"R\")=0,\"\",COUNTIF(E16:AC16,\"R\"))","v":""},{"$f":"IF(COUNTIF(E16:AC16,\"L\")=0,\"\",COUNTIF(E16:AC16,\"L\"))","v":""},{"$f":"IF((IF(AD16=\"\",0,AD16)+IF(AF16=\"\",0,AF16))=0,\"\",(IF(AD16=\"\",0,AD16)+IF(AF16=\"\",0,AF16)))","v":""}]
[null,3,{"$f":"'C. FILIACION'!C16","v":0},null,null,null,null,null,null,null,null,null,null,null,null,null,null,null,null,null,null,null,null,null,null,null,null,null,null,"","","","",""]
[null,4,{"$f":"'C. FILIACION'!C17","v":0},null,null,null,null,null,null,null,null,null,null,null,null,null,null,null,null,null,null,null,null,null,null,null,null,null,null,"","","","",""]
[null,5,{"$f":"'C. FILIACION'!C18","v":0},null,null,null,null,null,null,null,null,null,null,null,null,null,null,null,null,null,null,null,null,null,null,null,null,null,null,"","","","",""]
[null,6,{"$f":"'C. FILIACION'!C19","v":0},null,null,null,null,null,null,null,null,null,null,null,null,null,null,null,null,null,null,null,null,null,null,null,null,null,null,"","","","",""]
[null,7,{"$f":"'C. FILIACION'!C20","v":0},null,null,null,null,null,null,null,null,null,null,null,null,null,null,null,null,null,null,null,null,null,null,null,null,null,null,"","","","",""]
[null,8,{"$f":"'C. FILIACION'!C21","v":0},null,null,null,null,null,null,null,null,null,null,null,null,null,null,null,null,null,null,null,null,null,null,null,null,null,null,"","","","",""]
[null,9,{"$f":"'C. FILIACION'!C22","v":0},null,null,null,null,null,null,null,null,null,null,null,null,null,null,null,null,null,null,null,null,null,null,null,null,null,null,"","","","",""]
[null,10,{"$f":"'C. FILIACION'!C23","v":0},null,null,null,null,null,null,null,null,null,null,null,null,null,null,null,null,null,null,null,null,null,null,null,null,null,null,"","","","",""]
[null,11,{"$f":"'C. FILIACION'!C24","v":0},null,null,null,null,null,null,null,null,null,null,null,null,null,null,null,null,null,null,null,null,null,null,null,null,null,null,"","","","",""]
[null,12,{"$f":"'C. FILIACION'!C25","v":0},null,null,null,null,null,null,null,null,null,null,null,null,null,null,null,null,null,null,null,null,null,null,null,null,null,null,"","","","",""]
[null,13,{"$f":"'C. FILIACION'!C26","v":0},null,null,null,null,null,null,null,null,null,null,null,null,null,null,null,null,null,null,null,null,null,null,null,null,null,null,"","","","",""]
[null,14,{"$f":"'C. FILIACION'!C27","v":0},null,null,null,null,null,null,null,null,null,null,null,null,null,null,null,null,null,null,null,null,null,null,null,null,null,null,"","","","",""]
[null,15,{"$f":"'C. FILIACION'!C28","v":0},null,null,null,null,null,null,null,null,null,null,null,null,null,null,null,null,null,null,null,null,null,null,null,null,null,null,"","","","",""]
[null,16,{"$f":"'C. FILIACION'!C29","v":0},null,null,null,null,null,null,null,null,null,null,null,null,null,null,null,null,null,null,null,null,null,null,null,null,null,null,"","","","",""]
[null,17,{"$f":"'C. FILIACION'!C30","v":0},null,null,null,null,null,null,null,null,null,null,null,null,null,null,null,null,null,null,null,null,null,null,null,null,null,null,"","","","",""]
[null,18,{"$f":"'C. FILIACION'!C31","v":0},null,null,null,null,null,null,null,null,null,null,null,null,null,null,null,null,null,null,null,null,null,null,null,null,null,null,"","","","",""]
[null,19,{"$f":"'C. FILIACION'!C32","v":0},null,null,null,null,null,null,null,null,null,null,null,null,null,null,null,null,null,null,null,null,null,null,null,null,null,null,"","","","",""]
[null,20,{"$f":"'C. FILIACION'!C33","v":0},null,null,null,null,null,null,null,null,null,null,null,null,null,null,null,null,null,null,null,null,null,null,null,null,null,null,"","","","",""]
[null,21,{"$f":"'C. FILIACION'!C34","v":0},null,null,null,null,null,null,null,null,null,null,null,null,null,null,null,null,null,null,null,null,null,null,null,null,null,null,"","","","",""]
[null,22,{"$f":"'C. FILIACION'!C35","v":0},null,null,null,null,null,null,null,null,null,null,null,null,null,null,null,null,null,null,null,null,null,null,null,null,null,null,"","","","",""]
[null,23,{"$f":"'C. FILIACION'!C36","v":0},null,null,null,null,null,null,null,null,null,null,null,null,null,null,null,null,null,null,null,null,null,null,null,null,null,null,"","","","",""]
[null,24,{"$f":"'C. FILIACION'!C37","v":0},null,null,null,null,null,null,null,null,null,null,null,null,null,null,null,null,null,null,null,null,null,null,null,null,null,null,"","","","",""]
[null,25,{"$f":"'C. FILIACION'!C38","v":0},null,null,null,null,null,null,null,null,null,null,null,null,null,null,null,null,null,null,null,null,null,null,null,null,null,null,"","","","",""]
[null,26,{"$f":"'C. FILIACION'!C39","v":0},null,null,null,null,null,null,null,null,null,null,null,null,null,null,null,null,null,null,null,null,null,null,null,null,null,null,"","","","",""]
[null,27,{"$f":"'C. FILIACION'!C40","v":0},null,null,null,null,null,null,null,null,null,null,null,null,null,null,null,null,null,null,null,null,null,null,null,null,null,null,"","","","",""]
[null,28,{"$f":"'C. FILIACION'!C41","v":0},null,null,null,null,null,null,null,null,null,null,null,null,null,null,null,null,null,null,null,null,null,null,null,null,null,null,"","","","",""]
[null,29,{"$f":"'C. FILIACION'!C42","v":0},null,null,null,null,null,null,null,null,null,null,null,null,null,null,null,null,null,null,null,null,null,null,null,null,null,null,"","","","",""]
[null,30,{"$f":"'C. FILIACION'!C43","v":0},null,null,null,null,null,null,null,null,null,null,null,null,null,null,null,null,null,null,null,null,null,null,null,null,null,null,"","","","",""]
[null,31,{"$f":"'C. FILIACION'!C44","v":0},null,null,null,null,null,null,null,null,null,null,null,null,null,null,null,null,null,null,null,null,null,null,null,null,null,null,"","","","",""]
[null,32,{"$f":"'C. FILIACION'!C45","v":0},null,null,null,null,null,null,null,null,null,null,null,null,null,null,null,null,null,null,null,null,null,null,null,null,null,null,"","","","",""]
[null,33,{"$f":"'C. FILIACION'!C46","v":0},null,null,null,null,null,null,null,null,null,null,null,null,null,null,null,null,null,null,null,null,null,null,null,null,null,null,"","","","",""]
[null,34,{"$f":"'C. FILIACION'!C47","v":0},null,null,null,null,null,null,null,null,null,null,null,null,null,null,null,null,null,null,null,null,null,null,null,null,null,null,"","","","",""]
[null,35,{"$f":"'C. FILIACION'!C48","v":0},null,null,null,null,null,null,null,null,null,null,null,null,null,null,null,null,null,null,null,null,null,null,null,null,null,null,"","","","",""]
[null,36,{"$f":"'C. FILIACION'!C49","v":0},null,null,null,null,null,null,null,null,null,null,null,null,null,null,null,null,null,null,null,null,null,null,null,null,null,null,"","","","",""]
[null,37,{"$f":"'C. FILIACION'!C50","v":0},null,null,null,null,null,null,null,null,null,null,null,null,null,null,null,null,null,null,null,null,null,null,null,null,null,null,"","","","",""]
[null,38,{"$f":"'C. FILIACION'!C51","v":0},null,null,null,null,null,null,null,null,null,null,null,null,null,null,null,null,null,null,null,null,null,null,null,null,null,null,"","","","",""]
[null,39,{"$f":"'C. FILIACION'!C52","v":0},null,null,null,null,null,null,null,null,null,null,null,null,null,null,null,null,null,null,null,null,null,null,null,null,null,null,"","","","",""]
[null,40,{"$f":"'C. FILIACION'!C53","v":0},null,null,null,null,null,null,null,null,null,null,null,null,null,null,null,null,null,null,null,null,null,null,null,null,null,null,"","","","",""]
[null,41,{"$f":"'C. FILIACION'!C54","v":0},null,null,null,null,null,null,null,null,null,null,null,null,null,null,null,null,null,null,null,null,null,null,null,null,null,null,"","","","",""]
[null,42,{"$f":"'C. FILIACION'!C55","v":0},null,null,null,null,null,null,null,null,null,null,null,null,null,null,null,null,null,null,null,null,null,null,null,null,null,null,"","","","",""]
[null,43,{"$f":"'C. FILIACION'!C56","v":0},null,null,null,null,null,null,null,null,null,null,null,null,null,null,null,null,null,null,null,null,null,null,null,null,null,null,"","","","",""]
[null,44,{"$f":"'C. FILIACION'!C57","v":0},null,null,null,null,null,null,null,null,null,null,null,null,null,null,null,null,null,null,null,null,null,null,null,null,null,null,"","","","",""]
[null,45,{"$f":"'C. FILIACION'!C58","v":0},null,null,null,null,null,null,null,null,null,null,null,null,null,null,null,null,null,null,null,null,null,null,null,null,null,null,"","","","",""]
[]
[]
[]
[null,null,null,null,{"$f":"CARATULA!G22","v":0},null,null,null,null,null,null,null,null,null,null,null,null,null,null,null,{"$f":"CARATULA!G24","v":0}]
[]
[]
[]
[null,null,"INSCRITO "]
[null,null,"NO INCORPORADO"]
[null,null,"RETIRO O ABANDONO"]
[null,null,"EFECTIVO"]

{"sheet":"VAL. 2° B","index":7,"n_rows":68,"n_cols":52,"rows_kept":68,"cut":false,"hidden":false,"merged":[[66,8,66,19],[66,30,66,42],[67,8,67,19],[67,30,67,42],[7,21,7,27],[9,21,9,27],[7,29,7,33],[7,35,7,41],[7,42,7,43],[65,48,65,49],[53,2,53,3],[54,2,54,3],[55,2,55,3],[56,2,56,3],[57,2,57,3],[58,2,58,3],[59,2,59,3],[60,2,60,3],[61,2,61,3],[62,2,62,3],[64,48,64,49],[52,2,52,3],[41,2,41,3],[42,2,42,3],[43,2,43,3],[44,2,44,3],[45,2,45,3],[46,2,46,3],[47,2,47,3],[48,2,48,3],[49,2,49,3],[50,2,50,3],[51,2,51,3],[40,2,40,3],[29,2,29,3],[30,2,30,3],[31,2,31,3],[32,2,32,3],[33,2,33,3],[34,2,34,3],[35,2,35,3],[36,2,36,3],[37,2,37,3],[38,2,38,3],[39,2,39,3],[23,2,23,3],[24,2,24,3],[25,2,25,3],[26,2,26,3],[27,2,27,3],[28,2,28,3],[16,49,17,49],[18,2,18,3],[19,2,19,3],[20,2,20,3],[21,2,21,3],[22,2,22,3],[16,31,16,35],[16,36,16,40],[16,41,17,41],[16,42,16,46],[16,47,17,47],[16,48,17,48],[13,1,16,2],[16,25,17,25],[16,26,16,30],[13,51,17,51],[14,3,14,47],[14,48,14,49],[15,3,15,9],[15,10,15,25],[15,26,15,41],[15,42,15,47],[16,4,16,8],[16,9,17,9],[16,10,16,14],[13,3,13,47],[13,48,13,49],[13,50,17,50],[16,15,16,19],[16,20,16,24],[2,1,3,51],[5,29,5,33],[5,35,5,41],[5,42,5,43],[5,44,11,49],[5,50,6,51],[6,35,6,41],[6,42,6,43],[7,50,11,51],[9,29,9,33]]}
[]
[]
[null,"REGISTRO DE VALORACIÓN 2⁰ BIMESTRE"]
[]
[]
[null,null,"UNIDAD EDUCATIVA ",":",null,{"$f":"CARATULA!G20","v":0},null,null,null,null,null,null,null,null,null,null,null,null,null,null,null,"INICIO DE BIMESTRE ",null,null,null,null,null,null,":","2018-04-23",null,null,null,null,null,null,null,null,null,null,null,null,null,null,null,null,null,null,null,null,"DÍAS RESTANTES PARA FIN DE BIMESTRE "]
[null,null,"NIVEL ",":",null,{"$f":"CARATULA!G26","v":0},null,null,null,null,null,null,null,null,null,null,null,null,null,null,null,null,null,null,null,null,null,null,null,null,null,null,null,null,null,"N° TOTAL APROBADOS",null,null,null,null,null,null,{"$f":"COUNTIF(AY19:AY63,\">=51\")","v":0}]
[null,null,"AÑO DE ESCOLARIDAD",":",null,{"$f":"CONCATENATE(CARATULA!G28,\" \",CARATULA!H28)","v":" "},null,null,null,null,null,null,null,null,null,null,null,null,null,null,null,"FIN DE BIMESTRE ",null,null,null,null,null,null,":","2018-06-29",null,null,null,null,null,"N° TOTAL REPROBADOS",null,null,null,null,null,null,{"$f":"COUNTIFS(AY19:AY63,\">=1\",AY19:AY63,\"<=50\")","v":0},null,null,null,null,null,null,null,{"$f":"AD8-AD10","v":16}]
[null,null,"DIRECTOR/A",":",null,{"$f":"CARATULA!G22","v":0}]
[null,null,"MAESTRO/A",":",null,{"$f":"CARATULA!G24","v":0},null,null,null,null,null,null,null,null,null,null,null,null,null,null,null,"FECHA ACTUAL",null,null,null,null,null,null,":",{"$f":"TODAY()","v":"2018-06-13"}]
[{"$f":"COUNTIF(AY19:AY63,¨>=50)","v":0},null,"CAMPO ",":",null,{"$f":"CARATULA!G30","v":0}]
[null,null,"ÁREA",":",null,{"$f":"CARATULA!G32","v":0}]
[]
[null,null,null,"EVALUACIÓN MAESTRA(O)",null,null,null,null,null,null,null,null,null,null,null,null,null,null,null,null,null,null,null,null,null,null,null,null,null,null,null,null,null,null,null,null,null,null,null,null,null,null,null,null,null,null,null,null,"AUTO EVALUACIÓN ESTUDIANTE ",null," TOTAL BIMESTRAL","SITUACIÓN BIMESTRAL"]
[null,null,null,"DIMENSIONES ",null,null,null,null,null,null,null,null,null,null,null,null,null,null,null,null,null,null,null,null,null,null,null,null,null,null,null,null,null,null,null,null,null,null,null,null,null,null,null,null,null,null,null,null,"DIMENSIONES "]
[null,null,null,"SER -10",null,null,null,null,null,null,"SABER - 35",null,null,null,null,null,null,null,null,null,null,null,null,null,null,null,"HACER - 35",null,null,null,null,null,null,null,null,null,null,null,null,null,null,null,"DECIDIR - 10 ",null,null,null,null,null,"SER - 5","DECIDIR - 5"]
[null,null,null,"CRITERIOS DE EVALUACIÓN  ",null,null,null,null,null,"VALORACIÓN 10 PUN.",null,null,null,null,null,null,null,null,null,null,null,null,null,null,null,"VALORACIÓN 35 PUN.",null,null,null,null,null,null,null,null,null,null,null,null,null,null,null,"VALORACIÓN 35 PUN.",null,null,null,null,null,"VALORACIÓN 10 PUN."]
[null,"N ","NOMBRES Y APELLIDOS ","ACTIVIDADES"]
[null,1,{"$f":"'C. FILIACION'!C14","v":0},null,null,null,null,null,null,{"$f":"IFERROR((SUM(E19:I19)/(COUNT(E19:I19))),0)","v":0},null,null,null,null,null,null,null,null,null,null,null,null,null,null,null,{"$f":"IFERROR(((SUM(K19:Y19))/(COUNT(K19:Y19))),0)","v":0},null,null,null,null,null,null,null,null,null,null,null,null,null,null,null,{"$f":"IFERROR(((SUM(AA19:AO19))/(COUNT(AA19:AO19))),0)","v":0},null,null,null,null,null,{"$f":"IFERROR(((SUM(AQ19:AU19))/(COUNT(AQ19:AU19))),0)","v":0},null,null,{"$f":"ROUND((SUM(J19,Z19,AP19,AV19,AW19,AX19)),0)","v":0},{"$f":"IF(AY19=0,\"\",(IF(AY19>=51,\"APROBADO\",\"REPROBADO\")))","v":""}]
[null,2,{"$f":"'C. FILIACION'!C15","v":0},null,null,null,null,null,null,{"$f":"IFERROR((SUM(E20:I20)/(COUNT(E20:I20))),0)","v":0},null,null,null,null,null,null,null,null,null,null,null,null,null,null,null,0,null,null,null,null,null,null,null,null,null,null,null,null,null,null,null,{"$f":"IFERROR(((SUM(AA20:AO20))/(COUNT(AA20:AO20))),0)","v":0},null,null,null,null,null,{"$f":"IFERROR(((SUM(AQ20:AU20))/(COUNT(AQ20:AU20))),0)","v":0},null,null,{"$f":"ROUND((SUM(J20,Z20,AP20,AV20,AW20,AX20)),0)","v":0},""]
[null,3,{"$f":"'C. FILIACION'!C16","v":0},null,null,null,null,null,null,0,null,null,null,null,null,null,null,null,null,null,null,null,null,null,null,0,null,null,null,null,null,null,null,null,null,null,null,null,null,null,null,0,null,null,null,null,null,0,null,null,0,""]
[null,4,{"$f":"'C. FILIACION'!C17","v":0},null,null,null,null,null,null,0,null,null,null,null,null,null,null,null,null,null,null,null,null,null,null,0,null,null,null,null,null,null,null,null,null,null,null,null,null,null,null,0,null,null,null,null,null,0,null,null,0,""]
[null,5,{"$f":"'C. FILIACION'!C18","v":0},null,null,null,null,null,null,0,null,null,null,null,null,null,null,null,null,null,null,null,null,null,null,0,null,null,null,null,null,null,null,null,null,null,null,null,null,null,null,0,null,null,null,null,null,0,null,null,0,""]
[null,6,{"$f":"'C. FILIACION'!C19","v":0},null,null,null,null,null,null,0,null,null,null,null,null,null,null,null,null,null,null,null,null,null,null,0,null,null,null,null,null,null,null,null,null,null,null,null,null,null,null,0,null,null,null,null,null,0,null,null,0,""]
[null,7,{"$f":"'C. FILIACION'!C20","v":0},null,null,null,null,null,null,0,null,null,null,null,null,null,null,null,null,null,null,null,null,null,null,0,null,null,null,null,null,null,null,null,null,null,null,null,null,null,null,0,null,null,null,null,null,0,null,null,0,""]
[null,8,{"$f":"'C. FILIACION'!C21","v":0},null,null,null,null,null,null,0,null,null,null,null,null,null,null,null,null,null,null,null,null,null,null,0,null,null,null,null,null,null,null,null,null,null,null,null,null,null,null,0,null,null,null,null,null,0,null,null,0,""]
[null,9,{"$f":"'C. FILIACION'!C22","v":0},null,null,null,null,null,null,0,null,null,null,null,null,null,null,null,null,null,null,null,null,null,null,0,null,null,null,null,null,null,null,null,null,null,null,null,null,null,null,0,null,null,null,null,null,0,null,null,0,""]
[null,10,{"$f":"'C. FILIACION'!C23","v":0},null,null,null,null,null,null,0,null,null,null,null,null,null,null,null,null,null,null,null,null,null,null,0,null,null,null,null,null,null,null,null,null,null,null,null,null,null,null,0,null,null,null,null,null,0,null,null,0,""]
[null,11,{"$f":"'C. FILIACION'!C24","v":0},null,null,null,null,null,null,0,null,null,null,null,null,null,null,null,null,null,null,null,null,null,null,0,null,null,null,null,null,null,null,null,null,null,null,null,null,null,null,0,null,null,null,null,null,0,null,null,0,""]
[null,12,{"$f":"'C. FILIACION'!C25","v":0},null,null,null,null,null,null,0,null,null,null,null,null,null,null,null,null,null,null,null,null,null,null,0,null,null,null,null,null,null,null,null,null,null,null,null,null,null,null,0,null,null,null,null,null,0,null,null,0,""]
[null,13,{"$f":"'C. FILIACION'!C26","v":0},null,null,null,null,null,null,0,null,null,null,null,null,null,null,null,null,null,null,null,null,null,null,0,null,null,null,null,null,null,null,null,null,null,null,null,null,null,null,0,null,null,null,null,null,0,null,null,0,""]
[null,14,{"$f":"'C. FILIACION'!C27","v":0},null,null,null,null,null,null,0,null,null,null,null,null,null,null,null,null,null,null,null,null,null,null,0,null,null,null,null,null,null,null,null,null,null,null,null,null,null,null,0,null,null,null,null,null,0,null,null,0,""]
[null,15,{"$f":"'C. FILIACION'!C28","v":0},null,null,null,null,null,null,0,null,null,null,null,null,null,null,null,null,null,null,null,null,null,null,0,null,null,null,null,null,null,null,null,null,null,null,null,null,null,null,0,null,null,null,null,null,0,null,null,0,""]
[null,16,{"$f":"'C. FILIACION'!C29","v":0},null,null,null,null,null,null,0,null,null,null,null,null,null,null,null,null,null,null,null,null,null,null,0,null,null,null,null,null,null,null,null,null,null,null,null,null,null,null,0,null,null,null,null,null,0,null,null,0,""]
[null,17,{"$f":"'C. FILIACION'!C30","v":0},null,null,null,null,null,null,0,null,null,null,null,null,null,null,null,null,null,null,null,null,null,null,0,null,null,null,null,null,null,null,null,null,null,null,null,null,null,null,0,null,null,null,null,null,0,null,null,0,""]
[null,18,{"$f":"'C. FILIACION'!C31","v":0},null,null,null,null,null,null,0,null,null,null,null,null,null,null,null,null,null,null,null,null,null,null,0,null,null,null,null,null,null,null,null,null,null,null,null,null,null,null,0,null,null,null,null,null,0,null,null,0,""]
[null,19,{"$f":"'C. FILIACION'!C32","v":0},null,null,null,null,null,null,0,null,null,null,null,null,null,null,null,null,null,null,null,null,null,null,0,null,null,null,null,null,null,null,null,null,null,null,null,null,null,null,0,null,null,null,null,null,0,null,null,0,""]
[null,20,{"$f":"'C. FILIACION'!C33","v":0},null,null,null,null,null,null,0,null,null,null,null,null,null,null,null,null,null,null,null,null,null,null,0,null,null,null,null,null,null,null,null,null,null,null,null,null,null,null,0,null,null,null,null,null,0,null,null,0,""]
[null,21,{"$f":"'C. FILIACION'!C34","v":0},null,null,null,null,null,null,0,null,null,null,null,null,null,null,null,null,null,null,null,null,null,null,0,null,null,null,null,null,null,null,null,null,null,null,null,null,null,null,0,null,null,null,null,null,0,null,null,0,""]
[null,22,{"$f":"'C. FILIACION'!C35","v":0},null,null,null,null,null,null,0,null,null,null,null,null,null,null,null,null,null,null,null,null,null,null,0,null,null,null,null,null,null,null,null,null,null,null,null,null,null,null,0,null,null,null,null,null,0,null,null,0,""]
[null,23,{"$f":"'C. FILIACION'!C36","v":0},null,null,null,null,null,null,0,null,null,null,null,null,null,null,null,null,null,null,null,null,null,null,0,null,null,null,null,null,null,null,null,null,null,null,null,null,null,null,0,null,null,null,null,null,0,null,null,0,""]
[null,24,{"$f":"'C. FILIACION'!C37","v":0},null,null,null,null,null,null,0,null,null,null,null,null,null,null,null,null,null,null,null,null,null,null,0,null,null,null,null,null,null,null,null,null,null,null,null,null,null,null,0,null,null,null,null,null,0,null,null,0,""]
[null,25,{"$f":"'C. FILIACION'!C38","v":0},null,null,null,null,null,null,0,null,null,null,null,null,null,null,null,null,null,null,null,null,null,null,0,null,null,null,null,null,null,null,null,null,null,null,null,null,null,null,0,null,null,null,null,null,0,null,null,0,""]
[null,26,{"$f":"'C. FILIACION'!C39","v":0},null,null,null,null,null,null,0,null,null,null,null,null,null,null,null,null,null,null,null,null,null,null,0,null,null,null,null,null,null,null,null,null,null,null,null,null,null,null,0,null,null,null,null,null,0,null,null,0,""]
[null,27,{"$f":"'C. FILIACION'!C40","v":0},null,null,null,null,null,null,0,null,null,null,null,null,null,null,null,null,null,null,null,null,null,null,0,null,null,null,null,null,null,null,null,null,null,null,null,null,null,null,0,null,null,null,null,null,0,null,null,0,""]
[null,28,{"$f":"'C. FILIACION'!C41","v":0},null,null,null,null,null,null,0,null,null,null,null,null,null,null,null,null,null,null,null,null,null,null,0,null,null,null,null,null,null,null,null,null,null,null,null,null,null,null,0,null,null,null,null,null,0,null,null,0,""]
[null,29,{"$f":"'C. FILIACION'!C42","v":0},null,null,null,null,null,null,0,null,null,null,null,null,null,null,null,null,null,null,null,null,null,null,0,null,null,null,null,null,null,null,null,null,null,null,null,null,null,null,0,null,null,null,null,null,0,null,null,0,""]
[null,30,{"$f":"'C. FILIACION'!C43","v":0},null,null,null,null,null,null,0,null,null,null,null,null,null,null,null,null,null,null,null,null,null,null,0,null,null,null,null,null,null,null,null,null,null,null,null,null,null,null,0,null,null,null,null,null,0,null,null,0,""]
[null,31,{"$f":"'C. FILIACION'!C44","v":0},null,null,null,null,null,null,0,null,null,null,null,null,null,null,null,null,null,null,null,null,null,null,0,null,null,null,null,null,null,null,null,null,null,null,null,null,null,null,0,null,null,null,null,null,0,null,null,0,""]
[null,32,{"$f":"'C. FILIACION'!C45","v":0},null,null,null,null,null,null,0,null,null,null,null,null,null,null,null,null,null,null,null,null,null,null,0,null,null,null,null,null,null,null,null,null,null,null,null,null,null,null,0,null,null,null,null,null,0,null,null,0,""]
[null,33,{"$f":"'C. FILIACION'!C46","v":0},null,null,null,null,null,null,0,null,null,null,null,null,null,null,null,null,null,null,null,null,null,null,0,null,null,null,null,null,null,null,null,null,null,null,null,null,null,null,0,null,null,null,null,null,0,null,null,0,""]
[null,34,{"$f":"'C. FILIACION'!C47","v":0},null,null,null,null,null,null,0,null,null,null,null,null,null,null,null,null,null,null,null,null,null,null,0,null,null,null,null,null,null,null,null,null,null,null,null,null,null,null,0,null,null,null,null,null,0,null,null,0,""]
[null,35,{"$f":"'C. FILIACION'!C48","v":0},null,null,null,null,null,null,0,null,null,null,null,null,null,null,null,null,null,null,null,null,null,null,0,null,null,null,null,null,null,null,null,null,null,null,null,null,null,null,0,null,null,null,null,null,0,null,null,0,""]
[null,36,{"$f":"'C. FILIACION'!C49","v":0},null,null,null,null,null,null,0,null,null,null,null,null,null,null,null,null,null,null,null,null,null,null,0,null,null,null,null,null,null,null,null,null,null,null,null,null,null,null,0,null,null,null,null,null,0,null,null,0,""]
[null,37,{"$f":"'C. FILIACION'!C50","v":0},null,null,null,null,null,null,0,null,null,null,null,null,null,null,null,null,null,null,null,null,null,null,0,null,null,null,null,null,null,null,null,null,null,null,null,null,null,null,0,null,null,null,null,null,0,null,null,0,""]
[null,38,{"$f":"'C. FILIACION'!C51","v":0},null,null,null,null,null,null,0,null,null,null,null,null,null,null,null,null,null,null,null,null,null,null,0,null,null,null,null,null,null,null,null,null,null,null,null,null,null,null,0,null,null,null,null,null,0,null,null,0,""]
[null,39,{"$f":"'C. FILIACION'!C52","v":0},null,null,null,null,null,null,0,null,null,null,null,null,null,null,null,null,null,null,null,null,null,null,0,null,null,null,null,null,null,null,null,null,null,null,null,null,null,null,0,null,null,null,null,null,0,null,null,0,""]
[null,40,{"$f":"'C. FILIACION'!C53","v":0},null,null,null,null,null,null,0,null,null,null,null,null,null,null,null,null,null,null,null,null,null,null,0,null,null,null,null,null,null,null,null,null,null,null,null,null,null,null,0,null,null,null,null,null,0,null,null,0,""]
[null,41,{"$f":"'C. FILIACION'!C54","v":0},null,null,null,null,null,null,0,null,null,null,null,null,null,null,null,null,null,null,null,null,null,null,0,null,null,null,null,null,null,null,null,null,null,null,null,null,null,null,0,null,null,null,null,null,0,null,null,0,""]
[null,42,{"$f":"'C. FILIACION'!C55","v":0},null,null,null,null,null,null,0,null,null,null,null,null,null,null,null,null,null,null,null,null,null,null,0,null,null,null,null,null,null,null,null,null,null,null,null,null,null,null,0,null,null,null,null,null,0,null,null,0,""]
[null,43,{"$f":"'C. FILIACION'!C56","v":0},null,null,null,null,null,null,0,null,null,null,null,null,null,null,null,null,null,null,null,null,null,null,0,null,null,null,null,null,null,null,null,null,null,null,null,null,null,null,0,null,null,null,null,null,0,null,null,0,""]
[null,44,{"$f":"'C. FILIACION'!C57","v":0},null,null,null,null,null,null,0,null,null,null,null,null,null,null,null,null,null,null,null,null,null,null,0,null,null,null,null,null,null,null,null,null,null,null,null,null,null,null,0,null,null,null,null,null,0,null,null,0,""]
[null,45,{"$f":"'C. FILIACION'!C58","v":0},null,null,null,null,null,null,0,null,null,null,null,null,null,null,null,null,null,null,null,null,null,null,0,null,null,null,null,null,null,null,null,null,null,null,null,null,null,null,0,null,null,null,null,null,0,null,null,0,""]
[]
[]
[]
[]
[null,null,null,null,null,null,null,null,{"$f":"CARATULA!G22","v":0},null,null,null,null,null,null,null,null,null,null,null,null,null,null,null,null,null,null,null,null,null,{"$f":"CARATULA!G24","v":0}]

{"sheet":"ASIS. 3° B","index":8,"n_rows":70,"n_cols":34,"rows_kept":70,"cut":false,"hidden":false,"merged":[[1,1,2,33],[3,1,3,33],[4,24,4,29],[4,30,4,32],[6,24,6,29],[6,30,6,32],[17,2,17,3],[12,1,13,1],[12,2,13,3],[12,4,12,28],[8,24,8,29],[12,29,12,32],[8,30,8,32],[12,33,13,33],[14,2,14,3],[15,2,15,3],[16,2,16,3],[40,2,40,3],[29,2,29,3],[18,2,18,3],[19,2,19,3],[20,2,20,3],[21,2,21,3],[22,2,22,3],[23,2,23,3],[24,2,24,3],[25,2,25,3],[26,2,26,3],[27,2,27,3],[28,2,28,3],[35,2,35,3],[36,2,36,3],[37,2,37,3],[38,2,38,3],[41,2,41,3],[39,2,39,3],[30,2,30,3],[31,2,31,3],[32,2,32,3],[33,2,33,3],[34,2,34,3],[62,20,62,29],[54,2,54,3],[55,2,55,3],[56,2,56,3],[57,2,57,3],[58,2,58,3],[62,4,62,14],[53,2,53,3],[42,2,42,3],[43,2,43,3],[44,2,44,3],[45,2,45,3],[46,2,46,3],[47,2,47,3],[48,2,48,3],[49,2,49,3],[50,2,50,3],[51,2,51,3],[52,2,52,3]]}
[]
[null,"REGISTRO DE ASISTENCIA 3⁰ BIMESTRE "]
[]
[]
[null,null,"UNIDAD EDUCATIVA ",":",{"$f":"CARATULA!G20","v":0},null,null,null,null,null,null,null,null,null,null,null,null,null,null,null,null,null,null,null,"INICIO DE BIMESTRE ",null,null,null,null,null,"2018-07-02"]
[null,null,"NIVEL ",":",{"$f":"CARATULA!G26","v":0}]
[null,null,"AÑO DE ESCOLARIDAD",":",{"$f":"CONCATENATE(CARATULA!G28,\" \",CARATULA!H28)","v":" "},null,null,null,null,null,null,null,null,null,null,null,null,null,null,null,null,null,null,null,"FIN DE BIMESTRE ",null,null,null,null,null,"2018-09-21"]
[null,null,"DIRECTOR/A",":",{"$f":"CARATULA!G22","v":0}]
[null,null,"MAESTRO/A",":",{"$f":"CARATULA!G24","v":0},null,null,null,null,null,null,null,null,null,null,null,null,null,null,null,null,null,null,null,"FECHA ACTUAL ",null,null,null,null,null,{"$f":"TODAY()","v":"2018-06-13"}]
[null,null,"CAMPO ",":",{"$f":"CARATULA!G30","v":0}]
[null,null,"ÁREA",":",{"$f":"CARATULA!G32","v":0}]
[]
[null,"N","APELLIDOS Y NOMBRES ",null," 3ER BIMESTRE",null,null,null,null,null,null,null,null,null,null,null,null,null,null,null,null,null,null,null,null,null,null,null,null,"TOTALES ",null,null,null," DÍAS TRABAJADOS "]
[null,null,null,null,null,null,null,null,null,null,null,null,null,null,null,null,null,null,null,null,null,null,null,null,null,null,null,null,null,"ASISTENCIAS (A)","FALTAS (F)","RETRASOS (R)","LICENCIAS (L)"]
[null,1,{"$f":"'C. FILIACION'!C14","v":0},null,null,null,null,null,null,null,null,null,null,null,null,null,null,null,null,null,null,null,null,null,null,null,null,null,null,{"$f":"IF(COUNTIF(E15:AC15,\"A\")=0,\"\",COUNTIF(E15:AC15,\"A\"))","v":""},{"$f":"IF(COUNTIF(E15:AC15,\"F\")=0,\"\",COUNTIF(E15:AC15,\"F\"))","v":""},{"$f":"IF(COUNTIF(E15:AC15,\"R\")=0,\"\",COUNTIF(E15:AC15,\"R\"))","v":""},{"$f":"IF(COUNTIF(E15:AC15,\"L\")=0,\"\",COUNTIF(E15:AC15,\"L\"))","v":""},{"$f":"IF((IF(AD15=\"\",0,AD15)+IF(AF15=\"\",0,AF15))=0,\"\",(IF(AD15=\"\",0,AD15)+IF(AF15=\"\",0,AF15)))","v":""}]
[null,2,{"$f":"'C. FILIACION'!C15","v":0},null,null,null,null,null,null,null,null,null,null,null,null,null,null,null,null,null,null,null,null,null,null,null,null,null,null,{"$f":"IF(COUNTIF(E16:AC16,\"A\")=0,\"\",COUNTIF(E16:AC16,\"A\"))","v":""},{"$f":"IF(COUNTIF(E16:AC16,\"F\")=0,\"\",COUNTIF(E16:AC16,\"F\"))","v":""},{"$f":"IF(COUNTIF(E16:AC16,\"R\")=0,\"\",COUNTIF(E16:AC16,\"R\"))","v":""},{"$f":"IF(COUNTIF(E16:AC16,\"L\")=0,\"\",COUNTIF(E16:AC16,\"L\"))","v":""},{"$f":"IF((IF(AD16=\"\",0,AD16)+IF(AF16=\"\",0,AF16))=0,\"\",(IF(AD16=\"\",0,AD16)+IF(AF16=\"\",0,AF16)))","v":""}]
[null,3,{"$f":"'C. FILIACION'!C16","v":0},null,null,null,null,null,null,null,null,null,null,null,null,null,null,null,null,null,null,null,null,null,null,null,null,null,null,"","","","",""]
[null,4,{"$f":"'C. FILIACION'!C17","v":0},null,null,null,null,null,null,null,null,null,null,null,null,null,null,null,null,null,null,null,null,null,null,null,null,null,null,"","","","",""]
[null,5,{"$f":"'C. FILIACION'!C18","v":0},null,null,null,null,null,null,null,null,null,null,null,null,null,null,null,null,null,null,null,null,null,null,null,null,null,null,"","","","",""]
[null,6,{"$f":"'C. FILIACION'!C19","v":0},null,null,null,null,null,null,null,null,null,null,null,null,null,null,null,null,null,null,null,null,null,null,null,null,null,null,"","","","",""]
[null,7,{"$f":"'C. FILIACION'!C20","v":0},null,null,null,null,null,null,null,null,null,null,null,null,null,null,null,null,null,null,null,null,null,null,null,null,null,null,"","","","",""]
[null,8,{"$f":"'C. FILIACION'!C21","v":0},null,null,null,null,null,null,null,null,null,null,null,null,null,null,null,null,null,null,null,null,null,null,null,null,null,null,"","","","",""]
[null,9,{"$f":"'C. FILIACION'!C22","v":0},null,null,null,null,null,null,null,null,null,null,null,null,null,null,null,null,null,null,null,null,null,null,null,null,null,null,"","","","",""]
[null,10,{"$f":"'C. FILIACION'!C23","v":0},null,null,null,null,null,null,null,null,null,null,null,null,null,null,null,null,null,null,null,null,null,null,null,null,null,null,"","","","",""]
[null,11,{"$f":"'C. FILIACION'!C24","v":0},null,null,null,null,null,null,null,null,null,null,null,null,null,null,null,null,null,null,null,null,null,null,null,null,null,null,"","","","",""]
[null,12,{"$f":"'C. FILIACION'!C25","v":0},null,null,null,null,null,null,null,null,null,null,null,null,null,null,null,null,null,null,null,null,null,null,null,null,null,null,"","","","",""]
[null,13,{"$f":"'C. FILIACION'!C26","v":0},null,null,null,null,null,null,null,null,null,null,null,null,null,null,null,null,null,null,null,null,null,null,null,null,null,null,"","","","",""]
[null,14,{"$f":"'C. FILIACION'!C27","v":0},null,null,null,null,null,null,null,null,null,null,null,null,null,null,null,null,null,null,null,null,null,null,null,null,null,null,"","","","",""]
[null,15,{"$f":"'C. FILIACION'!C28","v":0},null,null,null,null,null,null,null,null,null,null,null,null,null,null,null,null,null,null,null,null,null,null,null,null,null,null,"","","","",""]
[null,16,{"$f":"'C. FILIACION'!C29","v":0},null,null,null,null,null,null,null,null,null,null,null,null,null,null,null,null,null,null,null,null,null,null,null,null,null,null,"","","","",""]
[null,17,{"$f":"'C. FILIACION'!C30","v":0},null,null,null,null,null,null,null,null,null,null,null,null,null,null,null,null,null,null,null,null,null,null,null,null,null,null,"","","","",""]
[null,18,{"$f":"'C. FILIACION'!C31","v":0},null,null,null,null,null,null,null,null,null,null,null,null,null,null,null,null,null,null,null,null,null,null,null,null,null,null,"","","","",""]
[null,19,{"$f":"'C. FILIACION'!C32","v":0},null,null,null,null,null,null,null,null,null,null,null,null,null,null,null,null,null,null,null,null,null,null,null,null,null,null,"","","","",""]
[null,20,{"$f":"'C. FILIACION'!C33","v":0},null,null,null,null,null,null,null,null,null,null,null,null,null,null,null,null,null,null,null,null,null,null,null,null,null,null,"","","","",""]
[null,21,{"$f":"'C. FILIACION'!C34","v":0},null,null,null,null,null,null,null,null,null,null,null,null,null,null,null,null,null,null,null,null,null,null,null,null,null,null,"","","","",""]
[null,22,{"$f":"'C. FILIACION'!C35","v":0},null,null,null,null,null,null,null,null,null,null,null,null,null,null,null,null,null,null,null,null,null,null,null,null,null,null,"","","","",""]
[null,23,{"$f":"'C. FILIACION'!C36","v":0},null,null,null,null,null,null,null,null,null,null,null,null,null,null,null,null,null,null,null,null,null,null,null,null,null,null,"","","","",""]
[null,24,{"$f":"'C. FILIACION'!C37","v":0},null,null,null,null,null,null,null,null,null,null,null,null,null,null,null,null,null,null,null,null,null,null,null,null,null,null,"","","","",""]
[null,25,{"$f":"'C. FILIACION'!C38","v":0},null,null,null,null,null,null,null,null,null,null,null,null,null,null,null,null,null,null,null,null,null,null,null,null,null,null,"","","","",""]
[null,26,{"$f":"'C. FILIACION'!C39","v":0},null,null,null,null,null,null,null,null,null,null,null,null,null,null,null,null,null,null,null,null,null,null,null,null,null,null,"","","","",""]
[null,27,{"$f":"'C. FILIACION'!C40","v":0},null,null,null,null,null,null,null,null,null,null,null,null,null,null,null,null,null,null,null,null,null,null,null,null,null,null,"","","","",""]
[null,28,{"$f":"'C. FILIACION'!C41","v":0},null,null,null,null,null,null,null,null,null,null,null,null,null,null,null,null,null,null,null,null,null,null,null,null,null,null,"","","","",""]
[null,29,{"$f":"'C. FILIACION'!C42","v":0},null,null,null,null,null,null,null,null,null,null,null,null,null,null,null,null,null,null,null,null,null,null,null,null,null,null,"","","","",""]
[null,30,{"$f":"'C. FILIACION'!C43","v":0},null,null,null,null,null,null,null,null,null,null,null,null,null,null,null,null,null,null,null,null,null,null,null,null,null,null,"","","","",""]
[null,31,{"$f":"'C. FILIACION'!C44","v":0},null,null,null,null,null,null,null,null,null,null,null,null,null,null,null,null,null,null,null,null,null,null,null,null,null,null,"","","","",""]
[null,32,{"$f":"'C. FILIACION'!C45","v":0},null,null,null,null,null,null,null,null,null,null,null,null,null,null,null,null,null,null,null,null,null,null,null,null,null,null,"","","","",""]
[null,33,{"$f":"'C. FILIACION'!C46","v":0},null,null,null,null,null,null,null,null,null,null,null,null,null,null,null,null,null,null,null,null,null,null,null,null,null,null,"","","","",""]
[null,34,{"$f":"'C. FILIACION'!C47","v":0},null,null,null,null,null,null,null,null,null,null,null,null,null,null,null,null,null,null,null,null,null,null,null,null,null,null,"","","","",""]
[null,35,{"$f":"'C. FILIACION'!C48","v":0},null,null,null,null,null,null,null,null,null,null,null,null,null,null,null,null,null,null,null,null,null,null,null,null,null,null,"","","","",""]
[null,36,{"$f":"'C. FILIACION'!C49","v":0},null,null,null,null,null,null,null,null,null,null,null,null,null,null,null,null,null,null,null,null,null,null,null,null,null,null,"","","","",""]
[null,37,{"$f":"'C. FILIACION'!C50","v":0},null,null,null,null,null,null,null,null,null,null,null,null,null,null,null,null,null,null,null,null,null,null,null,null,null,null,"","","","",""]
[null,38,{"$f":"'C. FILIACION'!C51","v":0},null,null,null,null,null,null,null,null,null,null,null,null,null,null,null,null,null,null,null,null,null,null,null,null,null,null,"","","","",""]
[null,39,{"$f":"'C. FILIACION'!C52","v":0},null,null,null,null,null,null,null,null,null,null,null,null,null,null,null,null,null,null,null,null,null,null,null,null,null,null,"","","","",""]
[null,40,{"$f":"'C. FILIACION'!C53","v":0},null,null,null,null,null,null,null,null,null,null,null,null,null,null,null,null,null,null,null,null,null,null,null,null,null,null,"","","","",""]
[null,41,{"$f":"'C. FILIACION'!C54","v":0},null,null,null,null,null,null,null,null,null,null,null,null,null,null,null,null,null,null,null,null,null,null,null,null,null,null,"","","","",""]
[null,42,{"$f":"'C. FILIACION'!C55","v":0},null,null,null,null,null,null,null,null,null,null,null,null,null,null,null,null,null,null,null,null,null,null,null,null,null,null,"","","","",""]
[null,43,{"$f":"'C. FILIACION'!C56","v":0},null,null,null,null,null,null,null,null,null,null,null,null,null,null,null,null,null,null,null,null,null,null,null,null,null,null,"","","","",""]
[null,44,{"$f":"'C. FILIACION'!C57","v":0},null,null,null,null,null,null,null,null,null,null,null,null,null,null,null,null,null,null,null,null,null,null,null,null,null,null,"","","","",""]
[null,45,{"$f":"'C. FILIACION'!C58","v":0},null,null,null,null,null,null,null,null,null,null,null,null,null,null,null,null,null,null,null,null,null,null,null,null,null,null,"","","","",""]
[]
[]
[]
[null,null,null,null,{"$f":"CARATULA!G22","v":0},null,null,null,null,null,null,null,null,null,null,null,null,null,null,null,{"$f":"CARATULA!G24","v":0}]
[]
[]
[]
[null,null,"INSCRITO "]
[null,null,"NO INCORPORADO"]
[null,null,"RETIRO O ABANDONO"]
[null,null,"EFECTIVO"]

{"sheet":"VAL. 3° B","index":9,"n_rows":68,"n_cols":52,"rows_kept":68,"cut":false,"hidden":false,"merged":[[2,1,3,51],[5,29,5,33],[5,35,5,41],[5,42,5,43],[5,44,11,49],[5,50,6,51],[6,35,6,41],[6,42,6,43],[7,50,11,51],[9,29,9,33],[13,51,17,51],[14,3,14,47],[14,48,14,49],[15,3,15,9],[15,10,15,25],[15,26,15,41],[15,42,15,47],[16,4,16,8],[16,9,17,9],[13,50,17,50],[16,26,16,30],[13,3,13,47],[13,48,13,49],[16,10,16,14],[16,15,16,19],[16,20,16,24],[19,2,19,3],[20,2,20,3],[16,42,16,46],[16,47,17,47],[25,2,25,3],[22,2,22,3],[23,2,23,3],[24,2,24,3],[21,2,21,3],[18,2,18,3],[13,1,16,2],[16,25,17,25],[16,31,16,35],[16,36,16,40],[16,41,17,41],[26,2,26,3],[39,2,39,3],[28,2,28,3],[29,2,29,3],[30,2,30,3],[31,2,31,3],[32,2,32,3],[33,2,33,3],[34,2,34,3],[35,2,35,3],[36,2,36,3],[37,2,37,3],[38,2,38,3],[27,2,27,3],[62,2,62,3],[51,2,51,3],[40,2,40,3],[41,2,41,3],[42,2,42,3],[43,2,43,3],[44,2,44,3],[45,2,45,3],[46,2,46,3],[47,2,47,3],[48,2,48,3],[49,2,49,3],[50,2,50,3],[57,2,57,3],[58,2,58,3],[59,2,59,3],[60,2,60,3],[61,2,61,3],[52,2,52,3],[53,2,53,3],[54,2,54,3],[55,2,55,3],[56,2,56,3],[65,48,65,49],[66,8,66,19],[66,30,66,42],[67,8,67,19],[67,30,67,42],[64,48,64,49],[16,48,17,48],[16,49,17,49],[7,29,7,33],[7,35,7,41],[7,42,7,43]]}
[]
[]
[null,"REGISTRO DE VALORACIÓN 3⁰ BIMESTRE"]
[]
[]
[null,null,"UNIDAD EDUCATIVA ",":",null,{"$f":"CARATULA!G20","v":0},null,null,null,null,null,null,null,null,null,null,null,null,null,null,null,"INICIO DE BIMESTRE ",null,null,null,null,null,null,":","2018-07-02",null,null,null,null,null,null,null,null,null,null,null,null,null,null,null,null,null,null,null,null,"DÍAS RESTANTES PARA FIN DE BIMESTRE "]
[null,null,"NIVEL ",":",null,{"$f":"CARATULA!G26","v":0},null,null,null,null,null,null,null,null,null,null,null,null,null,null,null,null,null,null,null,null,null,null,null,null,null,null,null,null,null,"N° TOTAL APROBADOS",null,null,null,null,null,null,{"$f":"COUNTIF(AY19:AY63,\">=51\")","v":0}]
[null,null,"AÑO DE ESCOLARIDAD",":",null,{"$f":"CONCATENATE(CARATULA!G28,\" \",CARATULA!H28)","v":" "},null,null,null,null,null,null,null,null,null,null,null,null,null,null,null,"FIN DE BIMESTRE ",null,null,null,null,null,null,":","2018-09-21",null,null,null,null,null,"N° TOTAL REPROBADOS",null,null,null,null,null,null,{"$f":"COUNTIFS(AY19:AY63,\">=1\",AY19:AY63,\"<=50\")","v":0},null,null,null,null,null,null,null,{"$f":"AD8-AD10","v":100}]
[null,null,"DIRECTOR/A",":",null,{"$f":"CARATULA!G22","v":0}]
[null,null,"MAESTRO/A",":",null,{"$f":"CARATULA!G24","v":0},null,null,null,null,null,null,null,null,null,null,null,null,null,null,null,"FECHA ACTUAL",null,null,null,null,null,null,":",{"$f":"TODAY()","v":"2018-06-13"}]
[{"$f":"COUNTIF(AY19:AY63,¨>=50)","v":0},null,"CAMPO ",":",null,{"$f":"CARATULA!G30","v":0}]
[null,null,"ÁREA",":",null,{"$f":"CARATULA!G32","v":0}]
[]
[null,null,null,"EVALUACIÓN MAESTRA(O)",null,null,null,null,null,null,null,null,null,null,null,null,null,null,null,null,null,null,null,null,null,null,null,null,null,null,null,null,null,null,null,null,null,null,null,null,null,null,null,null,null,null,null,null,"AUTO EVALUACIÓN ESTUDIANTE ",null,"TOTAL BIMESTRAL","SITUACIÓN BIMESTRAL"]
[null,null,null,"DIMENSIONES ",null,null,null,null,null,null,null,null,null,null,null,null,null,null,null,null,null,null,null,null,null,null,null,null,null,null,null,null,null,null,null,null,null,null,null,null,null,null,null,null,null,null,null,null,"DIMENSIONES "]
[null,null,null,"SER -10",null,null,null,null,null,null,"SABER - 35",null,null,null,null,null,null,null,null,null,null,null,null,null,null,null,"HACER - 35",null,null,null,null,null,null,null,null,null,null,null,null,null,null,null,"DECIDIR - 10 ",null,null,null,null,null,"SER - 5","DECIDIR - 5"]
[null,null,null,"CRITERIOS DE EVALUACIÓN  ",null,null,null,null,null,"VALORACIÓN 10 PUN.",null,null,null,null,null,null,null,null,null,null,null,null,null,null,null,"VALORACIÓN 35 PUN.",null,null,null,null,null,null,null,null,null,null,null,null,null,null,null,"VALORACIÓN 35 PUN.",null,null,null,null,null,"VALORACIÓN 10 PUN."]
[null,"N ","NOMBRES Y APELLIDOS ","ACTIVIDADES"]
[null,1,{"$f":"'C. FILIACION'!C14","v":0},null,null,null,null,null,null,{"$f":"IFERROR((SUM(E19:I19)/(COUNT(E19:I19))),0)","v":0},null,null,null,null,null,null,null,null,null,null,null,null,null,null,null,{"$f":"IFERROR(((SUM(K19:Y19))/(COUNT(K19:Y19))),0)","v":0},null,null,null,null,null,null,null,null,null,null,null,null,null,null,null,{"$f":"IFERROR(((SUM(AA19:AO19))/(COUNT(AA19:AO19))),0)","v":0},null,null,null,null,null,{"$f":"IFERROR(((SUM(AQ19:AU19))/(COUNT(AQ19:AU19))),0)","v":0},null,null,{"$f":"ROUND((SUM(J19,Z19,AP19,AV19,AW19,AX19)),0)","v":0},{"$f":"IF(AY19=0,\"\",(IF(AY19>=51,\"APROBADO\",\"REPROBADO\")))","v":""}]
[null,2,{"$f":"'C. FILIACION'!C15","v":0},null,null,null,null,null,null,{"$f":"IFERROR((SUM(E20:I20)/(COUNT(E20:I20))),0)","v":0},null,null,null,null,null,null,null,null,null,null,null,null,null,null,null,{"$f":"IFERROR(((SUM(K20:Y20))/(COUNT(K20:Y20))),0)","v":0},null,null,null,null,null,null,null,null,null,null,null,null,null,null,null,{"$f":"IFERROR(((SUM(AA20:AO20))/(COUNT(AA20:AO20))),0)","v":0},null,null,null,null,null,{"$f":"IFERROR(((SUM(AQ20:AU20))/(COUNT(AQ20:AU20))),0)","v":0},null,null,{"$f":"ROUND((SUM(J20,Z20,AP20,AV20,AW20,AX20)),0)","v":0},{"$f":"IF(AY20=0,\"\",(IF(AY20>=51,\"APROBADO\",\"REPROBADO\")))","v":""}]
[null,3,{"$f":"'C. FILIACION'!C16","v":0},null,null,null,null,null,null,0,null,null,null,null,null,null,null,null,null,null,null,null,null,null,null,0,null,null,null,null,null,null,null,null,null,null,null,null,null,null,null,0,null,null,null,null,null,0,null,null,0,""]
[null,4,{"$f":"'C. FILIACION'!C17","v":0},null,null,null,null,null,null,0,null,null,null,null,null,null,null,null,null,null,null,null,null,null,null,0,null,null,null,null,null,null,null,null,null,null,null,null,null,null,null,0,null,null,null,null,null,0,null,null,0,""]
[null,5,{"$f":"'C. FILIACION'!C18","v":0},null,null,null,null,null,null,0,null,null,null,null,null,null,null,null,null,null,null,null,null,null,null,0,null,null,null,null,null,null,null,null,null,null,null,null,null,null,null,0,null,null,null,null,null,0,null,null,0,""]
[null,6,{"$f":"'C. FILIACION'!C19","v":0},null,null,null,null,null,null,0,null,null,null,null,null,null,null,null,null,null,null,null,null,null,null,0,null,null,null,null,null,null,null,null,null,null,null,null,null,null,null,0,null,null,null,null,null,0,null,null,0,""]
[null,7,{"$f":"'C. FILIACION'!C20","v":0},null,null,null,null,null,null,0,null,null,null,null,null,null,null,null,null,null,null,null,null,null,null,0,null,null,null,null,null,null,null,null,null,null,null,null,null,null,null,0,null,null,null,null,null,0,null,null,0,""]
[null,8,{"$f":"'C. FILIACION'!C21","v":0},null,null,null,null,null,null,0,null,null,null,null,null,null,null,null,null,null,null,null,null,null,null,0,null,null,null,null,null,null,null,null,null,null,null,null,null,null,null,0,null,null,null,null,null,0,null,null,0,""]
[null,9,{"$f":"'C. FILIACION'!C22","v":0},null,null,null,null,null,null,0,null,null,null,null,null,null,null,null,null,null,null,null,null,null,null,0,null,null,null,null,null,null,null,null,null,null,null,null,null,null,null,0,null,null,null,null,null,0,null,null,0,""]
[null,10,{"$f":"'C. FILIACION'!C23","v":0},null,null,null,null,null,null,0,null,null,null,null,null,null,null,null,null,null,null,null,null,null,null,0,null,null,null,null,null,null,null,null,null,null,null,null,null,null,null,0,null,null,null,null,null,0,null,null,0,""]
[null,11,{"$f":"'C. FILIACION'!C24","v":0},null,null,null,null,null,null,0,null,null,null,null,null,null,null,null,null,null,null,null,null,null,null,0,null,null,null,null,null,null,null,null,null,null,null,null,null,null,null,0,null,null,null,null,null,0,null,null,0,""]
[null,12,{"$f":"'C. FILIACION'!C25","v":0},null,null,null,null,null,null,0,null,null,null,null,null,null,null,null,null,null,null,null,null,null,null,0,null,null,null,null,null,null,null,null,null,null,null,null,null,null,null,0,null,null,null,null,null,0,null,null,0,""]
[null,13,{"$f":"'C. FILIACION'!C26","v":0},null,null,null,null,null,null,0,null,null,null,null,null,null,null,null,null,null,null,null,null,null,null,0,null,null,null,null,null,null,null,null,null,null,null,null,null,null,null,0,null,null,null,null,null,0,null,null,0,""]
[null,14,{"$f":"'C. FILIACION'!C27","v":0},null,null,null,null,null,null,0,null,null,null,null,null,null,null,null,null,null,null,null,null,null,null,0,null,null,null,null,null,null,null,null,null,null,null,null,null,null,null,0,null,null,null,null,null,0,null,null,0,""]
[null,15,{"$f":"'C. FILIACION'!C28","v":0},null,null,null,null,null,null,0,null,null,null,null,null,null,null,null,null,null,null,null,null,null,null,0,null,null,null,null,null,null,null,null,null,null,null,null,null,null,null,0,null,null,null,null,null,0,null,null,0,""]
[null,16,{"$f":"'C. FILIACION'!C29","v":0},null,null,null,null,null,null,0,null,null,null,null,null,null,null,null,null,null,null,null,null,null,null,0,null,null,null,null,null,null,null,null,null,null,null,null,null,null,null,0,null,null,null,null,null,0,null,null,0,""]
[null,17,{"$f":"'C. FILIACION'!C30","v":0},null,null,null,null,null,null,0,null,null,null,null,null,null,null,null,null,null,null,null,null,null,null,0,null,null,null,null,null,null,null,null,null,null,null,null,null,null,null,0,null,null,null,null,null,0,null,null,0,""]
[null,18,{"$f":"'C. FILIACION'!C31","v":0},null,null,null,null,null,null,0,null,null,null,null,null,null,null,null,null,null,null,null,null,null,null,0,null,null,null,null,null,null,null,null,null,null,null,null,null,null,null,0,null,null,null,null,null,0,null,null,0,""]
[null,19,{"$f":"'C. FILIACION'!C32","v":0},null,null,null,null,null,null,0,null,null,null,null,null,null,null,null,null,null,null,null,null,null,null,0,null,null,null,null,null,null,null,null,null,null,null,null,null,null,null,0,null,null,null,null,null,0,null,null,0,""]
[null,20,{"$f":"'C. FILIACION'!C33","v":0},null,null,null,null,null,null,0,null,null,null,null,null,null,null,null,null,null,null,null,null,null,null,0,null,null,null,null,null,null,null,null,null,null,null,null,null,null,null,0,null,null,null,null,null,0,null,null,0,""]
[null,21,{"$f":"'C. FILIACION'!C34","v":0},null,null,null,null,null,null,0,null,null,null,null,null,null,null,null,null,null,null,null,null,null,null,0,null,null,null,null,null,null,null,null,null,null,null,null,null,null,null,0,null,null,null,null,null,0,null,null,0,""]
[null,22,{"$f":"'C. FILIACION'!C35","v":0},null,null,null,null,null,null,0,null,null,null,null,null,null,null,null,null,null,null,null,null,null,null,0,null,null,null,null,null,null,null,null,null,null,null,null,null,null,null,0,null,null,null,null,null,0,null,null,0,""]
[null,23,{"$f":"'C. FILIACION'!C36","v":0},null,null,null,null,null,null,0,null,null,null,null,null,null,null,null,null,null,null,null,null,null,null,0,null,null,null,null,null,null,null,null,null,null,null,null,null,null,null,0,null,null,null,null,null,0,null,null,0,""]
[null,24,{"$f":"'C. FILIACION'!C37","v":0},null,null,null,null,null,null,0,null,null,null,null,null,null,null,null,null,null,null,null,null,null,null,0,null,null,null,null,null,null,null,null,null,null,null,null,null,null,null,0,null,null,null,null,null,0,null,null,0,""]
[null,25,{"$f":"'C. FILIACION'!C38","v":0},null,null,null,null,null,null,0,null,null,null,null,null,null,null,null,null,null,null,null,null,null,null,0,null,null,null,null,null,null,null,null,null,null,null,null,null,null,null,0,null,null,null,null,null,0,null,null,0,""]
[null,26,{"$f":"'C. FILIACION'!C39","v":0},null,null,null,null,null,null,0,null,null,null,null,null,null,null,null,null,null,null,null,null,null,null,0,null,null,null,null,null,null,null,null,null,null,null,null,null,null,null,0,null,null,null,null,null,0,null,null,0,""]
[null,27,{"$f":"'C. FILIACION'!C40","v":0},null,null,null,null,null,null,0,null,null,null,null,null,null,null,null,null,null,null,null,null,null,null,0,null,null,null,null,null,null,null,null,null,null,null,null,null,null,null,0,null,null,null,null,null,0,null,null,0,""]
[null,28,{"$f":"'C. FILIACION'!C41","v":0},null,null,null,null,null,null,0,null,null,null,null,null,null,null,null,null,null,null,null,null,null,null,0,null,null,null,null,null,null,null,null,null,null,null,null,null,null,null,0,null,null,null,null,null,0,null,null,0,""]
[null,29,{"$f":"'C. FILIACION'!C42","v":0},null,null,null,null,null,null,0,null,null,null,null,null,null,null,null,null,null,null,null,null,null,null,0,null,null,null,null,null,null,null,null,null,null,null,null,null,null,null,0,null,null,null,null,null,0,null,null,0,""]
[null,30,{"$f":"'C. FILIACION'!C43","v":0},null,null,null,null,null,null,0,null,null,null,null,null,null,null,null,null,null,null,null,null,null,null,0,null,null,null,null,null,null,null,null,null,null,null,null,null,null,null,0,null,null,null,null,null,0,null,null,0,""]
[null,31,{"$f":"'C. FILIACION'!C44","v":0},null,null,null,null,null,null,0,null,null,null,null,null,null,null,null,null,null,null,null,null,null,null,0,null,null,null,null,null,null,null,null,null,null,null,null,null,null,null,0,null,null,null,null,null,0,null,null,0,""]
[null,32,{"$f":"'C. FILIACION'!C45","v":0},null,null,null,null,null,null,0,null,null,null,null,null,null,null,null,null,null,null,null,null,null,null,0,null,null,null,null,null,null,null,null,null,null,null,null,null,null,null,0,null,null,null,null,null,0,null,null,0,""]
[null,33,{"$f":"'C. FILIACION'!C46","v":0},null,null,null,null,null,null,0,null,null,null,null,null,null,null,null,null,null,null,null,null,null,null,0,null,null,null,null,null,null,null,null,null,null,null,null,null,null,null,0,null,null,null,null,null,0,null,null,0,""]
[null,34,{"$f":"'C. FILIACION'!C47","v":0},null,null,null,null,null,null,0,null,null,null,null,null,null,null,null,null,null,null,null,null,null,null,0,null,null,null,null,null,null,null,null,null,null,null,null,null,null,null,0,null,null,null,null,null,0,null,null,0,""]
[null,35,{"$f":"'C. FILIACION'!C48","v":0},null,null,null,null,null,null,0,null,null,null,null,null,null,null,null,null,null,null,null,null,null,null,0,null,null,null,null,null,null,null,null,null,null,null,null,null,null,null,0,null,null,null,null,null,0,null,null,0,""]
[null,36,{"$f":"'C. FILIACION'!C49","v":0},null,null,null,null,null,null,0,null,null,null,null,null,null,null,null,null,null,null,null,null,null,null,0,null,null,null,null,null,null,null,null,null,null,null,null,null,null,null,0,null,null,null,null,null,0,null,null,0,""]
[null,37,{"$f":"'C. FILIACION'!C50","v":0},null,null,null,null,null,null,0,null,null,null,null,null,null,null,null,null,null,null,null,null,null,null,0,null,null,null,null,null,null,null,null,null,null,null,null,null,null,null,0,null,null,null,null,null,0,null,null,0,""]
[null,38,{"$f":"'C. FILIACION'!C51","v":0},null,null,null,null,null,null,0,null,null,null,null,null,null,null,null,null,null,null,null,null,null,null,0,null,null,null,null,null,null,null,null,null,null,null,null,null,null,null,0,null,null,null,null,null,0,null,null,0,""]
[null,39,{"$f":"'C. FILIACION'!C52","v":0},null,null,null,null,null,null,0,null,null,null,null,null,null,null,null,null,null,null,null,null,null,null,0,null,null,null,null,null,null,null,null,null,null,null,null,null,null,null,0,null,null,null,null,null,0,null,null,0,""]
[null,40,{"$f":"'C. FILIACION'!C53","v":0},null,null,null,null,null,null,0,null,null,null,null,null,null,null,null,null,null,null,null,null,null,null,0,null,null,null,null,null,null,null,null,null,null,null,null,null,null,null,0,null,null,null,null,null,0,null,null,0,""]
[null,41,{"$f":"'C. FILIACION'!C54","v":0},null,null,null,null,null,null,0,null,null,null,null,null,null,null,null,null,null,null,null,null,null,null,0,null,null,null,null,null,null,null,null,null,null,null,null,null,null,null,0,null,null,null,null,null,0,null,null,0,""]
[null,42,{"$f":"'C. FILIACION'!C55","v":0},null,null,null,null,null,null,0,null,null,null,null,null,null,null,null,null,null,null,null,null,null,null,0,null,null,null,null,null,null,null,null,null,null,null,null,null,null,null,0,null,null,null,null,null,0,null,null,0,""]
[null,43,{"$f":"'C. FILIACION'!C56","v":0},null,null,null,null,null,null,0,null,null,null,null,null,null,null,null,null,null,null,null,null,null,null,0,null,null,null,null,null,null,null,null,null,null,null,null,null,null,null,0,null,null,null,null,null,0,null,null,0,""]
[null,44,{"$f":"'C. FILIACION'!C57","v":0},null,null,null,null,null,null,0,null,null,null,null,null,null,null,null,null,null,null,null,null,null,null,0,null,null,null,null,null,null,null,null,null,null,null,null,null,null,null,0,null,null,null,null,null,0,null,null,0,""]
[null,45,{"$f":"'C. FILIACION'!C58","v":0},null,null,null,null,null,null,0,null,null,null,null,null,null,null,null,null,null,null,null,null,null,null,0,null,null,null,null,null,null,null,null,null,null,null,null,null,null,null,0,null,null,null,null,null,0,null,null,0,""]
[]
[]
[]
[]
[null,null,null,null,null,null,null,null,{"$f":"CARATULA!G22","v":0},null,null,null,null,null,null,null,null,null,null,null,null,null,null,null,null,null,null,null,null,null,{"$f":"CARATULA!G24","v":0}]

{"sheet":"ASIS. 4° B","index":10,"n_rows":70,"n_cols":34,"rows_kept":70,"cut":false,"hidden":false,"merged":[[1,1,2,33],[3,1,3,33],[4,24,4,29],[4,30,4,32],[6,24,6,29],[6,30,6,32],[17,2,17,3],[12,1,13,1],[12,2,13,3],[12,4,12,28],[8,24,8,29],[12,29,12,32],[8,30,8,32],[12,33,13,33],[14,2,14,3],[15,2,15,3],[16,2,16,3],[40,2,40,3],[29,2,29,3],[18,2,18,3],[19,2,19,3],[20,2,20,3],[21,2,21,3],[22,2,22,3],[23,2,23,3],[24,2,24,3],[25,2,25,3],[26,2,26,3],[27,2,27,3],[28,2,28,3],[35,2,35,3],[36,2,36,3],[37,2,37,3],[38,2,38,3],[41,2,41,3],[39,2,39,3],[30,2,30,3],[31,2,31,3],[32,2,32,3],[33,2,33,3],[34,2,34,3],[62,20,62,29],[54,2,54,3],[55,2,55,3],[56,2,56,3],[57,2,57,3],[58,2,58,3],[62,4,62,14],[53,2,53,3],[42,2,42,3],[43,2,43,3],[44,2,44,3],[45,2,45,3],[46,2,46,3],[47,2,47,3],[48,2,48,3],[49,2,49,3],[50,2,50,3],[51,2,51,3],[52,2,52,3]]}
[]
[null,"REGISTRO DE ASISTENCIA 4⁰ BIMESTRE "]
[]
[]
[null,null,"UNIDAD EDUCATIVA ",":",{"$f":"CARATULA!G20","v":0},null,null,null,null,null,null,null,null,null,null,null,null,null,null,null,null,null,null,null,"INICIO DE BIMESTRE ",null,null,null,null,null,"2018-09-24"]
[null,null,"NIVEL ",":",{"$f":"CARATULA!G26","v":0}]
[null,null,"AÑO DE ESCOLARIDAD",":",{"$f":"CONCATENATE(CARATULA!G28,\" \",CARATULA!H28)","v":" "},null,null,null,null,null,null,null,null,null,null,null,null,null,null,null,null,null,null,null,"FIN DE BIMESTRE ",null,null,null,null,null,"2018-12-06"]
[null,null,"DIRECTOR/A",":",{"$f":"CARATULA!G22","v":0}]
[null,null,"MAESTRO/A",":",{"$f":"CARATULA!G24","v":0},null,null,null,null,null,null,null,null,null,null,null,null,null,null,null,null,null,null,null,"FECHA ACTUAL ",null,null,null,null,null,{"$f":"TODAY()","v":"2018-06-13"}]
[null,null,"CAMPO ",":",{"$f":"CARATULA!G30","v":0}]
[null,null,"ÁREA",":",{"$f":"CARATULA!G32","v":0}]
[]
[null,"N","APELLIDOS Y NOMBRES ",null," 4TO BIMESTRE",null,null,null,null,null,null,null,null,null,null,null,null,null,null,null,null,null,null,null,null,null,null,null,null,"TOTALES ",null,null,null," DÍAS TRABAJADOS "]
[null,null,null,null,null,null,null,null,null,null,null,null,null,null,null,null,null,null,null,null,null,null,null,null,null,null,null,null,null,"ASISTENCIAS (A)","FALTAS (F)","RETRASOS (R)","LICENCIAS (L)"]
[null,1,{"$f":"'C. FILIACION'!C14","v":0},null,null,null,null,null,null,null,null,null,null,null,null,null,null,null,null,null,null,null,null,null,null,null,null,null,null,{"$f":"IF(COUNTIF(E15:AC15,\"A\")=0,\"\",COUNTIF(E15:AC15,\"A\"))","v":""},{"$f":"IF(COUNTIF(E15:AC15,\"F\")=0,\"\",COUNTIF(E15:AC15,\"F\"))","v":""},{"$f":"IF(COUNTIF(E15:AC15,\"R\")=0,\"\",COUNTIF(E15:AC15,\"R\"))","v":""},{"$f":"IF(COUNTIF(E15:AC15,\"L\")=0,\"\",COUNTIF(E15:AC15,\"L\"))","v":""},{"$f":"IF((IF(AD15=\"\",0,AD15)+IF(AF15=\"\",0,AF15))=0,\"\",(IF(AD15=\"\",0,AD15)+IF(AF15=\"\",0,AF15)))","v":""}]
[null,2,{"$f":"'C. FILIACION'!C15","v":0},null,null,null,null,null,null,null,null,null,null,null,null,null,null,null,null,null,null,null,null,null,null,null,null,null,null,{"$f":"IF(COUNTIF(E16:AC16,\"A\")=0,\"\",COUNTIF(E16:AC16,\"A\"))","v":""},{"$f":"IF(COUNTIF(E16:AC16,\"F\")=0,\"\",COUNTIF(E16:AC16,\"F\"))","v":""},{"$f":"IF(COUNTIF(E16:AC16,\"R\")=0,\"\",COUNTIF(E16:AC16,\"R\"))","v":""},{"$f":"IF(COUNTIF(E16:AC16,\"L\")=0,\"\",COUNTIF(E16:AC16,\"L\"))","v":""},{"$f":"IF((IF(AD16=\"\",0,AD16)+IF(AF16=\"\",0,AF16))=0,\"\",(IF(AD16=\"\",0,AD16)+IF(AF16=\"\",0,AF16)))","v":""}]
[null,3,{"$f":"'C. FILIACION'!C16","v":0},null,null,null,null,null,null,null,null,null,null,null,null,null,null,null,null,null,null,null,null,null,null,null,null,null,null,"","","","",""]
[null,4,{"$f":"'C. FILIACION'!C17","v":0},null,null,null,null,null,null,null,null,null,null,null,null,null,null,null,null,null,null,null,null,null,null,null,null,null,null,"","","","",""]
[null,5,{"$f":"'C. FILIACION'!C18","v":0},null,null,null,null,null,null,null,null,null,null,null,null,null,null,null,null,null,null,null,null,null,null,null,null,null,null,"","","","",""]
[null,6,{"$f":"'C. FILIACION'!C19","v":0},null,null,null,null,null,null,null,null,null,null,null,null,null,null,null,null,null,null,null,null,null,null,null,null,null,null,"","","","",""]
[null,7,{"$f":"'C. FILIACION'!C20","v":0},null,null,null,null,null,null,null,null,null,null,null,null,null,null,null,null,null,null,null,null,null,null,null,null,null,null,"","","","",""]
[null,8,{"$f":"'C. FILIACION'!C21","v":0},null,null,null,null,null,null,null,null,null,null,null,null,null,null,null,null,null,null,null,null,null,null,null,null,null,null,"","","","",""]
[null,9,{"$f":"'C. FILIACION'!C22","v":0},null,null,null,null,null,null,null,null,null,null,null,null,null,null,null,null,null,null,null,null,null,null,null,null,null,null,"","","","",""]
[null,10,{"$f":"'C. FILIACION'!C23","v":0},null,null,null,null,null,null,null,null,null,null,null,null,null,null,null,null,null,null,null,null,null,null,null,null,null,null,"","","","",""]
[null,11,{"$f":"'C. FILIACION'!C24","v":0},null,null,null,null,null,null,null,null,null,null,null,null,null,null,null,null,null,null,null,null,null,null,null,null,null,null,"","","","",""]
[null,12,{"$f":"'C. FILIACION'!C25","v":0},null,null,null,null,null,null,null,null,null,null,null,null,null,null,null,null,null,null,null,null,null,null,null,null,null,null,"","","","",""]
[null,13,{"$f":"'C. FILIACION'!C26","v":0},null,null,null,null,null,null,null,null,null,null,null,null,null,null,null,null,null,null,null,null,null,null,null,null,null,null,"","","","",""]
[null,14,{"$f":"'C. FILIACION'!C27","v":0},null,null,null,null,null,null,null,null,null,null,null,null,null,null,null,null,null,null,null,null,null,null,null,null,null,null,"","","","",""]
[null,15,{"$f":"'C. FILIACION'!C28","v":0},null,null,null,null,null,null,null,null,null,null,null,null,null,null,null,null,null,null,null,null,null,null,null,null,null,null,"","","","",""]
[null,16,{"$f":"'C. FILIACION'!C29","v":0},null,null,null,null,null,null,null,null,null,null,null,null,null,null,null,null,null,null,null,null,null,null,null,null,null,null,"","","","",""]
[null,17,{"$f":"'C. FILIACION'!C30","v":0},null,null,null,null,null,null,null,null,null,null,null,null,null,null,null,null,null,null,null,null,null,null,null,null,null,null,"","","","",""]
[null,18,{"$f":"'C. FILIACION'!C31","v":0},null,null,null,null,null,null,null,null,null,null,null,null,null,null,null,null,null,null,null,null,null,null,null,null,null,null,"","","","",""]
[null,19,{"$f":"'C. FILIACION'!C32","v":0},null,null,null,null,null,null,null,null,null,null,null,null,null,null,null,null,null,null,null,null,null,null,null,null,null,null,"","","","",""]
[null,20,{"$f":"'C. FILIACION'!C33","v":0},null,null,null,null,null,null,null,null,null,null,null,null,null,null,null,null,null,null,null,null,null,null,null,null,null,null,"","","","",""]
[null,21,{"$f":"'C. FILIACION'!C34","v":0},null,null,null,null,null,null,null,null,null,null,null,null,null,null,null,null,null,null,null,null,null,null,null,null,null,null,"","","","",""]
[null,22,{"$f":"'C. FILIACION'!C35","v":0},null,null,null,null,null,null,null,null,null,null,null,null,null,null,null,null,null,null,null,null,null,null,null,null,null,null,"","","","",""]
[null,23,{"$f":"'C. FILIACION'!C36","v":0},null,null,null,null,null,null,null,null,null,null,null,null,null,null,null,null,null,null,null,null,null,null,null,null,null,null,"","","","",""]
[null,24,{"$f":"'C. FILIACION'!C37","v":0},null,null,null,null,null,null,null,null,null,null,null,null,null,null,null,null,null,null,null,null,null,null,null,null,null,null,"","","","",""]
[null,25,{"$f":"'C. FILIACION'!C38","v":0},null,null,null,null,null,null,null,null,null,null,null,null,null,null,null,null,null,null,null,null,null,null,null,null,null,null,"","","","",""]
[null,26,{"$f":"'C. FILIACION'!C39","v":0},null,null,null,null,null,null,null,null,null,null,null,null,null,null,null,null,null,null,null,null,null,null,null,null,null,null,"","","","",""]
[null,27,{"$f":"'C. FILIACION'!C40","v":0},null,null,null,null,null,null,null,null,null,null,null,null,null,null,null,null,null,null,null,null,null,null,null,null,null,null,"","","","",""]
[null,28,{"$f":"'C. FILIACION'!C41","v":0},null,null,null,null,null,null,null,null,null,null,null,null,null,null,null,null,null,null,null,null,null,null,null,null,null,null,"","","","",""]
[null,29,{"$f":"'C. FILIACION'!C42","v":0},null,null,null,null,null,null,null,null,null,null,null,null,null,null,null,null,null,null,null,null,null,null,null,null,null,null,"","","","",""]
[null,30,{"$f":"'C. FILIACION'!C43","v":0},null,null,null,null,null,null,null,null,null,null,null,null,null,null,null,null,null,null,null,null,null,null,null,null,null,null,"","","","",""]
[null,31,{"$f":"'C. FILIACION'!C44","v":0},null,null,null,null,null,null,null,null,null,null,null,null,null,null,null,null,null,null,null,null,null,null,null,null,null,null,"","","","",""]
[null,32,{"$f":"'C. FILIACION'!C45","v":0},null,null,null,null,null,null,null,null,null,null,null,null,null,null,null,null,null,null,null,null,null,null,null,null,null,null,"","","","",""]
[null,33,{"$f":"'C. FILIACION'!C46","v":0},null,null,null,null,null,null,null,null,null,null,null,null,null,null,null,null,null,null,null,null,null,null,null,null,null,null,"","","","",""]
[null,34,{"$f":"'C. FILIACION'!C47","v":0},null,null,null,null,null,null,null,null,null,null,null,null,null,null,null,null,null,null,null,null,null,null,null,null,null,null,"","","","",""]
[null,35,{"$f":"'C. FILIACION'!C48","v":0},null,null,null,null,null,null,null,null,null,null,null,null,null,null,null,null,null,null,null,null,null,null,null,null,null,null,"","","","",""]
[null,36,{"$f":"'C. FILIACION'!C49","v":0},null,null,null,null,null,null,null,null,null,null,null,null,null,null,null,null,null,null,null,null,null,null,null,null,null,null,"","","","",""]
[null,37,{"$f":"'C. FILIACION'!C50","v":0},null,null,null,null,null,null,null,null,null,null,null,null,null,null,null,null,null,null,null,null,null,null,null,null,null,null,"","","","",""]
[null,38,{"$f":"'C. FILIACION'!C51","v":0},null,null,null,null,null,null,null,null,null,null,null,null,null,null,null,null,null,null,null,null,null,null,null,null,null,null,"","","","",""]
[null,39,{"$f":"'C. FILIACION'!C52","v":0},null,null,null,null,null,null,null,null,null,null,null,null,null,null,null,null,null,null,null,null,null,null,null,null,null,null,"","","","",""]
[null,40,{"$f":"'C. FILIACION'!C53","v":0},null,null,null,null,null,null,null,null,null,null,null,null,null,null,null,null,null,null,null,null,null,null,null,null,null,null,"","","","",""]
[null,41,{"$f":"'C. FILIACION'!C54","v":0},null,null,null,null,null,null,null,null,null,null,null,null,null,null,null,null,null,null,null,null,null,null,null,null,null,null,"","","","",""]
[null,42,{"$f":"'C. FILIACION'!C55","v":0},null,null,null,null,null,null,null,null,null,null,null,null,null,null,null,null,null,null,null,null,null,null,null,null,null,null,"","","","",""]
[null,43,{"$f":"'C. FILIACION'!C56","v":0},null,null,null,null,null,null,null,null,null,null,null,null,null,null,null,null,null,null,null,null,null,null,null,null,null,null,"","","","",""]
[null,44,{"$f":"'C. FILIACION'!C57","v":0},null,null,null,null,null,null,null,null,null,null,null,null,null,null,null,null,null,null,null,null,null,null,null,null,null,null,"","","","",""]
[null,45,{"$f":"'C. FILIACION'!C58","v":0},null,null,null,null,null,null,null,null,null,null,null,null,null,null,null,null,null,null,null,null,null,null,null,null,null,null,"","","","",""]
[]
[]
[]
[null,null,null,null,{"$f":"CARATULA!G22","v":0},null,null,null,null,null,null,null,null,null,null,null,null,null,null,null,{"$f":"CARATULA!G24","v":0}]
[]
[]
[]
[null,null,"INSCRITO "]
[null,null,"NO INCORPORADO"]
[null,null,"RETIRO O ABANDONO"]
[null,null,"EFECTIVO"]

{"sheet":"VAL. 4° B","index":11,"n_rows":68,"n_cols":52,"rows_kept":68,"cut":false,"hidden":false,"merged":[[2,1,3,51],[5,29,5,33],[5,35,5,41],[5,42,5,43],[5,44,11,49],[5,50,6,51],[6,35,6,41],[6,42,6,43],[7,50,11,51],[9,29,9,33],[16,48,17,48],[16,49,17,49],[7,29,7,33],[7,35,7,41],[7,42,7,43],[13,51,17,51],[14,3,14,47],[14,48,14,49],[15,3,15,9],[15,10,15,25],[15,26,15,41],[15,42,15,47],[16,4,16,8],[16,9,17,9],[13,50,17,50],[16,26,16,30],[13,3,13,47],[13,48,13,49],[16,10,16,14],[16,15,16,19],[16,20,16,24],[19,2,19,3],[20,2,20,3],[16,42,16,46],[16,47,17,47],[25,2,25,3],[22,2,22,3],[23,2,23,3],[24,2,24,3],[21,2,21,3],[18,2,18,3],[13,1,16,2],[16,25,17,25],[16,31,16,35],[16,36,16,40],[16,41,17,41],[26,2,26,3],[39,2,39,3],[28,2,28,3],[29,2,29,3],[30,2,30,3],[31,2,31,3],[32,2,32,3],[33,2,33,3],[34,2,34,3],[35,2,35,3],[36,2,36,3],[37,2,37,3],[38,2,38,3],[27,2,27,3],[51,2,51,3],[40,2,40,3],[41,2,41,3],[42,2,42,3],[43,2,43,3],[44,2,44,3],[45,2,45,3],[46,2,46,3],[47,2,47,3],[48,2,48,3],[49,2,49,3],[50,2,50,3],[64,48,64,49],[52,2,52,3],[53,2,53,3],[54,2,54,3],[55,2,55,3],[56,2,56,3],[57,2,57,3],[58,2,58,3],[59,2,59,3],[60,2,60,3],[61,2,61,3],[62,2,62,3],[65,48,65,49],[66,8,66,19],[66,30,66,42],[67,8,67,19],[67,30,67,42]]}
[]
[]
[null,"REGISTRO DE VALORACIÓN 4⁰ BIMESTRE"]
[]
[]
[null,null,"UNIDAD EDUCATIVA ",":",null,{"$f":"CARATULA!G20","v":0},null,null,null,null,null,null,null,null,null,null,null,null,null,null,null,"INICIO DE BIMESTRE ",null,null,null,null,null,null,":","2018-09-24",null,null,null,null,null,null,null,null,null,null,null,null,null,null,null,null,null,null,null,null,"DÍAS RESTANTES PARA FIN DE BIMESTRE "]
[null,null,"NIVEL ",":",null,{"$f":"CARATULA!G26","v":0},null,null,null,null,null,null,null,null,null,null,null,null,null,null,null,null,null,null,null,null,null,null,null,null,null,null,null,null,null,"N° TOTAL APROBADOS",null,null,null,null,null,null,{"$f":"COUNTIF(AY19:AY63,\">=51\")","v":0}]
[null,null,"AÑO DE ESCOLARIDAD",":",null,{"$f":"CONCATENATE(CARATULA!G28,\" \",CARATULA!H28)","v":" "},null,null,null,null,null,null,null,null,null,null,null,null,null,null,null,"FIN DE BIMESTRE ",null,null,null,null,null,null,":","2018-12-06",null,null,null,null,null,"N° TOTAL REPROBADOS",null,null,null,null,null,null,{"$f":"COUNTIFS(AY19:AY63,\">=1\",AY19:AY63,\"<=50\")","v":0},null,null,null,null,null,null,null,{"$f":"AD8-AD10","v":176}]
[null,null,"DIRECTOR/A",":",null,{"$f":"CARATULA!G22","v":0}]
[null,null,"MAESTRO/A",":",null,{"$f":"CARATULA!G24","v":0},null,null,null,null,null,null,null,null,null,null,null,null,null,null,null,"FECHA ACTUAL",null,null,null,null,null,null,":",{"$f":"TODAY()","v":"2018-06-13"}]
[{"$f":"COUNTIF(AY19:AY63,¨>=50)","v":0},null,"CAMPO ",":",null,{"$f":"CARATULA!G30","v":0}]
[null,null,"ÁREA",":",null,{"$f":"CARATULA!G32","v":0}]
[]
[null,null,null,"EVALUACIÓN MAESTRA(O)",null,null,null,null,null,null,null,null,null,null,null,null,null,null,null,null,null,null,null,null,null,null,null,null,null,null,null,null,null,null,null,null,null,null,null,null,null,null,null,null,null,null,null,null,"AUTO EVALUACION ESTUDIANTE ",null," TOTAL BIMESTRAL","SITUACIÓN BIMESTRAL"]
[null,null,null,"DIMENSIONES ",null,null,null,null,null,null,null,null,null,null,null,null,null,null,null,null,null,null,null,null,null,null,null,null,null,null,null,null,null,null,null,null,null,null,null,null,null,null,null,null,null,null,null,null,"DIMENSIONES "]
[null,null,null,"SER -10",null,null,null,null,null,null,"SABER - 35",null,null,null,null,null,null,null,null,null,null,null,null,null,null,null,"HACER - 35",null,null,null,null,null,null,null,null,null,null,null,null,null,null,null,"DECIDIR - 10 ",null,null,null,null,null,"SER - 5","DECIDIR - 5"]
[null,null,null,"CRITERIOS DE EVALUACIÓN  ",null,null,null,null,null,"VALORACIÓN 10 PUN.",null,null,null,null,null,null,null,null,null,null,null,null,null,null,null,"VALORACIÓN 35 PUN.",null,null,null,null,null,null,null,null,null,null,null,null,null,null,null,"VALORACIÓN 35 PUN.",null,null,null,null,null,"VALORACIÓN 10 PUN."]
[null,"N ","NOMBRES Y APELLIDOS ","ACTIVIDADES"]
[null,1,{"$f":"'C. FILIACION'!C14","v":0},null,null,null,null,null,null,{"$f":"IFERROR((SUM(E19:I19)/(COUNT(E19:I19))),0)","v":0},null,null,null,null,null,null,null,null,null,null,null,null,null,null,null,{"$f":"IFERROR(((SUM(K19:Y19))/(COUNT(K19:Y19))),0)","v":0},null,null,null,null,null,null,null,null,null,null,null,null,null,null,null,{"$f":"IFERROR(((SUM(AA19:AO19))/(COUNT(AA19:AO19))),0)","v":0},null,null,null,null,null,{"$f":"IFERROR(((SUM(AQ19:AU19))/(COUNT(AQ19:AU19))),0)","v":0},null,null,{"$f":"ROUND((SUM(J19,Z19,AP19,AV19,AW19,AX19)),0)","v":0},{"$f":"IF(AY19=0,\"\",(IF(AY19>=51,\"APROBADO\",\"REPROBADO\")))","v":""}]
[null,2,{"$f":"'C. FILIACION'!C15","v":0},null,null,null,null,null,null,{"$f":"IFERROR((SUM(E20:I20)/(COUNT(E20:I20))),0)","v":0},null,null,null,null,null,null,null,null,null,null,null,null,null,null,null,{"$f":"IFERROR(((SUM(K20:Y20))/(COUNT(K20:Y20))),0)","v":0},null,null,null,null,null,null,null,null,null,null,null,null,null,null,null,{"$f":"IFERROR(((SUM(AA20:AO20))/(COUNT(AA20:AO20))),0)","v":0},null,null,null,null,null,{"$f":"IFERROR(((SUM(AQ20:AU20))/(COUNT(AQ20:AU20))),0)","v":0},null,null,{"$f":"ROUND((SUM(J20,Z20,AP20,AV20,AW20,AX20)),0)","v":0},{"$f":"IF(AY20=0,\"\",(IF(AY20>=51,\"APROBADO\",\"REPROBADO\")))","v":""}]
[null,3,{"$f":"'C. FILIACION'!C16","v":0},null,null,null,null,null,null,0,null,null,null,null,null,null,null,null,null,null,null,null,null,null,null,0,null,null,null,null,null,null,null,null,null,null,null,null,null,null,null,0,null,null,null,null,null,0,null,null,0,""]
[null,4,{"$f":"'C. FILIACION'!C17","v":0},null,null,null,null,null,null,0,null,null,null,null,null,null,null,null,null,null,null,null,null,null,null,0,null,null,null,null,null,null,null,null,null,null,null,null,null,null,null,0,null,null,null,null,null,0,null,null,0,""]
[null,5,{"$f":"'C. FILIACION'!C18","v":0},null,null,null,null,null,null,0,null,null,null,null,null,null,null,null,null,null,null,null,null,null,null,0,null,null,null,null,null,null,null,null,null,null,null,null,null,null,null,0,null,null,null,null,null,0,null,null,0,""]
[null,6,{"$f":"'C. FILIACION'!C19","v":0},null,null,null,null,null,null,0,null,null,null,null,null,null,null,null,null,null,null,null,null,null,null,0,null,null,null,null,null,null,null,null,null,null,null,null,null,null,null,0,null,null,null,null,null,0,null,null,0,""]
[null,7,{"$f":"'C. FILIACION'!C20","v":0},null,null,null,null,null,null,0,null,null,null,null,null,null,null,null,null,null,null,null,null,null,null,0,null,null,null,null,null,null,null,null,null,null,null,null,null,null,null,0,null,null,null,null,null,0,null,null,0,""]
[null,8,{"$f":"'C. FILIACION'!C21","v":0},null,null,null,null,null,null,0,null,null,null,null,null,null,null,null,null,null,null,null,null,null,null,0,null,null,null,null,null,null,null,null,null,null,null,null,null,null,null,0,null,null,null,null,null,0,null,null,0,""]
[null,9,{"$f":"'C. FILIACION'!C22","v":0},null,null,null,null,null,null,0,null,null,null,null,null,null,null,null,null,null,null,null,null,null,null,0,null,null,null,null,null,null,null,null,null,null,null,null,null,null,null,0,null,null,null,null,null,0,null,null,0,""]
[null,10,{"$f":"'C. FILIACION'!C23","v":0},null,null,null,null,null,null,0,null,null,null,null,null,null,null,null,null,null,null,null,null,null,null,0,null,null,null,null,null,null,null,null,null,null,null,null,null,null,null,0,null,null,null,null,null,0,null,null,0,""]
[null,11,{"$f":"'C. FILIACION'!C24","v":0},null,null,null,null,null,null,0,null,null,null,null,null,null,null,null,null,null,null,null,null,null,null,0,null,null,null,null,null,null,null,null,null,null,null,null,null,null,null,0,null,null,null,null,null,0,null,null,0,""]
[null,12,{"$f":"'C. FILIACION'!C25","v":0},null,null,null,null,null,null,0,null,null,null,null,null,null,null,null,null,null,null,null,null,null,null,0,null,null,null,null,null,null,null,null,null,null,null,null,null,null,null,0,null,null,null,null,null,0,null,null,0,""]
[null,13,{"$f":"'C. FILIACION'!C26","v":0},null,null,null,null,null,null,0,null,null,null,null,null,null,null,null,null,null,null,null,null,null,null,0,null,null,null,null,null,null,null,null,null,null,null,null,null,null,null,0,null,null,null,null,null,0,null,null,0,""]
[null,14,{"$f":"'C. FILIACION'!C27","v":0},null,null,null,null,null,null,0,null,null,null,null,null,null,null,null,null,null,null,null,null,null,null,0,null,null,null,null,null,null,null,null,null,null,null,null,null,null,null,0,null,null,null,null,null,0,null,null,0,""]
[null,15,{"$f":"'C. FILIACION'!C28","v":0},null,null,null,null,null,null,0,null,null,null,null,null,null,null,null,null,null,null,null,null,null,null,0,null,null,null,null,null,null,null,null,null,null,null,null,null,null,null,0,null,null,null,null,null,0,null,null,0,""]
[null,16,{"$f":"'C. FILIACION'!C29","v":0},null,null,null,null,null,null,0,null,null,null,null,null,null,null,null,null,null,null,null,null,null,null,0,null,null,null,null,null,null,null,null,null,null,null,null,null,null,null,0,null,null,null,null,null,0,null,null,0,""]
[null,17,{"$f":"'C. FILIACION'!C30","v":0},null,null,null,null,null,null,0,null,null,null,null,null,null,null,null,null,null,null,null,null,null,null,0,null,null,null,null,null,null,null,null,null,null,null,null,null,null,null,0,null,null,null,null,null,0,null,null,0,""]
[null,18,{"$f":"'C. FILIACION'!C31","v":0},null,null,null,null,null,null,0,null,null,null,null,null,null,null,null,null,null,null,null,null,null,null,0,null,null,null,null,null,null,null,null,null,null,null,null,null,null,null,0,null,null,null,null,null,0,null,null,0,""]
[null,19,{"$f":"'C. FILIACION'!C32","v":0},null,null,null,null,null,null,0,null,null,null,null,null,null,null,null,null,null,null,null,null,null,null,0,null,null,null,null,null,null,null,null,null,null,null,null,null,null,null,0,null,null,null,null,null,0,null,null,0,""]
[null,20,{"$f":"'C. FILIACION'!C33","v":0},null,null,null,null,null,null,0,null,null,null,null,null,null,null,null,null,null,null,null,null,null,null,0,null,null,null,null,null,null,null,null,null,null,null,null,null,null,null,0,null,null,null,null,null,0,null,null,0,""]
[null,21,{"$f":"'C. FILIACION'!C34","v":0},null,null,null,null,null,null,0,null,null,null,null,null,null,null,null,null,null,null,null,null,null,null,0,null,null,null,null,null,null,null,null,null,null,null,null,null,null,null,0,null,null,null,null,null,0,null,null,0,""]
[null,22,{"$f":"'C. FILIACION'!C35","v":0},null,null,null,null,null,null,0,null,null,null,null,null,null,null,null,null,null,null,null,null,null,null,0,null,null,null,null,null,null,null,null,null,null,null,null,null,null,null,0,null,null,null,null,null,0,null,null,0,""]
[null,23,{"$f":"'C. FILIACION'!C36","v":0},null,null,null,null,null,null,0,null,null,null,null,null,null,null,null,null,null,null,null,null,null,null,0,null,null,null,null,null,null,null,null,null,null,null,null,null,null,null,0,null,null,null,null,null,0,null,null,0,""]
[null,24,{"$f":"'C. FILIACION'!C37","v":0},null,null,null,null,null,null,0,null,null,null,null,null,null,null,null,null,null,null,null,null,null,null,0,null,null,null,null,null,null,null,null,null,null,null,null,null,null,null,0,null,null,null,null,null,0,null,null,0,""]
[null,25,{"$f":"'C. FILIACION'!C38","v":0},null,null,null,null,null,null,0,null,null,null,null,null,null,null,null,null,null,null,null,null,null,null,0,null,null,null,null,null,null,null,null,null,null,null,null,null,null,null,0,null,null,null,null,null,0,null,null,0,""]
[null,26,{"$f":"'C. FILIACION'!C39","v":0},null,null,null,null,null,null,0,null,null,null,null,null,null,null,null,null,null,null,null,null,null,null,0,null,null,null,null,null,null,null,null,null,null,null,null,null,null,null,0,null,null,null,null,null,0,null,null,0,""]
[null,27,{"$f":"'C. FILIACION'!C40","v":0},null,null,null,null,null,null,0,null,null,null,null,null,null,null,null,null,null,null,null,null,null,null,0,null,null,null,null,null,null,null,null,null,null,null,null,null,null,null,0,null,null,null,null,null,0,null,null,0,""]
[null,28,{"$f":"'C. FILIACION'!C41","v":0},null,null,null,null,null,null,0,null,null,null,null,null,null,null,null,null,null,null,null,null,null,null,0,null,null,null,null,null,null,null,null,null,null,null,null,null,null,null,0,null,null,null,null,null,0,null,null,0,""]
[null,29,{"$f":"'C. FILIACION'!C42","v":0},null,null,null,null,null,null,0,null,null,null,null,null,null,null,null,null,null,null,null,null,null,null,0,null,null,null,null,null,null,null,null,null,null,null,null,null,null,null,0,null,null,null,null,null,0,null,null,0,""]
[null,30,{"$f":"'C. FILIACION'!C43","v":0},null,null,null,null,null,null,0,null,null,null,null,null,null,null,null,null,null,null,null,null,null,null,0,null,null,null,null,null,null,null,null,null,null,null,null,null,null,null,0,null,null,null,null,null,0,null,null,0,""]
[null,31,{"$f":"'C. FILIACION'!C44","v":0},null,null,null,null,null,null,0,null,null,null,null,null,null,null,null,null,null,null,null,null,null,null,0,null,null,null,null,null,null,null,null,null,null,null,null,null,null,null,0,null,null,null,null,null,0,null,null,0,""]
[null,32,{"$f":"'C. FILIACION'!C45","v":0},null,null,null,null,null,null,0,null,null,null,null,null,null,null,null,null,null,null,null,null,null,null,0,null,null,null,null,null,null,null,null,null,null,null,null,null,null,null,0,null,null,null,null,null,0,null,null,0,""]
[null,33,{"$f":"'C. FILIACION'!C46","v":0},null,null,null,null,null,null,0,null,null,null,null,null,null,null,null,null,null,null,null,null,null,null,0,null,null,null,null,null,null,null,null,null,null,null,null,null,null,null,0,null,null,null,null,null,0,null,null,0,""]
[null,34,{"$f":"'C. FILIACION'!C47","v":0},null,null,null,null,null,null,0,null,null,null,null,null,null,null,null,null,null,null,null,null,null,null,0,null,null,null,null,null,null,null,null,null,null,null,null,null,null,null,0,null,null,null,null,null,0,null,null,0,""]
[null,35,{"$f":"'C. FILIACION'!C48","v":0},null,null,null,null,null,null,0,null,null,null,null,null,null,null,null,null,null,null,null,null,null,null,0,null,null,null,null,null,null,null,null,null,null,null,null,null,null,null,0,null,null,null,null,null,0,null,null,0,""]
[null,36,{"$f":"'C. FILIACION'!C49","v":0},null,null,null,null,null,null,0,null,null,null,null,null,null,null,null,null,null,null,null,null,null,null,0,null,null,null,null,null,null,null,null,null,null,null,null,null,null,null,0,null,null,null,null,null,0,null,null,0,""]
[null,37,{"$f":"'C. FILIACION'!C50","v":0},null,null,null,null,null,null,0,null,null,null,null,null,null,null,null,null,null,null,null,null,null,null,0,null,null,null,null,null,null,null,null,null,null,null,null,null,null,null,0,null,null,null,null,null,0,null,null,0,""]
[null,38,{"$f":"'C. FILIACION'!C51","v":0},null,null,null,null,null,null,0,null,null,null,null,null,null,null,null,null,null,null,null,null,null,null,0,null,null,null,null,null,null,null,null,null,null,null,null,null,null,null,0,null,null,null,null,null,0,null,null,0,""]
[null,39,{"$f":"'C. FILIACION'!C52","v":0},null,null,null,null,null,null,0,null,null,null,null,null,null,null,null,null,null,null,null,null,null,null,0,null,null,null,null,null,null,null,null,null,null,null,null,null,null,null,0,null,null,null,null,null,0,null,null,0,""]
[null,40,{"$f":"'C. FILIACION'!C53","v":0},null,null,null,null,null,null,0,null,null,null,null,null,null,null,null,null,null,null,null,null,null,null,0,null,null,null,null,null,null,null,null,null,null,null,null,null,null,null,0,null,null,null,null,null,0,null,null,0,""]
[null,41,{"$f":"'C. FILIACION'!C54","v":0},null,null,null,null,null,null,0,null,null,null,null,null,null,null,null,null,null,null,null,null,null,null,0,null,null,null,null,null,null,null,null,null,null,null,null,null,null,null,0,null,null,null,null,null,0,null,null,0,""]
[null,42,{"$f":"'C. FILIACION'!C55","v":0},null,null,null,null,null,null,0,null,null,null,null,null,null,null,null,null,null,null,null,null,null,null,0,null,null,null,null,null,null,null,null,null,null,null,null,null,null,null,0,null,null,null,null,null,0,null,null,0,""]
[null,43,{"$f":"'C. FILIACION'!C56","v":0},null,null,null,null,null,null,0,null,null,null,null,null,null,null,null,null,null,null,null,null,null,null,0,null,null,null,null,null,null,null,null,null,null,null,null,null,null,null,0,null,null,null,null,null,0,null,null,0,""]
[null,44,{"$f":"'C. FILIACION'!C57","v":0},null,null,null,null,null,null,0,null,null,null,null,null,null,null,null,null,null,null,null,null,null,null,0,null,null,null,null,null,null,null,null,null,null,null,null,null,null,null,0,null,null,null,null,null,0,null,null,0,""]
[null,45,{"$f":"'C. FILIACION'!C58","v":0},null,null,null,null,null,null,0,null,null,null,null,null,null,null,null,null,null,null,null,null,null,null,0,null,null,null,null,null,null,null,null,null,null,null,null,null,null,null,0,null,null,null,null,null,0,null,null,0,""]
[]
[]
[]
[]
[null,null,null,null,null,null,null,null,{"$f":"CARATULA!G22","v":0},null,null,null,null,null,null,null,null,null,null,null,null,null,null,null,null,null,null,null,null,null,{"$f":"CARATULA!G24","v":0}]

{"sheet":"CENTRALIZADOR","index":12,"n_rows":63,"n_cols":33,"rows_kept":63,"cut":false,"hidden":false,"merged":[[62,3,62,10],[62,17,62,24],[11,24,11,30],[9,18,9,25],[8,27,8,31],[9,27,9,31],[11,31,13,31],[1,1,1,26],[1,27,1,32],[8,18,8,19],[8,20,8,21],[8,22,8,23],[8,24,8,25],[11,1,13,1],[11,2,13,2],[11,3,11,9],[11,10,11,16],[11,17,11,23],[12,3,12,6],[11,32,13,32],[12,7,12,8],[12,9,13,9],[12,10,12,13],[12,14,12,15],[12,16,13,16],[12,17,12,20],[12,21,12,22],[12,23,13,23],[12,24,12,27],[12,28,12,29],[12,30,13,30]]}
[]
[null,"                CENTRALIZADOR DE NOTAS ",null,null,null,null,null,null,null,null,null,null,null,null,null,null,null,null,null,null,null,null,null,null,null,null,null,{"$f":"TODAY()","v":"2018-06-13"}]
[]
[null,null,"UNIDAD EDUCATIVA ",null,{"$f":"CARATULA!G20","v":0}]
[null,null,"NIVEL ",null,{"$f":"CARATULA!G26","v":0}]
[null,null,"AÑO DE ESCOLARIDAD",null,{"$f":"CONCATENATE(CARATULA!G28,\" \",CARATULA!H28)","v":" "}]
[null,null,"DIRECTOR(A)",null,{"$f":"CARATULA!G22","v":0}]
[null,null,"MAESTRO(A)",null,{"$f":"CARATULA!G24","v":0}]
[null,null,"CAMPO ",null,{"$f":"CARATULA!G30","v":0},null,null,null,null,null,null,null,null,null,null,null,null,null,{"$f":"COUNTIF(J15:J59,\">=51\")","v":0},null,{"$f":"COUNTIF(Q15:Q59,\">=51\")","v":0},null,{"$f":"COUNTIF(X15:X59,\">=51\")","v":0},null,{"$f":"COUNTIF(AE15:AE59,\">=51\")","v":0},null,null,"% TOTAL APROBADOS ",null,null,null,null,{"$f":"COUNTIF(AG15:AG59,\"APROBADO\")","v":0}]
[null,null,"ÁREA",null,{"$f":"CARATULA!G32","v":0},null,null,null,null,null,null,null,null,null,null,null,null,null,"N° APROBADOS POR BIMESTRE ",null,null,null,null,null,null,null,null,"% TOTAL REPROBADOS ",null,null,null,null,{"$f":"COUNTIF(AG15:AG59,\"REPROBADO\")","v":0}]
[]
[null,"N","APELLIDOS Y NOMBRES","1° BIMESTRE ",null,null,null,null,null,null,"2° BIMESTRE ",null,null,null,null,null,null,"3° BIMESTRE ",null,null,null,null,null,null,"4° BIMESTRE ",null,null,null,null,null,null,"PROMEDIO FINAL ","ESTADO ACTUAL DEL ESTUDIANTE "]
[null,null,null,"EV. MAESTRO",null,null,null,"EV.EST.",null,"SUMA TOTAL","EV. MAESTRO",null,null,null,"EV.EST.",null,"SUMA TOTAL ","EV. MAESTRO",null,null,null,"EV.EST.",null,"SUMA TOTAL ","EV. MAESTRO",null,null,null,"EV.EST.",null,"SUMA TOTAL "]
[null,null,null,"SER","SABER ","HACER ","DECIDIR","SER","DECIDIR",null,"SER","SABER ","HACER ","DECIDIR","SER","DECIDIR",null,"SER","SABER ","HACER ","DECIDIR","SER","DECIDIR",null,"SER","SABER ","HACER ","DECIDIR","SER","DECIDIR"]
[null,1,{"$f":"'C. FILIACION'!C14:D14","v":0},{"$f":"'VAL. 1° B'!J19","v":0},{"$f":"'VAL. 1° B'!Z19","v":0},{"$f":"'VAL. 1° B'!AP19","v":0},{"$f":"'VAL. 1° B'!AV19","v":0},{"$f":"'VAL. 1° B'!AW19","v":0},{"$f":"'VAL. 1° B'!AX19","v":0},{"$f":"SUM(D15:I15)","v":0},{"$f":"'VAL. 2° B'!J19","v":0},{"$f":"'VAL. 2° B'!Z19","v":0},{"$f":"'VAL. 2° B'!AP19","v":0},{"$f":"'VAL. 2° B'!AV19","v":0},{"$f":"'VAL. 2° B'!AW19","v":0},{"$f":"'VAL. 2° B'!AX19","v":0},{"$f":"SUM(K15:P15)","v":0},{"$f":"'VAL. 3° B'!J19","v":0},{"$f":"'VAL. 3° B'!Z19","v":0},{"$f":"'VAL. 3° B'!AP19","v":0},{"$f":"'VAL. 3° B'!AV19","v":0},{"$f":"'VAL. 3° B'!AW19","v":0},{"$f":"'VAL. 3° B'!AX19","v":0},{"$f":"SUM(R15:W15)","v":0},{"$f":"'VAL. 4° B'!J19","v":0},{"$f":"'VAL. 4° B'!Z19","v":0},{"$f":"'VAL. 4° B'!AP19","v":0},{"$f":"'VAL. 4° B'!AV19","v":0},{"$f":"'VAL. 4° B'!AW19","v":0},{"$f":"'VAL. 4° B'!AX19","v":0},{"$f":"SUM(Y15:AD15)","v":0},{"$f":"IFERROR(ROUND(AVERAGE(J15,Q15,X15,AE15),0),\"\")","v":0},{"$f":"IF(AF15<1,\"\",(IF(AF15>50,\"APROBADO\",\"REPROBADO\")))","v":""}]
[null,2,{"$f":"'C. FILIACION'!C15:D15","v":0},{"$f":"'VAL. 1° B'!J20","v":0},{"$f":"'VAL. 1° B'!Z20","v":0},{"$f":"'VAL. 1° B'!AP20","v":0},{"$f":"'VAL. 1° B'!AV20","v":0},{"$f":"'VAL. 1° B'!AW20","v":0},{"$f":"'VAL. 1° B'!AX20","v":0},{"$f":"SUM(D16:I16)","v":0},{"$f":"'VAL. 2° B'!J20","v":0},{"$f":"'VAL. 2° B'!Z20","v":0},{"$f":"'VAL. 2° B'!AP20","v":0},{"$f":"'VAL. 2° B'!AV20","v":0},{"$f":"'VAL. 2° B'!AW20","v":0},{"$f":"'VAL. 2° B'!AX20","v":0},{"$f":"SUM(K16:P16)","v":0},{"$f":"'VAL. 3° B'!J20","v":0},{"$f":"'VAL. 3° B'!Z20","v":0},{"$f":"'VAL. 3° B'!AP20","v":0},{"$f":"'VAL. 3° B'!AV20","v":0},{"$f":"'VAL. 3° B'!AW20","v":0},{"$f":"'VAL. 3° B'!AX20","v":0},{"$f":"SUM(R16:W16)","v":0},{"$f":"'VAL. 4° B'!J20","v":0},{"$f":"'VAL. 4° B'!Z20","v":0},{"$f":"'VAL. 4° B'!AP20","v":0},{"$f":"'VAL. 4° B'!AV20","v":0},{"$f":"'VAL. 4° B'!AW20","v":0},{"$f":"'VAL. 4° B'!AX20","v":0},{"$f":"SUM(Y16:AD16)","v":0},{"$f":"IFERROR(ROUND(AVERAGE(J16,Q16,X16,AE16),0),\"\")","v":0},""]
[null,3,{"$f":"'C. FILIACION'!C16:D16","v":0},{"$f":"'VAL. 1° B'!J21","v":0},{"$f":"'VAL. 1° B'!Z21","v":0},{"$f":"'VAL. 1° B'!AP21","v":0},{"$f":"'VAL. 1° B'!AV21","v":0},{"$f":"'VAL. 1° B'!AW21","v":0},{"$f":"'VAL. 1° B'!AX21","v":0},0,{"$f":"'VAL. 2° B'!J21","v":0},{"$f":"'VAL. 2° B'!Z21","v":0},{"$f":"'VAL. 2° B'!AP21","v":0},{"$f":"'VAL. 2° B'!AV21","v":0},{"$f":"'VAL. 2° B'!AW21","v":0},{"$f":"'VAL. 2° B'!AX21","v":0},0,{"$f":"'VAL. 3° B'!J21","v":0},{"$f":"'VAL. 3° B'!Z21","v":0},{"$f":"'VAL. 3° B'!AP21","v":0},{"$f":"'VAL. 3° B'!AV21","v":0},{"$f":"'VAL. 3° B'!AW21","v":0},{"$f":"'VAL. 3° B'!AX21","v":0},0,{"$f":"'VAL. 4° B'!J21","v":0},{"$f":"'VAL. 4° B'!Z21","v":0},{"$f":"'VAL. 4° B'!AP21","v":0},{"$f":"'VAL. 4° B'!AV21","v":0},{"$f":"'VAL. 4° B'!AW21","v":0},{"$f":"'VAL. 4° B'!AX21","v":0},0,0,""]
[null,4,{"$f":"'C. FILIACION'!C17:D17","v":0},{"$f":"'VAL. 1° B'!J22","v":0},{"$f":"'VAL. 1° B'!Z22","v":0},{"$f":"'VAL. 1° B'!AP22","v":0},{"$f":"'VAL. 1° B'!AV22","v":0},{"$f":"'VAL. 1° B'!AW22","v":0},{"$f":"'VAL. 1° B'!AX22","v":0},0,{"$f":"'VAL. 2° B'!J22","v":0},{"$f":"'VAL. 2° B'!Z22","v":0},{"$f":"'VAL. 2° B'!AP22","v":0},{"$f":"'VAL. 2° B'!AV22","v":0},{"$f":"'VAL. 2° B'!AW22","v":0},{"$f":"'VAL. 2° B'!AX22","v":0},0,{"$f":"'VAL. 3° B'!J22","v":0},{"$f":"'VAL. 3° B'!Z22","v":0},{"$f":"'VAL. 3° B'!AP22","v":0},{"$f":"'VAL. 3° B'!AV22","v":0},{"$f":"'VAL. 3° B'!AW22","v":0},{"$f":"'VAL. 3° B'!AX22","v":0},0,{"$f":"'VAL. 4° B'!J22","v":0},{"$f":"'VAL. 4° B'!Z22","v":0},{"$f":"'VAL. 4° B'!AP22","v":0},{"$f":"'VAL. 4° B'!AV22","v":0},{"$f":"'VAL. 4° B'!AW22","v":0},{"$f":"'VAL. 4° B'!AX22","v":0},0,0,""]
[null,5,{"$f":"'C. FILIACION'!C18:D18","v":0},{"$f":"'VAL. 1° B'!J23","v":0},{"$f":"'VAL. 1° B'!Z23","v":0},{"$f":"'VAL. 1° B'!AP23","v":0},{"$f":"'VAL. 1° B'!AV23","v":0},{"$f":"'VAL. 1° B'!AW23","v":0},{"$f":"'VAL. 1° B'!AX23","v":0},{"$f":"SUM(D19:I19)","v":0},{"$f":"'VAL. 2° B'!J23","v":0},{"$f":"'VAL. 2° B'!Z23","v":0},{"$f":"'VAL. 2° B'!AP23","v":0},{"$f":"'VAL. 2° B'!AV23","v":0},{"$f":"'VAL. 2° B'!AW23","v":0},{"$f":"'VAL. 2° B'!AX23","v":0},0,{"$f":"'VAL. 3° B'!J23","v":0},{"$f":"'VAL. 3° B'!Z23","v":0},{"$f":"'VAL. 3° B'!AP23","v":0},{"$f":"'VAL. 3° B'!AV23","v":0},{"$f":"'VAL. 3° B'!AW23","v":0},{"$f":"'VAL. 3° B'!AX23","v":0},0,{"$f":"'VAL. 4° B'!J23","v":0},{"$f":"'VAL. 4° B'!Z23","v":0},{"$f":"'VAL. 4° B'!AP23","v":0},{"$f":"'VAL. 4° B'!AV23","v":0},{"$f":"'VAL. 4° B'!AW23","v":0},{"$f":"'VAL. 4° B'!AX23","v":0},0,0,""]
[null,6,{"$f":"'C. FILIACION'!C19:D19","v":0},{"$f":"'VAL. 1° B'!J24","v":0},{"$f":"'VAL. 1° B'!Z24","v":0},{"$f":"'VAL. 1° B'!AP24","v":0},{"$f":"'VAL. 1° B'!AV24","v":0},{"$f":"'VAL. 1° B'!AW24","v":0},{"$f":"'VAL. 1° B'!AX24","v":0},0,{"$f":"'VAL. 2° B'!J24","v":0},{"$f":"'VAL. 2° B'!Z24","v":0},{"$f":"'VAL. 2° B'!AP24","v":0},{"$f":"'VAL. 2° B'!AV24","v":0},{"$f":"'VAL. 2° B'!AW24","v":0},{"$f":"'VAL. 2° B'!AX24","v":0},0,{"$f":"'VAL. 3° B'!J24","v":0},{"$f":"'VAL. 3° B'!Z24","v":0},{"$f":"'VAL. 3° B'!AP24","v":0},{"$f":"'VAL. 3° B'!AV24","v":0},{"$f":"'VAL. 3° B'!AW24","v":0},{"$f":"'VAL. 3° B'!AX24","v":0},0,{"$f":"'VAL. 4° B'!J24","v":0},{"$f":"'VAL. 4° B'!Z24","v":0},{"$f":"'VAL. 4° B'!AP24","v":0},{"$f":"'VAL. 4° B'!AV24","v":0},{"$f":"'VAL. 4° B'!AW24","v":0},{"$f":"'VAL. 4° B'!AX24","v":0},0,0,""]
[null,7,{"$f":"'C. FILIACION'!C20:D20","v":0},{"$f":"'VAL. 1° B'!J25","v":0},{"$f":"'VAL. 1° B'!Z25","v":0},{"$f":"'VAL. 1° B'!AP25","v":0},{"$f":"'VAL. 1° B'!AV25","v":0},{"$f":"'VAL. 1° B'!AW25","v":0},{"$f":"'VAL. 1° B'!AX25","v":0},0,{"$f":"'VAL. 2° B'!J25","v":0},{"$f":"'VAL. 2° B'!Z25","v":0},{"$f":"'VAL. 2° B'!AP25","v":0},{"$f":"'VAL. 2° B'!AV25","v":0},{"$f":"'VAL. 2° B'!AW25","v":0},{"$f":"'VAL. 2° B'!AX25","v":0},0,{"$f":"'VAL. 3° B'!J25","v":0},{"$f":"'VAL. 3° B'!Z25","v":0},{"$f":"'VAL. 3° B'!AP25","v":0},{"$f":"'VAL. 3° B'!AV25","v":0},{"$f":"'VAL. 3° B'!AW25","v":0},{"$f":"'VAL. 3° B'!AX25","v":0},0,{"$f":"'VAL. 4° B'!J25","v":0},{"$f":"'VAL. 4° B'!Z25","v":0},{"$f":"'VAL. 4° B'!AP25","v":0},{"$f":"'VAL. 4° B'!AV25","v":0},{"$f":"'VAL. 4° B'!AW25","v":0},{"$f":"'VAL. 4° B'!AX25","v":0},0,0,""]
[null,8,{"$f":"'C. FILIACION'!C21:D21","v":0},{"$f":"'VAL. 1° B'!J26","v":0},{"$f":"'VAL. 1° B'!Z26","v":0},{"$f":"'VAL. 1° B'!AP26","v":0},{"$f":"'VAL. 1° B'!AV26","v":0},{"$f":"'VAL. 1° B'!AW26","v":0},{"$f":"'VAL. 1° B'!AX26","v":0},0,{"$f":"'VAL. 2° B'!J26","v":0},{"$f":"'VAL. 2° B'!Z26","v":0},{"$f":"'VAL. 2° B'!AP26","v":0},{"$f":"'VAL. 2° B'!AV26","v":0},{"$f":"'VAL. 2° B'!AW26","v":0},{"$f":"'VAL. 2° B'!AX26","v":0},0,{"$f":"'VAL. 3° B'!J26","v":0},{"$f":"'VAL. 3° B'!Z26","v":0},{"$f":"'VAL. 3° B'!AP26","v":0},{"$f":"'VAL. 3° B'!AV26","v":0},{"$f":"'VAL. 3° B'!AW26","v":0},{"$f":"'VAL. 3° B'!AX26","v":0},0,{"$f":"'VAL. 4° B'!J26","v":0},{"$f":"'VAL. 4° B'!Z26","v":0},{"$f":"'VAL. 4° B'!AP26","v":0},{"$f":"'VAL. 4° B'!AV26","v":0},{"$f":"'VAL. 4° B'!AW26","v":0},{"$f":"'VAL. 4° B'!AX26","v":0},0,0,""]
[null,9,{"$f":"'C. FILIACION'!C22:D22","v":0},{"$f":"'VAL. 1° B'!J27","v":0},{"$f":"'VAL. 1° B'!Z27","v":0},{"$f":"'VAL. 1° B'!AP27","v":0},{"$f":"'VAL. 1° B'!AV27","v":0},{"$f":"'VAL. 1° B'!AW27","v":0},{"$f":"'VAL. 1° B'!AX27","v":0},0,{"$f":"'VAL. 2° B'!J27","v":0},{"$f":"'VAL. 2° B'!Z27","v":0},{"$f":"'VAL. 2° B'!AP27","v":0},{"$f":"'VAL. 2° B'!AV27","v":0},{"$f":"'VAL. 2° B'!AW27","v":0},{"$f":"'VAL. 2° B'!AX27","v":0},0,{"$f":"'VAL. 3° B'!J27","v":0},{"$f":"'VAL. 3° B'!Z27","v":0},{"$f":"'VAL. 3° B'!AP27","v":0},{"$f":"'VAL. 3° B'!AV27","v":0},{"$f":"'VAL. 3° B'!AW27","v":0},{"$f":"'VAL. 3° B'!AX27","v":0},0,{"$f":"'VAL. 4° B'!J27","v":0},{"$f":"'VAL. 4° B'!Z27","v":0},{"$f":"'VAL. 4° B'!AP27","v":0},{"$f":"'VAL. 4° B'!AV27","v":0},{"$f":"'VAL. 4° B'!AW27","v":0},{"$f":"'VAL. 4° B'!AX27","v":0},0,0,""]
[null,10,{"$f":"'C. FILIACION'!C23:D23","v":0},{"$f":"'VAL. 1° B'!J28","v":0},{"$f":"'VAL. 1° B'!Z28","v":0},{"$f":"'VAL. 1° B'!AP28","v":0},{"$f":"'VAL. 1° B'!AV28","v":0},{"$f":"'VAL. 1° B'!AW28","v":0},{"$f":"'VAL. 1° B'!AX28","v":0},0,{"$f":"'VAL. 2° B'!J28","v":0},{"$f":"'VAL. 2° B'!Z28","v":0},{"$f":"'VAL. 2° B'!AP28","v":0},{"$f":"'VAL. 2° B'!AV28","v":0},{"$f":"'VAL. 2° B'!AW28","v":0},{"$f":"'VAL. 2° B'!AX28","v":0},0,{"$f":"'VAL. 3° B'!J28","v":0},{"$f":"'VAL. 3° B'!Z28","v":0},{"$f":"'VAL. 3° B'!AP28","v":0},{"$f":"'VAL. 3° B'!AV28","v":0},{"$f":"'VAL. 3° B'!AW28","v":0},{"$f":"'VAL. 3° B'!AX28","v":0},0,{"$f":"'VAL. 4° B'!J28","v":0},{"$f":"'VAL. 4° B'!Z28","v":0},{"$f":"'VAL. 4° B'!AP28","v":0},{"$f":"'VAL. 4° B'!AV28","v":0},{"$f":"'VAL. 4° B'!AW28","v":0},{"$f":"'VAL. 4° B'!AX28","v":0},0,0,""]
[null,11,{"$f":"'C. FILIACION'!C24:D24","v":0},{"$f":"'VAL. 1° B'!J29","v":0},{"$f":"'VAL. 1° B'!Z29","v":0},{"$f":"'VAL. 1° B'!AP29","v":0},{"$f":"'VAL. 1° B'!AV29","v":0},{"$f":"'VAL. 1° B'!AW29","v":0},{"$f":"'VAL. 1° B'!AX29","v":0},0,{"$f":"'VAL. 2° B'!J29","v":0},{"$f":"'VAL. 2° B'!Z29","v":0},{"$f":"'VAL. 2° B'!AP29","v":0},{"$f":"'VAL. 2° B'!AV29","v":0},{"$f":"'VAL. 2° B'!AW29","v":0},{"$f":"'VAL. 2° B'!AX29","v":0},0,{"$f":"'VAL. 3° B'!J29","v":0},{"$f":"'VAL. 3° B'!Z29","v":0},{"$f":"'VAL. 3° B'!AP29","v":0},{"$f":"'VAL. 3° B'!AV29","v":0},{"$f":"'VAL. 3° B'!AW29","v":0},{"$f":"'VAL. 3° B'!AX29","v":0},0,{"$f":"'VAL. 4° B'!J29","v":0},{"$f":"'VAL. 4° B'!Z29","v":0},{"$f":"'VAL. 4° B'!AP29","v":0},{"$f":"'VAL. 4° B'!AV29","v":0},{"$f":"'VAL. 4° B'!AW29","v":0},{"$f":"'VAL. 4° B'!AX29","v":0},0,0,""]
[null,12,{"$f":"'C. FILIACION'!C25:D25","v":0},{"$f":"'VAL. 1° B'!J30","v":0},{"$f":"'VAL. 1° B'!Z30","v":0},{"$f":"'VAL. 1° B'!AP30","v":0},{"$f":"'VAL. 1° B'!AV30","v":0},{"$f":"'VAL. 1° B'!AW30","v":0},{"$f":"'VAL. 1° B'!AX30","v":0},0,{"$f":"'VAL. 2° B'!J30","v":0},{"$f":"'VAL. 2° B'!Z30","v":0},{"$f":"'VAL. 2° B'!AP30","v":0},{"$f":"'VAL. 2° B'!AV30","v":0},{"$f":"'VAL. 2° B'!AW30","v":0},{"$f":"'VAL. 2° B'!AX30","v":0},0,{"$f":"'VAL. 3° B'!J30","v":0},{"$f":"'VAL. 3° B'!Z30","v":0},{"$f":"'VAL. 3° B'!AP30","v":0},{"$f":"'VAL. 3° B'!AV30","v":0},{"$f":"'VAL. 3° B'!AW30","v":0},{"$f":"'VAL. 3° B'!AX30","v":0},0,{"$f":"'VAL. 4° B'!J30","v":0},{"$f":"'VAL. 4° B'!Z30","v":0},{"$f":"'VAL. 4° B'!AP30","v":0},{"$f":"'VAL. 4° B'!AV30","v":0},{"$f":"'VAL. 4° B'!AW30","v":0},{"$f":"'VAL. 4° B'!AX30","v":0},0,0,""]
[null,13,{"$f":"'C. FILIACION'!C26:D26","v":0},{"$f":"'VAL. 1° B'!J31","v":0},{"$f":"'VAL. 1° B'!Z31","v":0},{"$f":"'VAL. 1° B'!AP31","v":0},{"$f":"'VAL. 1° B'!AV31","v":0},{"$f":"'VAL. 1° B'!AW31","v":0},{"$f":"'VAL. 1° B'!AX31","v":0},0,{"$f":"'VAL. 2° B'!J31","v":0},{"$f":"'VAL. 2° B'!Z31","v":0},{"$f":"'VAL. 2° B'!AP31","v":0},{"$f":"'VAL. 2° B'!AV31","v":0},{"$f":"'VAL. 2° B'!AW31","v":0},{"$f":"'VAL. 2° B'!AX31","v":0},0,{"$f":"'VAL. 3° B'!J31","v":0},{"$f":"'VAL. 3° B'!Z31","v":0},{"$f":"'VAL. 3° B'!AP31","v":0},{"$f":"'VAL. 3° B'!AV31","v":0},{"$f":"'VAL. 3° B'!AW31","v":0},{"$f":"'VAL. 3° B'!AX31","v":0},0,{"$f":"'VAL. 4° B'!J31","v":0},{"$f":"'VAL. 4° B'!Z31","v":0},{"$f":"'VAL. 4° B'!AP31","v":0},{"$f":"'VAL. 4° B'!AV31","v":0},{"$f":"'VAL. 4° B'!AW31","v":0},{"$f":"'VAL. 4° B'!AX31","v":0},0,0,""]
[null,14,{"$f":"'C. FILIACION'!C27:D27","v":0},{"$f":"'VAL. 1° B'!J32","v":0},{"$f":"'VAL. 1° B'!Z32","v":0},{"$f":"'VAL. 1° B'!AP32","v":0},{"$f":"'VAL. 1° B'!AV32","v":0},{"$f":"'VAL. 1° B'!AW32","v":0},{"$f":"'VAL. 1° B'!AX32","v":0},0,{"$f":"'VAL. 2° B'!J32","v":0},{"$f":"'VAL. 2° B'!Z32","v":0},{"$f":"'VAL. 2° B'!AP32","v":0},{"$f":"'VAL. 2° B'!AV32","v":0},{"$f":"'VAL. 2° B'!AW32","v":0},{"$f":"'VAL. 2° B'!AX32","v":0},0,{"$f":"'VAL. 3° B'!J32","v":0},{"$f":"'VAL. 3° B'!Z32","v":0},{"$f":"'VAL. 3° B'!AP32","v":0},{"$f":"'VAL. 3° B'!AV32","v":0},{"$f":"'VAL. 3° B'!AW32","v":0},{"$f":"'VAL. 3° B'!AX32","v":0},0,{"$f":"'VAL. 4° B'!J32","v":0},{"$f":"'VAL. 4° B'!Z32","v":0},{"$f":"'VAL. 4° B'!AP32","v":0},{"$f":"'VAL. 4° B'!AV32","v":0},{"$f":"'VAL. 4° B'!AW32","v":0},{"$f":"'VAL. 4° B'!AX32","v":0},0,0,""]
[null,15,{"$f":"'C. FILIACION'!C28:D28","v":0},{"$f":"'VAL. 1° B'!J33","v":0},{"$f":"'VAL. 1° B'!Z33","v":0},{"$f":"'VAL. 1° B'!AP33","v":0},{"$f":"'VAL. 1° B'!AV33","v":0},{"$f":"'VAL. 1° B'!AW33","v":0},{"$f":"'VAL. 1° B'!AX33","v":0},0,{"$f":"'VAL. 2° B'!J33","v":0},{"$f":"'VAL. 2° B'!Z33","v":0},{"$f":"'VAL. 2° B'!AP33","v":0},{"$f":"'VAL. 2° B'!AV33","v":0},{"$f":"'VAL. 2° B'!AW33","v":0},{"$f":"'VAL. 2° B'!AX33","v":0},0,{"$f":"'VAL. 3° B'!J33","v":0},{"$f":"'VAL. 3° B'!Z33","v":0},{"$f":"'VAL. 3° B'!AP33","v":0},{"$f":"'VAL. 3° B'!AV33","v":0},{"$f":"'VAL. 3° B'!AW33","v":0},{"$f":"'VAL. 3° B'!AX33","v":0},0,{"$f":"'VAL. 4° B'!J33","v":0},{"$f":"'VAL. 4° B'!Z33","v":0},{"$f":"'VAL. 4° B'!AP33","v":0},{"$f":"'VAL. 4° B'!AV33","v":0},{"$f":"'VAL. 4° B'!AW33","v":0},{"$f":"'VAL. 4° B'!AX33","v":0},0,0,""]
[null,16,{"$f":"'C. FILIACION'!C29:D29","v":0},{"$f":"'VAL. 1° B'!J34","v":0},{"$f":"'VAL. 1° B'!Z34","v":0},{"$f":"'VAL. 1° B'!AP34","v":0},{"$f":"'VAL. 1° B'!AV34","v":0},{"$f":"'VAL. 1° B'!AW34","v":0},{"$f":"'VAL. 1° B'!AX34","v":0},0,{"$f":"'VAL. 2° B'!J34","v":0},{"$f":"'VAL. 2° B'!Z34","v":0},{"$f":"'VAL. 2° B'!AP34","v":0},{"$f":"'VAL. 2° B'!AV34","v":0},{"$f":"'VAL. 2° B'!AW34","v":0},{"$f":"'VAL. 2° B'!AX34","v":0},0,{"$f":"'VAL. 3° B'!J34","v":0},{"$f":"'VAL. 3° B'!Z34","v":0},{"$f":"'VAL. 3° B'!AP34","v":0},{"$f":"'VAL. 3° B'!AV34","v":0},{"$f":"'VAL. 3° B'!AW34","v":0},{"$f":"'VAL. 3° B'!AX34","v":0},0,{"$f":"'VAL. 4° B'!J34","v":0},{"$f":"'VAL. 4° B'!Z34","v":0},{"$f":"'VAL. 4° B'!AP34","v":0},{"$f":"'VAL. 4° B'!AV34","v":0},{"$f":"'VAL. 4° B'!AW34","v":0},{"$f":"'VAL. 4° B'!AX34","v":0},0,0,""]
[null,17,{"$f":"'C. FILIACION'!C30:D30","v":0},{"$f":"'VAL. 1° B'!J35","v":0},{"$f":"'VAL. 1° B'!Z35","v":0},{"$f":"'VAL. 1° B'!AP35","v":0},{"$f":"'VAL. 1° B'!AV35","v":0},{"$f":"'VAL. 1° B'!AW35","v":0},{"$f":"'VAL. 1° B'!AX35","v":0},0,{"$f":"'VAL. 2° B'!J35","v":0},{"$f":"'VAL. 2° B'!Z35","v":0},{"$f":"'VAL. 2° B'!AP35","v":0},{"$f":"'VAL. 2° B'!AV35","v":0},{"$f":"'VAL. 2° B'!AW35","v":0},{"$f":"'VAL. 2° B'!AX35","v":0},0,{"$f":"'VAL. 3° B'!J35","v":0},{"$f":"'VAL. 3° B'!Z35","v":0},{"$f":"'VAL. 3° B'!AP35","v":0},{"$f":"'VAL. 3° B'!AV35","v":0},{"$f":"'VAL. 3° B'!AW35","v":0},{"$f":"'VAL. 3° B'!AX35","v":0},0,{"$f":"'VAL. 4° B'!J35","v":0},{"$f":"'VAL. 4° B'!Z35","v":0},{"$f":"'VAL. 4° B'!AP35","v":0},{"$f":"'VAL. 4° B'!AV35","v":0},{"$f":"'VAL. 4° B'!AW35","v":0},{"$f":"'VAL. 4° B'!AX35","v":0},0,0,""]
[null,18,{"$f":"'C. FILIACION'!C31:D31","v":0},{"$f":"'VAL. 1° B'!J36","v":0},{"$f":"'VAL. 1° B'!Z36","v":0},{"$f":"'VAL. 1° B'!AP36","v":0},{"$f":"'VAL. 1° B'!AV36","v":0},{"$f":"'VAL. 1° B'!AW36","v":0},{"$f":"'VAL. 1° B'!AX36","v":0},0,{"$f":"'VAL. 2° B'!J36","v":0},{"$f":"'VAL. 2° B'!Z36","v":0},{"$f":"'VAL. 2° B'!AP36","v":0},{"$f":"'VAL. 2° B'!AV36","v":0},{"$f":"'VAL. 2° B'!AW36","v":0},{"$f":"'VAL. 2° B'!AX36","v":0},0,{"$f":"'VAL. 3° B'!J36","v":0},{"$f":"'VAL. 3° B'!Z36","v":0},{"$f":"'VAL. 3° B'!AP36","v":0},{"$f":"'VAL. 3° B'!AV36","v":0},{"$f":"'VAL. 3° B'!AW36","v":0},{"$f":"'VAL. 3° B'!AX36","v":0},0,{"$f":"'VAL. 4° B'!J36","v":0},{"$f":"'VAL. 4° B'!Z36","v":0},{"$f":"'VAL. 4° B'!AP36","v":0},{"$f":"'VAL. 4° B'!AV36","v":0},{"$f":"'VAL. 4° B'!AW36","v":0},{"$f":"'VAL. 4° B'!AX36","v":0},0,0,""]
[null,19,{"$f":"'C. FILIACION'!C32:D32","v":0},{"$f":"'VAL. 1° B'!J37","v":0},{"$f":"'VAL. 1° B'!Z37","v":0},{"$f":"'VAL. 1° B'!AP37","v":0},{"$f":"'VAL. 1° B'!AV37","v":0},{"$f":"'VAL. 1° B'!AW37","v":0},{"$f":"'VAL. 1° B'!AX37","v":0},0,{"$f":"'VAL. 2° B'!J37","v":0},{"$f":"'VAL. 2° B'!Z37","v":0},{"$f":"'VAL. 2° B'!AP37","v":0},{"$f":"'VAL. 2° B'!AV37","v":0},{"$f":"'VAL. 2° B'!AW37","v":0},{"$f":"'VAL. 2° B'!AX37","v":0},0,{"$f":"'VAL. 3° B'!J37","v":0},{"$f":"'VAL. 3° B'!Z37","v":0},{"$f":"'VAL. 3° B'!AP37","v":0},{"$f":"'VAL. 3° B'!AV37","v":0},{"$f":"'VAL. 3° B'!AW37","v":0},{"$f":"'VAL. 3° B'!AX37","v":0},0,{"$f":"'VAL. 4° B'!J37","v":0},{"$f":"'VAL. 4° B'!Z37","v":0},{"$f":"'VAL. 4° B'!AP37","v":0},{"$f":"'VAL. 4° B'!AV37","v":0},{"$f":"'VAL. 4° B'!AW37","v":0},{"$f":"'VAL. 4° B'!AX37","v":0},0,0,""]
[null,20,{"$f":"'C. FILIACION'!C33:D33","v":0},{"$f":"'VAL. 1° B'!J38","v":0},{"$f":"'VAL. 1° B'!Z38","v":0},{"$f":"'VAL. 1° B'!AP38","v":0},{"$f":"'VAL. 1° B'!AV38","v":0},{"$f":"'VAL. 1° B'!AW38","v":0},{"$f":"'VAL. 1° B'!AX38","v":0},0,{"$f":"'VAL. 2° B'!J38","v":0},{"$f":"'VAL. 2° B'!Z38","v":0},{"$f":"'VAL. 2° B'!AP38","v":0},{"$f":"'VAL. 2° B'!AV38","v":0},{"$f":"'VAL. 2° B'!AW38","v":0},{"$f":"'VAL. 2° B'!AX38","v":0},0,{"$f":"'VAL. 3° B'!J38","v":0},{"$f":"'VAL. 3° B'!Z38","v":0},{"$f":"'VAL. 3° B'!AP38","v":0},{"$f":"'VAL. 3° B'!AV38","v":0},{"$f":"'VAL. 3° B'!AW38","v":0},{"$f":"'VAL. 3° B'!AX38","v":0},0,{"$f":"'VAL. 4° B'!J38","v":0},{"$f":"'VAL. 4° B'!Z38","v":0},{"$f":"'VAL. 4° B'!AP38","v":0},{"$f":"'VAL. 4° B'!AV38","v":0},{"$f":"'VAL. 4° B'!AW38","v":0},{"$f":"'VAL. 4° B'!AX38","v":0},0,0,""]
[null,21,{"$f":"'C. FILIACION'!C34:D34","v":0},{"$f":"'VAL. 1° B'!J39","v":0},{"$f":"'VAL. 1° B'!Z39","v":0},{"$f":"'VAL. 1° B'!AP39","v":0},{"$f":"'VAL. 1° B'!AV39","v":0},{"$f":"'VAL. 1° B'!AW39","v":0},{"$f":"'VAL. 1° B'!AX39","v":0},0,{"$f":"'VAL. 2° B'!J39","v":0},{"$f":"'VAL. 2° B'!Z39","v":0},{"$f":"'VAL. 2° B'!AP39","v":0},{"$f":"'VAL. 2° B'!AV39","v":0},{"$f":"'VAL. 2° B'!AW39","v":0},{"$f":"'VAL. 2° B'!AX39","v":0},0,{"$f":"'VAL. 3° B'!J39","v":0},{"$f":"'VAL. 3° B'!Z39","v":0},{"$f":"'VAL. 3° B'!AP39","v":0},{"$f":"'VAL. 3° B'!AV39","v":0},{"$f":"'VAL. 3° B'!AW39","v":0},{"$f":"'VAL. 3° B'!AX39","v":0},0,{"$f":"'VAL. 4° B'!J39","v":0},{"$f":"'VAL. 4° B'!Z39","v":0},{"$f":"'VAL. 4° B'!AP39","v":0},{"$f":"'VAL. 4° B'!AV39","v":0},{"$f":"'VAL. 4° B'!AW39","v":0},{"$f":"'VAL. 4° B'!AX39","v":0},0,0,""]
[null,22,{"$f":"'C. FILIACION'!C35:D35","v":0},{"$f":"'VAL. 1° B'!J40","v":0},{"$f":"'VAL. 1° B'!Z40","v":0},{"$f":"'VAL. 1° B'!AP40","v":0},{"$f":"'VAL. 1° B'!AV40","v":0},{"$f":"'VAL. 1° B'!AW40","v":0},{"$f":"'VAL. 1° B'!AX40","v":0},0,{"$f":"'VAL. 2° B'!J40","v":0},{"$f":"'VAL. 2° B'!Z40","v":0},{"$f":"'VAL. 2° B'!AP40","v":0},{"$f":"'VAL. 2° B'!AV40","v":0},{"$f":"'VAL. 2° B'!AW40","v":0},{"$f":"'VAL. 2° B'!AX40","v":0},0,{"$f":"'VAL. 3° B'!J40","v":0},{"$f":"'VAL. 3° B'!Z40","v":0},{"$f":"'VAL. 3° B'!AP40","v":0},{"$f":"'VAL. 3° B'!AV40","v":0},{"$f":"'VAL. 3° B'!AW40","v":0},{"$f":"'VAL. 3° B'!AX40","v":0},0,{"$f":"'VAL. 4° B'!J40","v":0},{"$f":"'VAL. 4° B'!Z40","v":0},{"$f":"'VAL. 4° B'!AP40","v":0},{"$f":"'VAL. 4° B'!AV40","v":0},{"$f":"'VAL. 4° B'!AW40","v":0},{"$f":"'VAL. 4° B'!AX40","v":0},0,0,""]
[null,23,{"$f":"'C. FILIACION'!C36:D36","v":0},{"$f":"'VAL. 1° B'!J41","v":0},{"$f":"'VAL. 1° B'!Z41","v":0},{"$f":"'VAL. 1° B'!AP41","v":0},{"$f":"'VAL. 1° B'!AV41","v":0},{"$f":"'VAL. 1° B'!AW41","v":0},{"$f":"'VAL. 1° B'!AX41","v":0},0,{"$f":"'VAL. 2° B'!J41","v":0},{"$f":"'VAL. 2° B'!Z41","v":0},{"$f":"'VAL. 2° B'!AP41","v":0},{"$f":"'VAL. 2° B'!AV41","v":0},{"$f":"'VAL. 2° B'!AW41","v":0},{"$f":"'VAL. 2° B'!AX41","v":0},0,{"$f":"'VAL. 3° B'!J41","v":0},{"$f":"'VAL. 3° B'!Z41","v":0},{"$f":"'VAL. 3° B'!AP41","v":0},{"$f":"'VAL. 3° B'!AV41","v":0},{"$f":"'VAL. 3° B'!AW41","v":0},{"$f":"'VAL. 3° B'!AX41","v":0},0,{"$f":"'VAL. 4° B'!J41","v":0},{"$f":"'VAL. 4° B'!Z41","v":0},{"$f":"'VAL. 4° B'!AP41","v":0},{"$f":"'VAL. 4° B'!AV41","v":0},{"$f":"'VAL. 4° B'!AW41","v":0},{"$f":"'VAL. 4° B'!AX41","v":0},0,0,""]
[null,24,{"$f":"'C. FILIACION'!C37:D37","v":0},{"$f":"'VAL. 1° B'!J42","v":0},{"$f":"'VAL. 1° B'!Z42","v":0},{"$f":"'VAL. 1° B'!AP42","v":0},{"$f":"'VAL. 1° B'!AV42","v":0},{"$f":"'VAL. 1° B'!AW42","v":0},{"$f":"'VAL. 1° B'!AX42","v":0},0,{"$f":"'VAL. 2° B'!J42","v":0},{"$f":"'VAL. 2° B'!Z42","v":0},{"$f":"'VAL. 2° B'!AP42","v":0},{"$f":"'VAL. 2° B'!AV42","v":0},{"$f":"'VAL. 2° B'!AW42","v":0},{"$f":"'VAL. 2° B'!AX42","v":0},0,{"$f":"'VAL. 3° B'!J42","v":0},{"$f":"'VAL. 3° B'!Z42","v":0},{"$f":"'VAL. 3° B'!AP42","v":0},{"$f":"'VAL. 3° B'!AV42","v":0},{"$f":"'VAL. 3° B'!AW42","v":0},{"$f":"'VAL. 3° B'!AX42","v":0},0,{"$f":"'VAL. 4° B'!J42","v":0},{"$f":"'VAL. 4° B'!Z42","v":0},{"$f":"'VAL. 4° B'!AP42","v":0},{"$f":"'VAL. 4° B'!AV42","v":0},{"$f":"'VAL. 4° B'!AW42","v":0},{"$f":"'VAL. 4° B'!AX42","v":0},0,0,""]
[null,25,{"$f":"'C. FILIACION'!C38:D38","v":0},{"$f":"'VAL. 1° B'!J43","v":0},{"$f":"'VAL. 1° B'!Z43","v":0},{"$f":"'VAL. 1° B'!AP43","v":0},{"$f":"'VAL. 1° B'!AV43","v":0},{"$f":"'VAL. 1° B'!AW43","v":0},{"$f":"'VAL. 1° B'!AX43","v":0},0,{"$f":"'VAL. 2° B'!J43","v":0},{"$f":"'VAL. 2° B'!Z43","v":0},{"$f":"'VAL. 2° B'!AP43","v":0},{"$f":"'VAL. 2° B'!AV43","v":0},{"$f":"'VAL. 2° B'!AW43","v":0},{"$f":"'VAL. 2° B'!AX43","v":0},0,{"$f":"'VAL. 3° B'!J43","v":0},{"$f":"'VAL. 3° B'!Z43","v":0},{"$f":"'VAL. 3° B'!AP43","v":0},{"$f":"'VAL. 3° B'!AV43","v":0},{"$f":"'VAL. 3° B'!AW43","v":0},{"$f":"'VAL. 3° B'!AX43","v":0},0,{"$f":"'VAL. 4° B'!J43","v":0},{"$f":"'VAL. 4° B'!Z43","v":0},{"$f":"'VAL. 4° B'!AP43","v":0},{"$f":"'VAL. 4° B'!AV43","v":0},{"$f":"'VAL. 4° B'!AW43","v":0},{"$f":"'VAL. 4° B'!AX43","v":0},0,0,""]
[null,26,{"$f":"'C. FILIACION'!C39:D39","v":0},{"$f":"'VAL. 1° B'!J44","v":0},{"$f":"'VAL. 1° B'!Z44","v":0},{"$f":"'VAL. 1° B'!AP44","v":0},{"$f":"'VAL. 1° B'!AV44","v":0},{"$f":"'VAL. 1° B'!AW44","v":0},{"$f":"'VAL. 1° B'!AX44","v":0},0,{"$f":"'VAL. 2° B'!J44","v":0},{"$f":"'VAL. 2° B'!Z44","v":0},{"$f":"'VAL. 2° B'!AP44","v":0},{"$f":"'VAL. 2° B'!AV44","v":0},{"$f":"'VAL. 2° B'!AW44","v":0},{"$f":"'VAL. 2° B'!AX44","v":0},0,{"$f":"'VAL. 3° B'!J44","v":0},{"$f":"'VAL. 3° B'!Z44","v":0},{"$f":"'VAL. 3° B'!AP44","v":0},{"$f":"'VAL. 3° B'!AV44","v":0},{"$f":"'VAL. 3° B'!AW44","v":0},{"$f":"'VAL. 3° B'!AX44","v":0},0,{"$f":"'VAL. 4° B'!J44","v":0},{"$f":"'VAL. 4° B'!Z44","v":0},{"$f":"'VAL. 4° B'!AP44","v":0},{"$f":"'VAL. 4° B'!AV44","v":0},{"$f":"'VAL. 4° B'!AW44","v":0},{"$f":"'VAL. 4° B'!AX44","v":0},0,0,""]
[null,27,{"$f":"'C. FILIACION'!C40:D40","v":0},{"$f":"'VAL. 1° B'!J45","v":0},{"$f":"'VAL. 1° B'!Z45","v":0},{"$f":"'VAL. 1° B'!AP45","v":0},{"$f":"'VAL. 1° B'!AV45","v":0},{"$f":"'VAL. 1° B'!AW45","v":0},{"$f":"'VAL. 1° B'!AX45","v":0},0,{"$f":"'VAL. 2° B'!J45","v":0},{"$f":"'VAL. 2° B'!Z45","v":0},{"$f":"'VAL. 2° B'!AP45","v":0},{"$f":"'VAL. 2° B'!AV45","v":0},{"$f":"'VAL. 2° B'!AW45","v":0},{"$f":"'VAL. 2° B'!AX45","v":0},0,{"$f":"'VAL. 3° B'!J45","v":0},{"$f":"'VAL. 3° B'!Z45","v":0},{"$f":"'VAL. 3° B'!AP45","v":0},{"$f":"'VAL. 3° B'!AV45","v":0},{"$f":"'VAL. 3° B'!AW45","v":0},{"$f":"'VAL. 3° B'!AX45","v":0},0,{"$f":"'VAL. 4° B'!J45","v":0},{"$f":"'VAL. 4° B'!Z45","v":0},{"$f":"'VAL. 4° B'!AP45","v":0},{"$f":"'VAL. 4° B'!AV45","v":0},{"$f":"'VAL. 4° B'!AW45","v":0},{"$f":"'VAL. 4° B'!AX45","v":0},0,0,""]
[null,28,{"$f":"'C. FILIACION'!C41:D41","v":0},{"$f":"'VAL. 1° B'!J46","v":0},{"$f":"'VAL. 1° B'!Z46","v":0},{"$f":"'VAL. 1° B'!AP46","v":0},{"$f":"'VAL. 1° B'!AV46","v":0},{"$f":"'VAL. 1° B'!AW46","v":0},{"$f":"'VAL. 1° B'!AX46","v":0},0,{"$f":"'VAL. 2° B'!J46","v":0},{"$f":"'VAL. 2° B'!Z46","v":0},{"$f":"'VAL. 2° B'!AP46","v":0},{"$f":"'VAL. 2° B'!AV46","v":0},{"$f":"'VAL. 2° B'!AW46","v":0},{"$f":"'VAL. 2° B'!AX46","v":0},0,{"$f":"'VAL. 3° B'!J46","v":0},{"$f":"'VAL. 3° B'!Z46","v":0},{"$f":"'VAL. 3° B'!AP46","v":0},{"$f":"'VAL. 3° B'!AV46","v":0},{"$f":"'VAL. 3° B'!AW46","v":0},{"$f":"'VAL. 3° B'!AX46","v":0},0,{"$f":"'VAL. 4° B'!J46","v":0},{"$f":"'VAL. 4° B'!Z46","v":0},{"$f":"'VAL. 4° B'!AP46","v":0},{"$f":"'VAL. 4° B'!AV46","v":0},{"$f":"'VAL. 4° B'!AW46","v":0},{"$f":"'VAL. 4° B'!AX46","v":0},0,0,""]
[null,29,{"$f":"'C. FILIACION'!C42:D42","v":0},{"$f":"'VAL. 1° B'!J47","v":0},{"$f":"'VAL. 1° B'!Z47","v":0},{"$f":"'VAL. 1° B'!AP47","v":0},{"$f":"'VAL. 1° B'!AV47","v":0},{"$f":"'VAL. 1° B'!AW47","v":0},{"$f":"'VAL. 1° B'!AX47","v":0},0,{"$f":"'VAL. 2° B'!J47","v":0},{"$f":"'VAL. 2° B'!Z47","v":0},{"$f":"'VAL. 2° B'!AP47","v":0},{"$f":"'VAL. 2° B'!AV47","v":0},{"$f":"'VAL. 2° B'!AW47","v":0},{"$f":"'VAL. 2° B'!AX47","v":0},0,{"$f":"'VAL. 3° B'!J47","v":0},{"$f":"'VAL. 3° B'!Z47","v":0},{"$f":"'VAL. 3° B'!AP47","v":0},{"$f":"'VAL. 3° B'!AV47","v":0},{"$f":"'VAL. 3° B'!AW47","v":0},{"$f":"'VAL. 3° B'!AX47","v":0},0,{"$f":"'VAL. 4° B'!J47","v":0},{"$f":"'VAL. 4° B'!Z47","v":0},{"$f":"'VAL. 4° B'!AP47","v":0},{"$f":"'VAL. 4° B'!AV47","v":0},{"$f":"'VAL. 4° B'!AW47","v":0},{"$f":"'VAL. 4° B'!AX47","v":0},0,0,""]
[null,30,{"$f":"'C. FILIACION'!C43:D43","v":0},{"$f":"'VAL. 1° B'!J48","v":0},{"$f":"'VAL. 1° B'!Z48","v":0},{"$f":"'VAL. 1° B'!AP48","v":0},{"$f":"'VAL. 1° B'!AV48","v":0},{"$f":"'VAL. 1° B'!AW48","v":0},{"$f":"'VAL. 1° B'!AX48","v":0},0,{"$f":"'VAL. 2° B'!J48","v":0},{"$f":"'VAL. 2° B'!Z48","v":0},{"$f":"'VAL. 2° B'!AP48","v":0},{"$f":"'VAL. 2° B'!AV48","v":0},{"$f":"'VAL. 2° B'!AW48","v":0},{"$f":"'VAL. 2° B'!AX48","v":0},0,{"$f":"'VAL. 3° B'!J48","v":0},{"$f":"'VAL. 3° B'!Z48","v":0},{"$f":"'VAL. 3° B'!AP48","v":0},{"$f":"'VAL. 3° B'!AV48","v":0},{"$f":"'VAL. 3° B'!AW48","v":0},{"$f":"'VAL. 3° B'!AX48","v":0},0,{"$f":"'VAL. 4° B'!J48","v":0},{"$f":"'VAL. 4° B'!Z48","v":0},{"$f":"'VAL. 4° B'!AP48","v":0},{"$f":"'VAL. 4° B'!AV48","v":0},{"$f":"'VAL. 4° B'!AW48","v":0},{"$f":"'VAL. 4° B'!AX48","v":0},0,0,""]
[null,31,{"$f":"'C. FILIACION'!C44:D44","v":0},{"$f":"'VAL. 1° B'!J49","v":0},{"$f":"'VAL. 1° B'!Z49","v":0},{"$f":"'VAL. 1° B'!AP49","v":0},{"$f":"'VAL. 1° B'!AV49","v":0},{"$f":"'VAL. 1° B'!AW49","v":0},{"$f":"'VAL. 1° B'!AX49","v":0},0,{"$f":"'VAL. 2° B'!J49","v":0},{"$f":"'VAL. 2° B'!Z49","v":0},{"$f":"'VAL. 2° B'!AP49","v":0},{"$f":"'VAL. 2° B'!AV49","v":0},{"$f":"'VAL. 2° B'!AW49","v":0},{"$f":"'VAL. 2° B'!AX49","v":0},0,{"$f":"'VAL. 3° B'!J49","v":0},{"$f":"'VAL. 3° B'!Z49","v":0},{"$f":"'VAL. 3° B'!AP49","v":0},{"$f":"'VAL. 3° B'!AV49","v":0},{"$f":"'VAL. 3° B'!AW49","v":0},{"$f":"'VAL. 3° B'!AX49","v":0},0,{"$f":"'VAL. 4° B'!J49","v":0},{"$f":"'VAL. 4° B'!Z49","v":0},{"$f":"'VAL. 4° B'!AP49","v":0},{"$f":"'VAL. 4° B'!AV49","v":0},{"$f":"'VAL. 4° B'!AW49","v":0},{"$f":"'VAL. 4° B'!AX49","v":0},0,0,""]
[null,32,{"$f":"'C. FILIACION'!C45:D45","v":0},{"$f":"'VAL. 1° B'!J50","v":0},{"$f":"'VAL. 1° B'!Z50","v":0},{"$f":"'VAL. 1° B'!AP50","v":0},{"$f":"'VAL. 1° B'!AV50","v":0},{"$f":"'VAL. 1° B'!AW50","v":0},{"$f":"'VAL. 1° B'!AX50","v":0},0,{"$f":"'VAL. 2° B'!J50","v":0},{"$f":"'VAL. 2° B'!Z50","v":0},{"$f":"'VAL. 2° B'!AP50","v":0},{"$f":"'VAL. 2° B'!AV50","v":0},{"$f":"'VAL. 2° B'!AW50","v":0},{"$f":"'VAL. 2° B'!AX50","v":0},0,{"$f":"'VAL. 3° B'!J50","v":0},{"$f":"'VAL. 3° B'!Z50","v":0},{"$f":"'VAL. 3° B'!AP50","v":0},{"$f":"'VAL. 3° B'!AV50","v":0},{"$f":"'VAL. 3° B'!AW50","v":0},{"$f":"'VAL. 3° B'!AX50","v":0},0,{"$f":"'VAL. 4° B'!J50","v":0},{"$f":"'VAL. 4° B'!Z50","v":0},{"$f":"'VAL. 4° B'!AP50","v":0},{"$f":"'VAL. 4° B'!AV50","v":0},{"$f":"'VAL. 4° B'!AW50","v":0},{"$f":"'VAL. 4° B'!AX50","v":0},0,0,""]
[null,33,{"$f":"'C. FILIACION'!C46:D46","v":0},{"$f":"'VAL. 1° B'!J51","v":0},{"$f":"'VAL. 1° B'!Z51","v":0},{"$f":"'VAL. 1° B'!AP51","v":0},{"$f":"'VAL. 1° B'!AV51","v":0},{"$f":"'VAL. 1° B'!AW51","v":0},{"$f":"'VAL. 1° B'!AX51","v":0},0,{"$f":"'VAL. 2° B'!J51","v":0},{"$f":"'VAL. 2° B'!Z51","v":0},{"$f":"'VAL. 2° B'!AP51","v":0},{"$f":"'VAL. 2° B'!AV51","v":0},{"$f":"'VAL. 2° B'!AW51","v":0},{"$f":"'VAL. 2° B'!AX51","v":0},0,{"$f":"'VAL. 3° B'!J51","v":0},{"$f":"'VAL. 3° B'!Z51","v":0},{"$f":"'VAL. 3° B'!AP51","v":0},{"$f":"'VAL. 3° B'!AV51","v":0},{"$f":"'VAL. 3° B'!AW51","v":0},{"$f":"'VAL. 3° B'!AX51","v":0},0,{"$f":"'VAL. 4° B'!J51","v":0},{"$f":"'VAL. 4° B'!Z51","v":0},{"$f":"'VAL. 4° B'!AP51","v":0},{"$f":"'VAL. 4° B'!AV51","v":0},{"$f":"'VAL. 4° B'!AW51","v":0},{"$f":"'VAL. 4° B'!AX51","v":0},0,0,""]
[null,34,{"$f":"'C. FILIACION'!C47:D47","v":0},{"$f":"'VAL. 1° B'!J52","v":0},{"$f":"'VAL. 1° B'!Z52","v":0},{"$f":"'VAL. 1° B'!AP52","v":0},{"$f":"'VAL. 1° B'!AV52","v":0},{"$f":"'VAL. 1° B'!AW52","v":0},{"$f":"'VAL. 1° B'!AX52","v":0},0,{"$f":"'VAL. 2° B'!J52","v":0},{"$f":"'VAL. 2° B'!Z52","v":0},{"$f":"'VAL. 2° B'!AP52","v":0},{"$f":"'VAL. 2° B'!AV52","v":0},{"$f":"'VAL. 2° B'!AW52","v":0},{"$f":"'VAL. 2° B'!AX52","v":0},0,{"$f":"'VAL. 3° B'!J52","v":0},{"$f":"'VAL. 3° B'!Z52","v":0},{"$f":"'VAL. 3° B'!AP52","v":0},{"$f":"'VAL. 3° B'!AV52","v":0},{"$f":"'VAL. 3° B'!AW52","v":0},{"$f":"'VAL. 3° B'!AX52","v":0},0,{"$f":"'VAL. 4° B'!J52","v":0},{"$f":"'VAL. 4° B'!Z52","v":0},{"$f":"'VAL. 4° B'!AP52","v":0},{"$f":"'VAL. 4° B'!AV52","v":0},{"$f":"'VAL. 4° B'!AW52","v":0},{"$f":"'VAL. 4° B'!AX52","v":0},0,0,""]
[null,35,{"$f":"'C. FILIACION'!C48:D48","v":0},{"$f":"'VAL. 1° B'!J53","v":0},{"$f":"'VAL. 1° B'!Z53","v":0},{"$f":"'VAL. 1° B'!AP53","v":0},{"$f":"'VAL. 1° B'!AV53","v":0},{"$f":"'VAL. 1° B'!AW53","v":0},{"$f":"'VAL. 1° B'!AX53","v":0},0,{"$f":"'VAL. 2° B'!J53","v":0},{"$f":"'VAL. 2° B'!Z53","v":0},{"$f":"'VAL. 2° B'!AP53","v":0},{"$f":"'VAL. 2° B'!AV53","v":0},{"$f":"'VAL. 2° B'!AW53","v":0},{"$f":"'VAL. 2° B'!AX53","v":0},0,{"$f":"'VAL. 3° B'!J53","v":0},{"$f":"'VAL. 3° B'!Z53","v":0},{"$f":"'VAL. 3° B'!AP53","v":0},{"$f":"'VAL. 3° B'!AV53","v":0},{"$f":"'VAL. 3° B'!AW53","v":0},{"$f":"'VAL. 3° B'!AX53","v":0},0,{"$f":"'VAL. 4° B'!J53","v":0},{"$f":"'VAL. 4° B'!Z53","v":0},{"$f":"'VAL. 4° B'!AP53","v":0},{"$f":"'VAL. 4° B'!AV53","v":0},{"$f":"'VAL. 4° B'!AW53","v":0},{"$f":"'VAL. 4° B'!AX53","v":0},0,0,""]
[null,36,{"$f":"'C. FILIACION'!C49:D49","v":0},{"$f":"'VAL. 1° B'!J54","v":0},{"$f":"'VAL. 1° B'!Z54","v":0},{"$f":"'VAL. 1° B'!AP54","v":0},{"$f":"'VAL. 1° B'!AV54","v":0},{"$f":"'VAL. 1° B'!AW54","v":0},{"$f":"'VAL. 1° B'!AX54","v":0},0,{"$f":"'VAL. 2° B'!J54","v":0},{"$f":"'VAL. 2° B'!Z54","v":0},{"$f":"'VAL. 2° B'!AP54","v":0},{"$f":"'VAL. 2° B'!AV54","v":0},{"$f":"'VAL. 2° B'!AW54","v":0},{"$f":"'VAL. 2° B'!AX54","v":0},0,{"$f":"'VAL. 3° B'!J54","v":0},{"$f":"'VAL. 3° B'!Z54","v":0},{"$f":"'VAL. 3° B'!AP54","v":0},{"$f":"'VAL. 3° B'!AV54","v":0},{"$f":"'VAL. 3° B'!AW54","v":0},{"$f":"'VAL. 3° B'!AX54","v":0},0,{"$f":"'VAL. 4° B'!J54","v":0},{"$f":"'VAL. 4° B'!Z54","v":0},{"$f":"'VAL. 4° B'!AP54","v":0},{"$f":"'VAL. 4° B'!AV54","v":0},{"$f":"'VAL. 4° B'!AW54","v":0},{"$f":"'VAL. 4° B'!AX54","v":0},0,0,""]
[null,37,{"$f":"'C. FILIACION'!C50:D50","v":0},{"$f":"'VAL. 1° B'!J55","v":0},{"$f":"'VAL. 1° B'!Z55","v":0},{"$f":"'VAL. 1° B'!AP55","v":0},{"$f":"'VAL. 1° B'!AV55","v":0},{"$f":"'VAL. 1° B'!AW55","v":0},{"$f":"'VAL. 1° B'!AX55","v":0},0,{"$f":"'VAL. 2° B'!J55","v":0},{"$f":"'VAL. 2° B'!Z55","v":0},{"$f":"'VAL. 2° B'!AP55","v":0},{"$f":"'VAL. 2° B'!AV55","v":0},{"$f":"'VAL. 2° B'!AW55","v":0},{"$f":"'VAL. 2° B'!AX55","v":0},0,{"$f":"'VAL. 3° B'!J55","v":0},{"$f":"'VAL. 3° B'!Z55","v":0},{"$f":"'VAL. 3° B'!AP55","v":0},{"$f":"'VAL. 3° B'!AV55","v":0},{"$f":"'VAL. 3° B'!AW55","v":0},{"$f":"'VAL. 3° B'!AX55","v":0},0,{"$f":"'VAL. 4° B'!J55","v":0},{"$f":"'VAL. 4° B'!Z55","v":0},{"$f":"'VAL. 4° B'!AP55","v":0},{"$f":"'VAL. 4° B'!AV55","v":0},{"$f":"'VAL. 4° B'!AW55","v":0},{"$f":"'VAL. 4° B'!AX55","v":0},0,0,""]
[null,38,{"$f":"'C. FILIACION'!C51:D51","v":0},{"$f":"'VAL. 1° B'!J56","v":0},{"$f":"'VAL. 1° B'!Z56","v":0},{"$f":"'VAL. 1° B'!AP56","v":0},{"$f":"'VAL. 1° B'!AV56","v":0},{"$f":"'VAL. 1° B'!AW56","v":0},{"$f":"'VAL. 1° B'!AX56","v":0},0,{"$f":"'VAL. 2° B'!J56","v":0},{"$f":"'VAL. 2° B'!Z56","v":0},{"$f":"'VAL. 2° B'!AP56","v":0},{"$f":"'VAL. 2° B'!AV56","v":0},{"$f":"'VAL. 2° B'!AW56","v":0},{"$f":"'VAL. 2° B'!AX56","v":0},0,{"$f":"'VAL. 3° B'!J56","v":0},{"$f":"'VAL. 3° B'!Z56","v":0},{"$f":"'VAL. 3° B'!AP56","v":0},{"$f":"'VAL. 3° B'!AV56","v":0},{"$f":"'VAL. 3° B'!AW56","v":0},{"$f":"'VAL. 3° B'!AX56","v":0},0,{"$f":"'VAL. 4° B'!J56","v":0},{"$f":"'VAL. 4° B'!Z56","v":0},{"$f":"'VAL. 4° B'!AP56","v":0},{"$f":"'VAL. 4° B'!AV56","v":0},{"$f":"'VAL. 4° B'!AW56","v":0},{"$f":"'VAL. 4° B'!AX56","v":0},0,0,""]
[null,39,{"$f":"'C. FILIACION'!C52:D52","v":0},{"$f":"'VAL. 1° B'!J57","v":0},{"$f":"'VAL. 1° B'!Z57","v":0},{"$f":"'VAL. 1° B'!AP57","v":0},{"$f":"'VAL. 1° B'!AV57","v":0},{"$f":"'VAL. 1° B'!AW57","v":0},{"$f":"'VAL. 1° B'!AX57","v":0},0,{"$f":"'VAL. 2° B'!J57","v":0},{"$f":"'VAL. 2° B'!Z57","v":0},{"$f":"'VAL. 2° B'!AP57","v":0},{"$f":"'VAL. 2° B'!AV57","v":0},{"$f":"'VAL. 2° B'!AW57","v":0},{"$f":"'VAL. 2° B'!AX57","v":0},0,{"$f":"'VAL. 3° B'!J57","v":0},{"$f":"'VAL. 3° B'!Z57","v":0},{"$f":"'VAL. 3° B'!AP57","v":0},{"$f":"'VAL. 3° B'!AV57","v":0},{"$f":"'VAL. 3° B'!AW57","v":0},{"$f":"'VAL. 3° B'!AX57","v":0},0,{"$f":"'VAL. 4° B'!J57","v":0},{"$f":"'VAL. 4° B'!Z57","v":0},{"$f":"'VAL. 4° B'!AP57","v":0},{"$f":"'VAL. 4° B'!AV57","v":0},{"$f":"'VAL. 4° B'!AW57","v":0},{"$f":"'VAL. 4° B'!AX57","v":0},0,0,""]
[null,40,{"$f":"'C. FILIACION'!C53:D53","v":0},{"$f":"'VAL. 1° B'!J58","v":0},{"$f":"'VAL. 1° B'!Z58","v":0},{"$f":"'VAL. 1° B'!AP58","v":0},{"$f":"'VAL. 1° B'!AV58","v":0},{"$f":"'VAL. 1° B'!AW58","v":0},{"$f":"'VAL. 1° B'!AX58","v":0},0,{"$f":"'VAL. 2° B'!J58","v":0},{"$f":"'VAL. 2° B'!Z58","v":0},{"$f":"'VAL. 2° B'!AP58","v":0},{"$f":"'VAL. 2° B'!AV58","v":0},{"$f":"'VAL. 2° B'!AW58","v":0},{"$f":"'VAL. 2° B'!AX58","v":0},0,{"$f":"'VAL. 3° B'!J58","v":0},{"$f":"'VAL. 3° B'!Z58","v":0},{"$f":"'VAL. 3° B'!AP58","v":0},{"$f":"'VAL. 3° B'!AV58","v":0},{"$f":"'VAL. 3° B'!AW58","v":0},{"$f":"'VAL. 3° B'!AX58","v":0},0,{"$f":"'VAL. 4° B'!J58","v":0},{"$f":"'VAL. 4° B'!Z58","v":0},{"$f":"'VAL. 4° B'!AP58","v":0},{"$f":"'VAL. 4° B'!AV58","v":0},{"$f":"'VAL. 4° B'!AW58","v":0},{"$f":"'VAL. 4° B'!AX58","v":0},0,0,""]
[null,41,{"$f":"'C. FILIACION'!C54:D54","v":0},{"$f":"'VAL. 1° B'!J59","v":0},{"$f":"'VAL. 1° B'!Z59","v":0},{"$f":"'VAL. 1° B'!AP59","v":0},{"$f":"'VAL. 1° B'!AV59","v":0},{"$f":"'VAL. 1° B'!AW59","v":0},{"$f":"'VAL. 1° B'!AX59","v":0},0,{"$f":"'VAL. 2° B'!J59","v":0},{"$f":"'VAL. 2° B'!Z59","v":0},{"$f":"'VAL. 2° B'!AP59","v":0},{"$f":"'VAL. 2° B'!AV59","v":0},{"$f":"'VAL. 2° B'!AW59","v":0},{"$f":"'VAL. 2° B'!AX59","v":0},0,{"$f":"'VAL. 3° B'!J59","v":0},{"$f":"'VAL. 3° B'!Z59","v":0},{"$f":"'VAL. 3° B'!AP59","v":0},{"$f":"'VAL. 3° B'!AV59","v":0},{"$f":"'VAL. 3° B'!AW59","v":0},{"$f":"'VAL. 3° B'!AX59","v":0},0,{"$f":"'VAL. 4° B'!J59","v":0},{"$f":"'VAL. 4° B'!Z59","v":0},{"$f":"'VAL. 4° B'!AP59","v":0},{"$f":"'VAL. 4° B'!AV59","v":0},{"$f":"'VAL. 4° B'!AW59","v":0},{"$f":"'VAL. 4° B'!AX59","v":0},0,0,""]
[null,42,{"$f":"'C. FILIACION'!C55:D55","v":0},{"$f":"'VAL. 1° B'!J60","v":0},{"$f":"'VAL. 1° B'!Z60","v":0},{"$f":"'VAL. 1° B'!AP60","v":0},{"$f":"'VAL. 1° B'!AV60","v":0},{"$f":"'VAL. 1° B'!AW60","v":0},{"$f":"'VAL. 1° B'!AX60","v":0},0,{"$f":"'VAL. 2° B'!J60","v":0},{"$f":"'VAL. 2° B'!Z60","v":0},{"$f":"'VAL. 2° B'!AP60","v":0},{"$f":"'VAL. 2° B'!AV60","v":0},{"$f":"'VAL. 2° B'!AW60","v":0},{"$f":"'VAL. 2° B'!AX60","v":0},0,{"$f":"'VAL. 3° B'!J60","v":0},{"$f":"'VAL. 3° B'!Z60","v":0},{"$f":"'VAL. 3° B'!AP60","v":0},{"$f":"'VAL. 3° B'!AV60","v":0},{"$f":"'VAL. 3° B'!AW60","v":0},{"$f":"'VAL. 3° B'!AX60","v":0},0,{"$f":"'VAL. 4° B'!J60","v":0},{"$f":"'VAL. 4° B'!Z60","v":0},{"$f":"'VAL. 4° B'!AP60","v":0},{"$f":"'VAL. 4° B'!AV60","v":0},{"$f":"'VAL. 4° B'!AW60","v":0},{"$f":"'VAL. 4° B'!AX60","v":0},0,0,""]
[null,43,{"$f":"'C. FILIACION'!C56:D56","v":0},{"$f":"'VAL. 1° B'!J61","v":0},{"$f":"'VAL. 1° B'!Z61","v":0},{"$f":"'VAL. 1° B'!AP61","v":0},{"$f":"'VAL. 1° B'!AV61","v":0},{"$f":"'VAL. 1° B'!AW61","v":0},{"$f":"'VAL. 1° B'!AX61","v":0},0,{"$f":"'VAL. 2° B'!J61","v":0},{"$f":"'VAL. 2° B'!Z61","v":0},{"$f":"'VAL. 2° B'!AP61","v":0},{"$f":"'VAL. 2° B'!AV61","v":0},{"$f":"'VAL. 2° B'!AW61","v":0},{"$f":"'VAL. 2° B'!AX61","v":0},0,{"$f":"'VAL. 3° B'!J61","v":0},{"$f":"'VAL. 3° B'!Z61","v":0},{"$f":"'VAL. 3° B'!AP61","v":0},{"$f":"'VAL. 3° B'!AV61","v":0},{"$f":"'VAL. 3° B'!AW61","v":0},{"$f":"'VAL. 3° B'!AX61","v":0},0,{"$f":"'VAL. 4° B'!J61","v":0},{"$f":"'VAL. 4° B'!Z61","v":0},{"$f":"'VAL. 4° B'!AP61","v":0},{"$f":"'VAL. 4° B'!AV61","v":0},{"$f":"'VAL. 4° B'!AW61","v":0},{"$f":"'VAL. 4° B'!AX61","v":0},0,0,""]
[null,44,{"$f":"'C. FILIACION'!C57:D57","v":0},{"$f":"'VAL. 1° B'!J62","v":0},{"$f":"'VAL. 1° B'!Z62","v":0},{"$f":"'VAL. 1° B'!AP62","v":0},{"$f":"'VAL. 1° B'!AV62","v":0},{"$f":"'VAL. 1° B'!AW62","v":0},{"$f":"'VAL. 1° B'!AX62","v":0},0,{"$f":"'VAL. 2° B'!J62","v":0},{"$f":"'VAL. 2° B'!Z62","v":0},{"$f":"'VAL. 2° B'!AP62","v":0},{"$f":"'VAL. 2° B'!AV62","v":0},{"$f":"'VAL. 2° B'!AW62","v":0},{"$f":"'VAL. 2° B'!AX62","v":0},0,{"$f":"'VAL. 3° B'!J62","v":0},{"$f":"'VAL. 3° B'!Z62","v":0},{"$f":"'VAL. 3° B'!AP62","v":0},{"$f":"'VAL. 3° B'!AV62","v":0},{"$f":"'VAL. 3° B'!AW62","v":0},{"$f":"'VAL. 3° B'!AX62","v":0},0,{"$f":"'VAL. 4° B'!J62","v":0},{"$f":"'VAL. 4° B'!Z62","v":0},{"$f":"'VAL. 4° B'!AP62","v":0},{"$f":"'VAL. 4° B'!AV62","v":0},{"$f":"'VAL. 4° B'!AW62","v":0},{"$f":"'VAL. 4° B'!AX62","v":0},0,0,""]
[null,45,{"$f":"'C. FILIACION'!C58:D58","v":0},{"$f":"'VAL. 1° B'!J63","v":0},{"$f":"'VAL. 1° B'!Z63","v":0},{"$f":"'VAL. 1° B'!AP63","v":0},{"$f":"'VAL. 1° B'!AV63","v":0},{"$f":"'VAL. 1° B'!AW63","v":0},{"$f":"'VAL. 1° B'!AX63","v":0},0,{"$f":"'VAL. 2° B'!J63","v":0},{"$f":"'VAL. 2° B'!Z63","v":0},{"$f":"'VAL. 2° B'!AP63","v":0},{"$f":"'VAL. 2° B'!AV63","v":0},{"$f":"'VAL. 2° B'!AW63","v":0},{"$f":"'VAL. 2° B'!AX63","v":0},0,{"$f":"'VAL. 3° B'!J63","v":0},{"$f":"'VAL. 3° B'!Z63","v":0},{"$f":"'VAL. 3° B'!AP63","v":0},{"$f":"'VAL. 3° B'!AV63","v":0},{"$f":"'VAL. 3° B'!AW63","v":0},{"$f":"'VAL. 3° B'!AX63","v":0},0,{"$f":"'VAL. 4° B'!J63","v":0},{"$f":"'VAL. 4° B'!Z63","v":0},{"$f":"'VAL. 4° B'!AP63","v":0},{"$f":"'VAL. 4° B'!AV63","v":0},{"$f":"'VAL. 4° B'!AW63","v":0},{"$f":"'VAL. 4° B'!AX63","v":0},0,0,""]
[]
[]
[]
[null,null,null,{"$f":"CARATULA!G22","v":0},null,null,null,null,null,null,null,null,null,null,null,null,null,{"$f":"CARATULA!G24","v":0}]

{"sheet":"% REP-APR","index":13,"n_rows":34,"n_cols":12,"rows_kept":34,"cut":false,"hidden":false,"merged":[[2,2,2,11],[33,2,33,4],[33,8,33,11],[18,2,19,11],[9,2,9,11],[11,3,11,4],[12,3,12,4],[13,3,13,4],[14,3,14,4],[15,3,15,4],[30,3,30,5],[30,7,30,9]]}
[]
[]
[null,null,"CUADRO DE EDADES "]
[]
[null,null,null,12,{"$f":"D5+1","v":13},{"$f":"E5+1","v":14},15,16,17,18,19,"TOTALES "]
[null,null,"FEMENINO",{"$f":"COUNTIFS('C. FILIACION'!I14:I58,\"12\",'C. FILIACION'!E14:E58,\"F\")","v":0},{"$f":"COUNTIFS('C. FILIACION'!I14:I58,\"13\",'C. FILIACION'!E14:E58,\"F\")","v":0},{"$f":"COUNTIFS('C. FILIACION'!I14:I58,\"14\",'C. FILIACION'!E14:E58,\"F\")","v":0},{"$f":"COUNTIFS('C. FILIACION'!I14:I58,\"15\",'C. FILIACION'!E14:E58,\"F\")","v":0},{"$f":"COUNTIFS('C. FILIACION'!I14:I58,\"16\",'C. FILIACION'!E14:E58,\"F\")","v":0},{"$f":"COUNTIFS('C. FILIACION'!I14:I58,\"17\",'C. FILIACION'!E14:E58,\"F\")","v":0},{"$f":"COUNTIFS('C. FILIACION'!I14:I58,\"18\",'C. FILIACION'!E14:E58,\"F\")","v":0},{"$f":"COUNTIFS('C. FILIACION'!I14:I58,\"19\",'C. FILIACION'!E14:E58,\"F\")","v":0},{"$f":"SUM(D6:K6)","v":0}]
[null,null,"MASCULINO ",{"$f":"COUNTIFS('C. FILIACION'!I14:I58,\"12\",'C. FILIACION'!E14:E58,\"M\")","v":0},{"$f":"COUNTIFS('C. FILIACION'!I14:I58,\"13\",'C. FILIACION'!E14:E58,\"M\")","v":0},{"$f":"COUNTIFS('C. FILIACION'!I14:I58,\"14\",'C. FILIACION'!E14:E58,\"M\")","v":0},{"$f":"COUNTIFS('C. FILIACION'!I14:I58,\"15\",'C. FILIACION'!E14:E58,\"M\")","v":0},{"$f":"COUNTIFS('C. FILIACION'!I14:I58,\"16\",'C. FILIACION'!E14:E58,\"M\")","v":0},{"$f":"COUNTIFS('C. FILIACION'!I14:I58,\"17\",'C. FILIACION'!E14:E58,\"M\")","v":0},{"$f":"COUNTIFS('C. FILIACION'!I14:I58,\"18\",'C. FILIACION'!E14:E58,\"M\")","v":0},{"$f":"COUNTIFS('C. FILIACION'!I14:I58,\"19\",'C. FILIACION'!E14:E58,\"M\")","v":0},{"$f":"SUM(D7:K7)","v":0}]
[null,null,"TOTALES ",{"$f":"D6+D7","v":0},{"$f":"E6+E7","v":0},0,0,0,0,0,0,{"$f":"L6+L7","v":0}]
[]
[null,null,"DATOS DE REGISTRO"]
[]
[null,null,"ESTADO DEL ESTUDIANTE","CANTIDAD"]
[null,null,"INSCRITO ",{"$f":"'C. FILIACION'!Q6","v":0}]
[null,null,"RETIRO O ABANDONO",{"$f":"'C. FILIACION'!Q7","v":0}]
[null,null,"NO INCORPORADO",{"$f":"'C. FILIACION'!Q8","v":0}]
[null,null,"EFECTIVO",{"$f":"'C. FILIACION'!Q9","v":0}]
[]
[]
[null,null,"GRÁFICO DE BARRAS SEGÚN PORCENTAJE (%) DE REPROBADOS Y APROBADOS ANUAL"]
[]
[]
[]
[]
[]
[]
[]
[]
[]
[]
[]
[null,null,null,"% APROBADOS ",null,null,null,"% REPOBADOS "]
[]
[]
[null,null,{"$f":"CARATULA!G22","v":0},null,null,null,null,null,{"$f":"CARATULA!G24","v":0}]

{"sheet":"CEN. POR AREA","index":14,"n_rows":60,"n_cols":78,"rows_kept":60,"cut":false,"hidden":false,"merged":[[4,3,4,15],[6,3,6,15],[5,3,5,14],[1,1,1,77],[11,77,12,77],[11,57,11,74],[12,1,12,2],[7,3,7,15],[9,3,9,15],[8,3,8,15],[3,3,3,15],[59,8,59,16],[59,26,59,34],[59,44,59,52],[59,62,59,70],[11,1,11,2],[11,3,11,20],[11,21,11,38],[11,39,11,56]]}
[]
[null,"CENTRALIZADOR DE NOTAS POR ÁREAS Y BIMESTRES "]
[]
[null,null,"UNIDAD EDUCATIVA ",{"$f":"CARATULA!G20","v":0}]
[null,null,"NIVEL ",{"$f":"CARATULA!G26","v":0}]
[null,null,"AÑO DE ESCOLARIDAD ",{"$f":"CONCATENATE(CARATULA!G28,\" \",CARATULA!H28)","v":" "}]
[null,null,"DIRECTOR(A)",{"$f":"CARATULA!G22","v":0}]
[null,null,"MAESTRO(A)",{"$f":"CARATULA!G24","v":0}]
[null,null,"CAMPO ",{"$f":"CARATULA!G30","v":0}]
[null,null,"ÁREA",{"$f":"CARATULA!G32","v":0}]
[]
[null,null,null,"1⁰ BIMESTRE ",null,null,null,null,null,null,null,null,null,null,null,null,null,null,null,null,null,"2⁰ BIMESTRE ",null,null,null,null,null,null,null,null,null,null,null,null,null,null,null,null,null,"3⁰ BIMESTRE ",null,null,null,null,null,null,null,null,null,null,null,null,null,null,null,null,null,"4⁰ BIMESTRE ",null,null,null,null,null,null,null,null,null,null,null,null,null,null,null,null,null,null,null,"TOTAL ÁREAS REPROBADAS  "]
[null,"                            ÁREAS\n\n\n\n   APELLIDOS\n          Y\n   NOMBRES\n",null,"COMUNICACIÓN Y LENGUAJE ","LENGUA EXTRANJERA ","CIENCIAS SOCIALES ","EDUCACIÓN FÍSICA Y DEPORTES","EDUCACIÓN MUSICAL ","ARTES PLÁSTICAS Y VISUALES","MATEMÁTICA ","BIOLOGÍA - GEOGRAFÍA","---FÍSICA","---QUÍMICA ","FÍSICA - QUÍMICA ","FILOSOFÍA - SICOLOGÍA ","VALORES Y ESPIRITUALIDAD ","TEC. TECNOLÓGICA GENERAL/ESPECIALIZADA","PROMEDIO BIMESTRAL",null,null,"ÁREAS REPROBADAS POR ESTUDIANTE ","COMUNICACIÓN Y LENGUAJE ","LENGUA EXTRANJERA ","CIENCIAS SOCIALES ","EDUCACIÓN FÍSICA Y DEPORTES","EDUCACIÓN MUSICAL ","ARTES PLÁSTICAS Y VISUALES","MATEMÁTICA ","BIOLOGÍA - GEOGRAFÍA","---FÍSICA","---QUÍMICA ","FÍSICA - QUÍMICA ","FILOSOFÍA - SICOLOGÍA ","VALORES Y ESPIRITUALIDAD ","TEC. TECNOLÓGICA GENERAL/ESPECIALIZADA","PROMEDIO BIMESTRAL",null,null,"ÁREAS REPROBADAS POR ESTUDIANTE ","COMUNICACIÓN Y LENGUAJE ","LENGUA EXTRANJERA ","CIENCIAS SOCIALES ","EDUCACIÓN FÍSICA Y DEPORTES","EDUCACIÓN MUSICAL ","ARTES PLÁSTICAS Y VISUALES","MATEMÁTICA ","BIOLOGÍA - GEOGRAFÍA","---FÍSICA","---QUÍMICA ","FÍSICA - QUÍMICA ","FILOSOFÍA - SICOLOGÍA ","VALORES Y ESPIRITUALIDAD ","TEC. TECNOLÓGICA GENERAL/ESPECIALIZADA","PROMEDIO BIMESTRAL",null,null,"ÁREAS REPROBADAS POR ESTUDIANTE ","COMUNICACIÓN Y LENGUAJE ","LENGUA EXTRANJERA ","CIENCIAS SOCIALES ","EDUCACIÓN FÍSICA Y DEPORTES","EDUCACIÓN MUSICAL ","ARTES PLÁSTICAS Y VISUALES","MATEMÁTICA ","BIOLOGÍA - GEOGRAFÍA","---FÍSICA","---QUÍMICA ","FÍSICA - QUÍMICA ","FILOSOFÍA - SICOLOGÍA ","VALORES Y ESPIRITUALIDAD ","TEC. TECNOLÓGICA GENERAL/ESPECIALIZADA","PROMEDIO BIMESTRAL",null,null,"ÁREAS REPROBADAS POR ESTUDIANTE ","PROMEDIO FINAL "]
["A1",1,{"$f":"'C. FILIACION'!C14:D14","v":0},null,null,null,null,null,null,null,null,null,null,{"$f":"IFERROR(ROUND(AVERAGE(L14:M14),0),\"\")","v":""},null,null,null,{"$f":"IFERROR(ROUND(AVERAGE(D14:K14,N14:Q14),0),\"\")","v":""},{"$f":"IF((COUNTIF(D14:K14,\"<51\"))=0,\"\",COUNTIF(D14:K14,\"<51\"))","v":""},{"$f":"IF((COUNTIF(N14:Q14,\"<51\"))=0,\"\",COUNTIF(N14:Q14,\"<51\"))","v":""},{"$f":"IF(SUM(S14:T14)=0,\" \",SUM(S14:T14))","v":" "},null,null,null,null,null,null,null,null,null,null,{"$f":"IFERROR(ROUND(AVERAGE(AD14:AE14),0),\"\")","v":""},null,null,null,{"$f":"IFERROR(ROUND(AVERAGE(V14:AC14,AF14:AI14),0),\"\")","v":""},{"$f":"IF((COUNTIF(V14:AC14,\"<51\"))=0,\"\",COUNTIF(V14:AC14,\"<51\"))","v":""},{"$f":"IF((COUNTIF(AF14:AI14,\"<51\"))=0,\"\",COUNTIF(AF14:AI14,\"<51\"))","v":""},{"$f":"IF(SUM(AK14:AL14)=0,\" \",SUM(AK14:AL14))","v":" "},null,null,null,null,null,null,null,null,null,null,{"$f":"IFERROR(ROUND(AVERAGE(AV14:AW14),0),\"\")","v":""},null,null,null,{"$f":"IFERROR(ROUND(AVERAGE(AN14:AU14,AX14:BA14),0),\"\")","v":""},{"$f":"IF((COUNTIF(AN14:AU14,\"<51\"))=0,\"\",COUNTIF(AN14:AU14,\"<51\"))","v":""},{"$f":"IF((COUNTIF(AX14:BA14,\"<51\"))=0,\"\",COUNTIF(AX14:BA14,\"<51\"))","v":""},{"$f":"IF(SUM(BC14:BD14)=0,\" \",SUM(BC14:BD14))","v":" "},null,null,null,null,null,null,null,null,null,null,{"$f":"IFERROR(ROUND(AVERAGE(BN14:BO14),0),\"\")","v":""},null,null,null,{"$f":"IFERROR(ROUND(AVERAGE(BF14:BM14,BP14:BS14),0),\"\")","v":""},{"$f":"IF((COUNTIF(BF14:BM14,\"<51\"))=0,\"\",COUNTIF(BF14:BM14,\"<51\"))","v":""},{"$f":"IF((COUNTIF(BP14:BS14,\"<51\"))=0,\"\",COUNTIF(BP14:BS14,\"<51\"))","v":""},{"$f":"IF(SUM(BU14:BV14)=0,\" \",SUM(BU14:BV14))","v":" "},{"$f":"IFERROR(ROUND(AVERAGE(R14,AJ14,BB14,BT14),0),\"\")","v":""},{"$f":"IFERROR(ROUND(AVERAGE(R14,AJ14,BB14,BT14),3),\"\")","v":""},{"$f":"SUM(U14,AM14,BE14,BW14)","v":0}]
["A2",2,{"$f":"'C. FILIACION'!C15:D15","v":0},null,null,null,null,null,null,null,null,null,null,{"$f":"IFERROR(ROUND(AVERAGE(L15:M15),0),\"\")","v":""},null,null,null,{"$f":"IFERROR(ROUND(AVERAGE(D15:K15,N15:Q15),0),\"\")","v":""},{"$f":"IF((COUNTIF(D15:K15,\"<51\"))=0,\"\",COUNTIF(D15:K15,\"<51\"))","v":""},{"$f":"IF((COUNTIF(N15:Q15,\"<51\"))=0,\"\",COUNTIF(N15:Q15,\"<51\"))","v":""},{"$f":"IF(SUM(S15:T15)=0,\" \",SUM(S15:T15))","v":" "},null,null,null,null,null,null,null,null,null,null,{"$f":"IFERROR(ROUND(AVERAGE(AD15:AE15),0),\"\")","v":""},null,null,null,{"$f":"IFERROR(ROUND(AVERAGE(V15:AC15,AF15:AI15),0),\"\")","v":""},{"$f":"IF((COUNTIF(V15:AC15,\"<51\"))=0,\"\",COUNTIF(V15:AC15,\"<51\"))","v":""},{"$f":"IF((COUNTIF(AF15:AI15,\"<51\"))=0,\"\",COUNTIF(AF15:AI15,\"<51\"))","v":""},{"$f":"IF(SUM(AK15:AL15)=0,\" \",SUM(AK15:AL15))","v":" "},null,null,null,null,null,null,null,null,null,null,{"$f":"IFERROR(ROUND(AVERAGE(AV15:AW15),0),\"\")","v":""},null,null,null,{"$f":"IFERROR(ROUND(AVERAGE(AN15:AU15,AX15:BA15),0),\"\")","v":""},{"$f":"IF((COUNTIF(AN15:AU15,\"<51\"))=0,\"\",COUNTIF(AN15:AU15,\"<51\"))","v":""},{"$f":"IF((COUNTIF(AX15:BA15,\"<51\"))=0,\"\",COUNTIF(AX15:BA15,\"<51\"))","v":""},{"$f":"IF(SUM(BC15:BD15)=0,\" \",SUM(BC15:BD15))","v":" "},null,null,null,null,null,null,null,null,null,null,{"$f":"IFERROR(ROUND(AVERAGE(BN15:BO15),0),\"\")","v":""},null,null,null,{"$f":"IFERROR(ROUND(AVERAGE(BF15:BM15,BP15:BS15),0),\"\")","v":""},{"$f":"IF((COUNTIF(BF15:BM15,\"<51\"))=0,\"\",COUNTIF(BF15:BM15,\"<51\"))","v":""},{"$f":"IF((COUNTIF(BP15:BS15,\"<51\"))=0,\"\",COUNTIF(BP15:BS15,\"<51\"))","v":""},{"$f":"IF(SUM(BU15:BV15)=0,\" \",SUM(BU15:BV15))","v":" "},{"$f":"IFERROR(ROUND(AVERAGE(R15,AJ15,BB15,BT15),0),\"\")","v":""},{"$f":"IFERROR(ROUND(AVERAGE(R15,AJ15,BB15,BT15),4),\"\")","v":""},0]
["A3",3,{"$f":"'C. FILIACION'!C16:D16","v":0},null,null,null,null,null,null,null,null,null,null,"",null,null,null,"","",""," ",null,null,null,null,null,null,null,null,null,null,"",null,null,null,"","",""," ",null,null,null,null,null,null,null,null,null,null,"",null,null,null,"","",""," ",null,null,null,null,null,null,null,null,null,null,"",null,null,null,"","",""," ","","",0]
["A4",4,{"$f":"'C. FILIACION'!C17:D17","v":0},null,null,null,null,null,null,null,null,null,null,"",null,null,null,"","",""," ",null,null,null,null,null,null,null,null,null,null,"",null,null,null,"","",""," ",null,null,null,null,null,null,null,null,null,null,"",null,null,null,"","",""," ",null,null,null,null,null,null,null,null,null,null,"",null,null,null,"","",""," ","","",0]
["A5",5,{"$f":"'C. FILIACION'!C18:D18","v":0},null,null,null,null,null,null,null,null,null,null,"",null,null,null,"","",""," ",null,null,null,null,null,null,null,null,null,null,"",null,null,null,"","",""," ",null,null,null,null,null,null,null,null,null,null,"",null,null,null,"","",""," ",null,null,null,null,null,null,null,null,null,null,"",null,null,null,"","",""," ","","",0]
["A6",6,{"$f":"'C. FILIACION'!C19:D19","v":0},null,null,null,null,null,null,null,null,null,null,"",null,null,null,"","",""," ",null,null,null,null,null,null,null,null,null,null,"",null,null,null,"","",""," ",null,null,null,null,null,null,null,null,null,null,"",null,null,null,"","",""," ",null,null,null,null,null,null,null,null,null,null,"",null,null,null,"","",""," ","","",0]
["A7",7,{"$f":"'C. FILIACION'!C20:D20","v":0},null,null,null,null,null,null,null,null,null,null,"",null,null,null,"","",""," ",null,null,null,null,null,null,null,null,null,null,"",null,null,null,"","",""," ",null,null,null,null,null,null,null,null,null,null,"",null,null,null,"","",""," ",null,null,null,null,null,null,null,null,null,null,"",null,null,null,"","",""," ","","",0]
["A8",8,{"$f":"'C. FILIACION'!C21:D21","v":0},null,null,null,null,null,null,null,null,null,null,"",null,null,null,"","",""," ",null,null,null,null,null,null,null,null,null,null,"",null,null,null,"","",""," ",null,null,null,null,null,null,null,null,null,null,"",null,null,null,"","",""," ",null,null,null,null,null,null,null,null,null,null,"",null,null,null,"","",""," ","","",0]
["A9",9,{"$f":"'C. FILIACION'!C22:D22","v":0},null,null,null,null,null,null,null,null,null,null,"",null,null,null,"","",""," ",null,null,null,null,null,null,null,null,null,null,"",null,null,null,"","",""," ",null,null,null,null,null,null,null,null,null,null,"",null,null,null,"","",""," ",null,null,null,null,null,null,null,null,null,null,"",null,null,null,"","",""," ","","",0]
["A10",10,{"$f":"'C. FILIACION'!C23:D23","v":0},null,null,null,null,null,null,null,null,null,null,"",null,null,null,"","",""," ",null,null,null,null,null,null,null,null,null,null,"",null,null,null,"","",""," ",null,null,null,null,null,null,null,null,null,null,"",null,null,null,"","",""," ",null,null,null,null,null,null,null,null,null,null,"",null,null,null,"","",""," ","","",0]
["A11",11,{"$f":"'C. FILIACION'!C24:D24","v":0},null,null,null,null,null,null,null,null,null,null,"",null,null,null,"","",""," ",null,null,null,null,null,null,null,null,null,null,"",null,null,null,"","",""," ",null,null,null,null,null,null,null,null,null,null,"",null,null,null,"","",""," ",null,null,null,null,null,null,null,null,null,null,"",null,null,null,"","",""," ","","",0]
["A12",12,{"$f":"'C. FILIACION'!C25:D25","v":0},null,null,null,null,null,null,null,null,null,null,"",null,null,null,"","",""," ",null,null,null,null,null,null,null,null,null,null,"",null,null,null,"","",""," ",null,null,null,null,null,null,null,null,null,null,"",null,null,null,"","",""," ",null,null,null,null,null,null,null,null,null,null,"",null,null,null,"","",""," ","","",0]
["A13",13,{"$f":"'C. FILIACION'!C26:D26","v":0},null,null,null,null,null,null,null,null,null,null,"",null,null,null,"","",""," ",null,null,null,null,null,null,null,null,null,null,"",null,null,null,"","",""," ",null,null,null,null,null,null,null,null,null,null,"",null,null,null,"","",""," ",null,null,null,null,null,null,null,null,null,null,"",null,null,null,"","",""," ","","",0]
["A14",14,{"$f":"'C. FILIACION'!C27:D27","v":0},null,null,null,null,null,null,null,null,null,null,"",null,null,null,"","",""," ",null,null,null,null,null,null,null,null,null,null,"",null,null,null,"","",""," ",null,null,null,null,null,null,null,null,null,null,"",null,null,null,"","",""," ",null,null,null,null,null,null,null,null,null,null,"",null,null,null,"","",""," ","","",0]
["A15",15,{"$f":"'C. FILIACION'!C28:D28","v":0},null,null,null,null,null,null,null,null,null,null,"",null,null,null,"","",""," ",null,null,null,null,null,null,null,null,null,null,"",null,null,null,"","",""," ",null,null,null,null,null,null,null,null,null,null,"",null,null,null,"","",""," ",null,null,null,null,null,null,null,null,null,null,"",null,null,null,"","",""," ","","",0]
["A16",16,{"$f":"'C. FILIACION'!C29:D29","v":0},null,null,null,null,null,null,null,null,null,null,"",null,null,null,"","",""," ",null,null,null,null,null,null,null,null,null,null,"",null,null,null,"","",""," ",null,null,null,null,null,null,null,null,null,null,"",null,null,null,"","",""," ",null,null,null,null,null,null,null,null,null,null,"",null,null,null,"","",""," ","","",0]
["A17",17,{"$f":"'C. FILIACION'!C30:D30","v":0},null,null,null,null,null,null,null,null,null,null,"",null,null,null,"","",""," ",null,null,null,null,null,null,null,null,null,null,"",null,null,null,"","",""," ",null,null,null,null,null,null,null,null,null,null,"",null,null,null,"","",""," ",null,null,null,null,null,null,null,null,null,null,"",null,null,null,"","",""," ","","",0]
["A18",18,{"$f":"'C. FILIACION'!C31:D31","v":0},null,null,null,null,null,null,null,null,null,null,"",null,null,null,"","",""," ",null,null,null,null,null,null,null,null,null,null,"",null,null,null,"","",""," ",null,null,null,null,null,null,null,null,null,null,"",null,null,null,"","",""," ",null,null,null,null,null,null,null,null,null,null,"",null,null,null,"","",""," ","","",0]
["A19",19,{"$f":"'C. FILIACION'!C32:D32","v":0},null,null,null,null,null,null,null,null,null,null,"",null,null,null,"","",""," ",null,null,null,null,null,null,null,null,null,null,"",null,null,null,"","",""," ",null,null,null,null,null,null,null,null,null,null,"",null,null,null,"","",""," ",null,null,null,null,null,null,null,null,null,null,"",null,null,null,"","",""," ","","",0]
["A20",20,{"$f":"'C. FILIACION'!C33:D33","v":0},null,null,null,null,null,null,null,null,null,null,"",null,null,null,"","",""," ",null,null,null,null,null,null,null,null,null,null,"",null,null,null,"","",""," ",null,null,null,null,null,null,null,null,null,null,"",null,null,null,"","",""," ",null,null,null,null,null,null,null,null,null,null,"",null,null,null,"","",""," ","","",0]
["A21",21,{"$f":"'C. FILIACION'!C34:D34","v":0},null,null,null,null,null,null,null,null,null,null,"",null,null,null,"","",""," ",null,null,null,null,null,null,null,null,null,null,"",null,null,null,"","",""," ",null,null,null,null,null,null,null,null,null,null,"",null,null,null,"","",""," ",null,null,null,null,null,null,null,null,null,null,"",null,null,null,"","",""," ","","",0]
["A22",22,{"$f":"'C. FILIACION'!C35:D35","v":0},null,null,null,null,null,null,null,null,null,null,"",null,null,null,"","",""," ",null,null,null,null,null,null,null,null,null,null,"",null,null,null,"","",""," ",null,null,null,null,null,null,null,null,null,null,"",null,null,null,"","",""," ",null,null,null,null,null,null,null,null,null,null,"",null,null,null,"","",""," ","","",0]
["A23",23,{"$f":"'C. FILIACION'!C36:D36","v":0},null,null,null,null,null,null,null,null,null,null,"",null,null,null,"","",""," ",null,null,null,null,null,null,null,null,null,null,"",null,null,null,"","",""," ",null,null,null,null,null,null,null,null,null,null,"",null,null,null,"","",""," ",null,null,null,null,null,null,null,null,null,null,"",null,null,null,"","",""," ","","",0]
["A24",24,{"$f":"'C. FILIACION'!C37:D37","v":0},null,null,null,null,null,null,null,null,null,null,"",null,null,null,"","",""," ",null,null,null,null,null,null,null,null,null,null,"",null,null,null,"","",""," ",null,null,null,null,null,null,null,null,null,null,"",null,null,null,"","",""," ",null,null,null,null,null,null,null,null,null,null,"",null,null,null,"","",""," ","","",0]
["A25",25,{"$f":"'C. FILIACION'!C38:D38","v":0},null,null,null,null,null,null,null,null,null,null,"",null,null,null,"","",""," ",null,null,null,null,null,null,null,null,null,null,"",null,null,null,"","",""," ",null,null,null,null,null,null,null,null,null,null,"",null,null,null,"","",""," ",null,null,null,null,null,null,null,null,null,null,"",null,null,null,"","",""," ","","",0]
["A26",26,{"$f":"'C. FILIACION'!C39:D39","v":0},null,null,null,null,null,null,null,null,null,null,"",null,null,null,"","",""," ",null,null,null,null,null,null,null,null,null,null,"",null,null,null,"","",""," ",null,null,null,null,null,null,null,null,null,null,"",null,null,null,"","",""," ",null,null,null,null,null,null,null,null,null,null,"",null,null,null,"","",""," ","","",0]
["A27",27,{"$f":"'C. FILIACION'!C40:D40","v":0},null,null,null,null,null,null,null,null,null,null,"",null,null,null,"","",""," ",null,null,null,null,null,null,null,null,null,null,"",null,null,null,"","",""," ",null,null,null,null,null,null,null,null,null,null,"",null,null,null,"","",""," ",null,null,null,null,null,null,null,null,null,null,"",null,null,null,"","",""," ","","",0]
["A28",28,{"$f":"'C. FILIACION'!C41:D41","v":0},null,null,null,null,null,null,null,null,null,null,"",null,null,null,"","",""," ",null,null,null,null,null,null,null,null,null,null,"",null,null,null,"","",""," ",null,null,null,null,null,null,null,null,null,null,"",null,null,null,"","",""," ",null,null,null,null,null,null,null,null,null,null,"",null,null,null,"","",""," ","","",0]
["A29",29,{"$f":"'C. FILIACION'!C42:D42","v":0},null,null,null,null,null,null,null,null,null,null,"",null,null,null,"","",""," ",null,null,null,null,null,null,null,null,null,null,"",null,null,null,"","",""," ",null,null,null,null,null,null,null,null,null,null,"",null,null,null,"","",""," ",null,null,null,null,null,null,null,null,null,null,"",null,null,null,"","",""," ","","",0]
["A30",30,{"$f":"'C. FILIACION'!C43:D43","v":0},null,null,null,null,null,null,null,null,null,null,"",null,null,null,"","",""," ",null,null,null,null,null,null,null,null,null,null,"",null,null,null,"","",""," ",null,null,null,null,null,null,null,null,null,null,"",null,null,null,"","",""," ",null,null,null,null,null,null,null,null,null,null,"",null,null,null,"","",""," ","","",0]
["A31",31,{"$f":"'C. FILIACION'!C44:D44","v":0},null,null,null,null,null,null,null,null,null,null,"",null,null,null,"","",""," ",null,null,null,null,null,null,null,null,null,null,"",null,null,null,"","",""," ",null,null,null,null,null,null,null,null,null,null,"",null,null,null,"","",""," ",null,null,null,null,null,null,null,null,null,null,"",null,null,null,"","",""," ","","",0]
["A32",32,{"$f":"'C. FILIACION'!C45:D45","v":0},null,null,null,null,null,null,null,null,null,null,"",null,null,null,"","",""," ",null,null,null,null,null,null,null,null,null,null,"",null,null,null,"","",""," ",null,null,null,null,null,null,null,null,null,null,"",null,null,null,"","",""," ",null,null,null,null,null,null,null,null,null,null,"",null,null,null,"","",""," ","","",0]
["A33",33,{"$f":"'C. FILIACION'!C46:D46","v":0},null,null,null,null,null,null,null,null,null,null,"",null,null,null,"","",""," ",null,null,null,null,null,null,null,null,null,null,"",null,null,null,"","",""," ",null,null,null,null,null,null,null,null,null,null,"",null,null,null,"","",""," ",null,null,null,null,null,null,null,null,null,null,"",null,null,null,"","",""," ","","",0]
["A34",34,{"$f":"'C. FILIACION'!C47:D47","v":0},null,null,null,null,null,null,null,null,null,null,"",null,null,null,"","",""," ",null,null,null,null,null,null,null,null,null,null,"",null,null,null,"","",""," ",null,null,null,null,null,null,null,null,null,null,"",null,null,null,"","",""," ",null,null,null,null,null,null,null,null,null,null,"",null,null,null,"","",""," ","","",0]
["A35",35,{"$f":"'C. FILIACION'!C48:D48","v":0},null,null,null,null,null,null,null,null,null,null,"",null,null,null,"","",""," ",null,null,null,null,null,null,null,null,null,null,"",null,null,null,"","",""," ",null,null,null,null,null,null,null,null,null,null,"",null,null,null,"","",""," ",null,null,null,null,null,null,null,null,null,null,"",null,null,null,"","",""," ","","",0]
["A36",36,{"$f":"'C. FILIACION'!C49:D49","v":0},null,null,null,null,null,null,null,null,null,null,"",null,null,null,"","",""," ",null,null,null,null,null,null,null,null,null,null,"",null,null,null,"","",""," ",null,null,null,null,null,null,null,null,null,null,"",null,null,null,"","",""," ",null,null,null,null,null,null,null,null,null,null,"",null,null,null,"","",""," ","","",0]
["A37",37,{"$f":"'C. FILIACION'!C50:D50","v":0},null,null,null,null,null,null,null,null,null,null,"",null,null,null,"","",""," ",null,null,null,null,null,null,null,null,null,null,"",null,null,null,"","",""," ",null,null,null,null,null,null,null,null,null,null,"",null,null,null,"","",""," ",null,null,null,null,null,null,null,null,null,null,"",null,null,null,"","",""," ","","",0]
["A38",38,{"$f":"'C. FILIACION'!C51:D51","v":0},null,null,null,null,null,null,null,null,null,null,"",null,null,null,"","",""," ",null,null,null,null,null,null,null,null,null,null,"",null,null,null,"","",""," ",null,null,null,null,null,null,null,null,null,null,"",null,null,null,"","",""," ",null,null,null,null,null,null,null,null,null,null,"",null,null,null,"","",""," ","","",0]
["A39",39,{"$f":"'C. FILIACION'!C52:D52","v":0},null,null,null,null,null,null,null,null,null,null,"",null,null,null,"","",""," ",null,null,null,null,null,null,null,null,null,null,"",null,null,null,"","",""," ",null,null,null,null,null,null,null,null,null,null,"",null,null,null,"","",""," ",null,null,null,null,null,null,null,null,null,null,"",null,null,null,"","",""," ","","",0]
["A40",40,{"$f":"'C. FILIACION'!C53:D53","v":0},null,null,null,null,null,null,null,null,null,null,"",null,null,null,"","",""," ",null,null,null,null,null,null,null,null,null,null,"",null,null,null,"","",""," ",null,null,null,null,null,null,null,null,null,null,"",null,null,null,"","",""," ",null,null,null,null,null,null,null,null,null,null,"",null,null,null,"","",""," ","","",0]
["A41",41,{"$f":"'C. FILIACION'!C54:D54","v":0},null,null,null,null,null,null,null,null,null,null,"",null,null,null,"","",""," ",null,null,null,null,null,null,null,null,null,null,"",null,null,null,"","",""," ",null,null,null,null,null,null,null,null,null,null,"",null,null,null,"","",""," ",null,null,null,null,null,null,null,null,null,null,"",null,null,null,"","",""," ","","",0]
["A42",42,{"$f":"'C. FILIACION'!C55:D55","v":0},null,null,null,null,null,null,null,null,null,null,"",null,null,null,"","",""," ",null,null,null,null,null,null,null,null,null,null,"",null,null,null,"","",""," ",null,null,null,null,null,null,null,null,null,null,"",null,null,null,"","",""," ",null,null,null,null,null,null,null,null,null,null,"",null,null,null,"","",""," ","","",0]
["A43",43,{"$f":"'C. FILIACION'!C56:D56","v":0},null,null,null,null,null,null,null,null,null,null,"",null,null,null,"","",""," ",null,null,null,null,null,null,null,null,null,null,"",null,null,null,"","",""," ",null,null,null,null,null,null,null,null,null,null,"",null,null,null,"","",""," ",null,null,null,null,null,null,null,null,null,null,"",null,null,null,"","",""," ","","",0]
["A44",44,{"$f":"'C. FILIACION'!C57:D57","v":0},null,null,null,null,null,null,null,null,null,null,"",null,null,null,"","",""," ",null,null,null,null,null,null,null,null,null,null,"",null,null,null,"","",""," ",null,null,null,null,null,null,null,null,null,null,"",null,null,null,"","",""," ",null,null,null,null,null,null,null,null,null,null,"",null,null,null,"","",""," ","","",0]
["A45",45,{"$f":"'C. FILIACION'!C58:D58","v":0},null,null,null,null,null,null,null,null,null,null,"",null,null,null,"","",""," ",null,null,null,null,null,null,null,null,null,null,"",null,null,null,"","",""," ",null,null,null,null,null,null,null,null,null,null,"",null,null,null,"","",""," ",null,null,null,null,null,null,null,null,null,null,"",null,null,null,"","",""," ","","",0]
[]
[null,null,null,null,null,null,null,null,"TOTAL REPROBADOS POR BIMESTRE",null,null,null,null,null,null,null,null,null,null,null,{"$f":"COUNT(U14:U58)","v":0},null,null,null,null,null,"TOTAL REPROBADOS POR BIMESTRE",null,null,null,null,null,null,null,null,null,null,null,{"$f":"COUNT(AM14:AM58)","v":0},null,null,null,null,null,"TOTAL REPROBADOS POR BIMESTRE",null,null,null,null,null,null,null,null,null,null,null,{"$f":"COUNT(BE14:BE58)","v":0},null,null,null,null,null,"TOTAL REPROBADOS POR BIMESTRE",null,null,null,null,null,null,null,null,null,null,null,{"$f":"COUNT(BW14:BW58)","v":0}]

{"sheet":"BOLETINES ","index":15,"n_rows":38,"n_cols":8,"rows_kept":38,"cut":false,"hidden":false,"merged":[[13,4,13,5],[13,6,13,8],[36,5,36,7],[8,6,8,8],[9,6,9,8],[10,6,10,8],[11,6,11,8],[12,6,12,8],[18,2,19,2],[18,3,18,7],[37,5,37,7],[3,1,3,9],[17,2,17,3],[17,4,17,7],[6,2,15,2],[6,4,6,5],[7,4,7,5],[8,4,8,5],[9,4,9,5],[10,4,10,5],[11,4,11,5],[12,4,12,5],[6,6,6,8],[7,6,7,8]]}
[]
[]
[]
[null,"DATOS DEL ESTUDIANTE "]
[null,null,"CÓDIGO DE ESTUDIANTE ","A1"]
[]
[null,null,{"$f":"INDEX('CODIGO Y FOTOGRAFIA '!B3:E47,MATCH('BOLETINES '!D5,'CODIGO Y FOTOGRAFIA '!B3:B47,0),4)","v":"IMAG1"},null,"NOMBRE ",null,{"$f":"INDEX('C. FILIACION'!A14:Q58,MATCH('BOLETINES '!D5,'C. FILIACION'!A14:A58,0),3)","v":0}]
[null,null,null,null,"GÉNERO",null,{"$f":"INDEX('C. FILIACION'!A14:Q58,MATCH('BOLETINES '!D5,'C. FILIACION'!A14:A58,0),5)","v":0}]
[null,null,null,null,"EDAD",null,{"$f":"INDEX('C. FILIACION'!A14:Q58,MATCH('BOLETINES '!D5,'C. FILIACION'!A14:A58,0),9)","v":{"$error":"#NUM!"}}]
[null,null,null,null,"RUDE ",null,{"$f":"INDEX('C. FILIACION'!A14:Q58,MATCH('BOLETINES '!D5,'C. FILIACION'!A14:A58,0),11)","v":0}]
[null,null,null,null,"C.I.",null,{"$f":"INDEX('C. FILIACION'!A14:Q58,MATCH('BOLETINES '!D5,'C. FILIACION'!A14:A58,0),12)","v":0}]
[null,null,null,null,"DIRECCIÓN ACTUAL",null,{"$f":"INDEX('C. FILIACION'!A14:Q58,MATCH('BOLETINES '!D5,'C. FILIACION'!A14:A58,0),14)","v":0}]
[null,null,null,null,"NOMBRE DE TUTOR",null,{"$f":"INDEX('C. FILIACION'!A14:Q58,MATCH('BOLETINES '!D5,'C. FILIACION'!A14:A58,0),15)","v":0}]
[null,null,null,null,"TELÉFONO ",null,{"$f":"INDEX('C. FILIACION'!A14:Q58,MATCH('BOLETINES '!D5,'C. FILIACION'!A14:A58,0),17)","v":0}]
[]
[]
[]
[null,null,{"$f":"\"ESTUDIANTE:  \"&G7","v":"ESTUDIANTE:  0"},null,{"$f":"CONCATENATE(CARATULA!G28,\" \",CARATULA!H28)","v":" "}]
[null,null,"ÁREAS CURRICULARES ","VALORACIÓN CUANTITATIVA "]
[null,null,null,"1⁰ BIMESTRE","2⁰ BIMESTRE","3⁰ BIMESTRE","4⁰ BIMESTRE","PRO. ANUAL"]
[null,null,"COMUNICACIÓN Y LENGUAJES: LENGUA CASTELLANA Y ORIGINARIA  ",{"$f":"INDEX('CEN. POR AREA'!A14:Q58,MATCH('BOLETINES '!D5,'CEN. POR AREA'!A14:A58,0),4)","v":0},{"$f":"INDEX('CEN. POR AREA'!A14:AI58,MATCH('BOLETINES '!D5,'CEN. POR AREA'!A14:A58,0),22)","v":0},{"$f":"INDEX('CEN. POR AREA'!A14:BA58,MATCH('BOLETINES '!D5,'CEN. POR AREA'!A14:A58,0),40)","v":0},{"$f":"INDEX('CEN. POR AREA'!A14:BS58,MATCH('BOLETINES '!D5,'CEN. POR AREA'!A14:A58,0),58)","v":0},{"$f":"IFERROR(ROUND(AVERAGE(D21:G21),0),\"\")","v":0}]
[null,null,"LENGUA EXTRANJERA",{"$f":"INDEX('CEN. POR AREA'!A14:Q58,MATCH('BOLETINES '!D5,'CEN. POR AREA'!A14:A58,0),5)","v":0},{"$f":"INDEX('CEN. POR AREA'!A14:AI58,MATCH('BOLETINES '!D5,'CEN. POR AREA'!A14:A58,0),23)","v":0},{"$f":"INDEX('CEN. POR AREA'!A14:BA58,MATCH('BOLETINES '!D5,'CEN. POR AREA'!A14:A58,0),41)","v":0},{"$f":"INDEX('CEN. POR AREA'!A14:BS58,MATCH('BOLETINES '!D5,'CEN. POR AREA'!A14:A58,0),59)","v":0},{"$f":"IFERROR(ROUND(AVERAGE(D22:G22),0),\"\")","v":0}]
[null,null,"CIENCIAS SOCIALES ",{"$f":"INDEX('CEN. POR AREA'!A14:Q58,MATCH('BOLETINES '!D5,'CEN. POR AREA'!A14:A58,0),6)","v":0},{"$f":"INDEX('CEN. POR AREA'!A14:AI58,MATCH('BOLETINES '!D5,'CEN. POR AREA'!A14:A58,0),24)","v":0},{"$f":"INDEX('CEN. POR AREA'!A14:BA58,MATCH('BOLETINES '!D5,'CEN. POR AREA'!A14:A58,0),42)","v":0},{"$f":"INDEX('CEN. POR AREA'!A14:BS58,MATCH('BOLETINES '!D5,'CEN. POR AREA'!A14:A58,0),60)","v":0},0]
[null,null,"EDUCACIÓN FÍSICA Y DEPORTES ",{"$f":"INDEX('CEN. POR AREA'!A14:Q58,MATCH('BOLETINES '!D5,'CEN. POR AREA'!A14:A58,0),7)","v":0},{"$f":"INDEX('CEN. POR AREA'!A14:AI58,MATCH('BOLETINES '!D5,'CEN. POR AREA'!A14:A58,0),25)","v":0},{"$f":"INDEX('CEN. POR AREA'!A14:BA58,MATCH('BOLETINES '!D5,'CEN. POR AREA'!A14:A58,0),43)","v":0},{"$f":"INDEX('CEN. POR AREA'!A14:BS58,MATCH('BOLETINES '!D5,'CEN. POR AREA'!A14:A58,0),61)","v":0},0]
[null,null,"EDUCACIÓN MUSICAL",{"$f":"INDEX('CEN. POR AREA'!A14:Q58,MATCH('BOLETINES '!D5,'CEN. POR AREA'!A14:A58,0),8)","v":0},{"$f":"INDEX('CEN. POR AREA'!A14:AI58,MATCH('BOLETINES '!D5,'CEN. POR AREA'!A14:A58,0),26)","v":0},{"$f":"INDEX('CEN. POR AREA'!A14:BA58,MATCH('BOLETINES '!D5,'CEN. POR AREA'!A14:A58,0),44)","v":0},{"$f":"INDEX('CEN. POR AREA'!A14:BS58,MATCH('BOLETINES '!D5,'CEN. POR AREA'!A14:A58,0),62)","v":0},0]
[null,null,"ARTES PLÁSTICAS Y VISUALES ",{"$f":"INDEX('CEN. POR AREA'!A14:Q58,MATCH('BOLETINES '!D5,'CEN. POR AREA'!A14:A58,0),9)","v":0},{"$f":"INDEX('CEN. POR AREA'!A14:AI58,MATCH('BOLETINES '!D5,'CEN. POR AREA'!A14:A58,0),27)","v":0},{"$f":"INDEX('CEN. POR AREA'!A14:BA58,MATCH('BOLETINES '!D5,'CEN. POR AREA'!A14:A58,0),45)","v":0},{"$f":"INDEX('CEN. POR AREA'!A14:BS58,MATCH('BOLETINES '!D5,'CEN. POR AREA'!A14:A58,0),63)","v":0},0]
[null,null,"MATEMÁTICA",{"$f":"INDEX('CEN. POR AREA'!A14:Q58,MATCH('BOLETINES '!D5,'CEN. POR AREA'!A14:A58,0),10)","v":0},{"$f":"INDEX('CEN. POR AREA'!A14:AI58,MATCH('BOLETINES '!D5,'CEN. POR AREA'!A14:A58,0),28)","v":0},{"$f":"INDEX('CEN. POR AREA'!A14:BA58,MATCH('BOLETINES '!D5,'CEN. POR AREA'!A14:A58,0),46)","v":0},{"$f":"INDEX('CEN. POR AREA'!A14:BS58,MATCH('BOLETINES '!D5,'CEN. POR AREA'!A14:A58,0),64)","v":0},0]
[null,null,"CIENCIAS NATURALES: BIOLOGÍA - GEOGRAFÍA",{"$f":"INDEX('CEN. POR AREA'!A14:Q58,MATCH('BOLETINES '!D5,'CEN. POR AREA'!A14:A58,0),11)","v":0},{"$f":"INDEX('CEN. POR AREA'!A14:AI58,MATCH('BOLETINES '!D5,'CEN. POR AREA'!A14:A58,0),29)","v":0},{"$f":"INDEX('CEN. POR AREA'!A14:BA58,MATCH('BOLETINES '!D5,'CEN. POR AREA'!A14:A58,0),47)","v":0},{"$f":"INDEX('CEN. POR AREA'!A14:BS58,MATCH('BOLETINES '!D5,'CEN. POR AREA'!A14:A58,0),65)","v":0},0]
[null,null,"CIENCIAS NATURALES FÍSICA - QUÍMICA ",{"$f":"INDEX('CEN. POR AREA'!A14:Q58,MATCH('BOLETINES '!D5,'CEN. POR AREA'!A14:A58,0),14)","v":""},{"$f":"INDEX('CEN. POR AREA'!A14:AI58,MATCH('BOLETINES '!D5,'CEN. POR AREA'!A14:A58,0),32)","v":""},{"$f":"INDEX('CEN. POR AREA'!A14:BA58,MATCH('BOLETINES '!D5,'CEN. POR AREA'!A14:A58,0),50)","v":""},{"$f":"INDEX('CEN. POR AREA'!A14:BS58,MATCH('BOLETINES '!D5,'CEN. POR AREA'!A14:A58,0),68)","v":""},""]
[null,null,"--- CIENCIAS NATURALES: FÍSICA ",{"$f":"INDEX('CEN. POR AREA'!A14:Q58,MATCH('BOLETINES '!D5,'CEN. POR AREA'!A14:A58,0),12)","v":0},{"$f":"INDEX('CEN. POR AREA'!A14:AI58,MATCH('BOLETINES '!D5,'CEN. POR AREA'!A14:A58,0),30)","v":0},{"$f":"INDEX('CEN. POR AREA'!A14:BA58,MATCH('BOLETINES '!D5,'CEN. POR AREA'!A14:A58,0),48)","v":0},{"$f":"INDEX('CEN. POR AREA'!A14:BS58,MATCH('BOLETINES '!D5,'CEN. POR AREA'!A14:A58,0),66)","v":0},0]
[null,null,"--- CIENCIAS NATURALES: QUÍMICA ",{"$f":"INDEX('CEN. POR AREA'!A14:Q58,MATCH('BOLETINES '!D5,'CEN. POR AREA'!A14:A58,0),13)","v":0},{"$f":"INDEX('CEN. POR AREA'!A14:AI58,MATCH('BOLETINES '!D5,'CEN. POR AREA'!A14:A58,0),31)","v":0},{"$f":"INDEX('CEN. POR AREA'!A14:BA58,MATCH('BOLETINES '!D5,'CEN. POR AREA'!A14:A58,0),49)","v":0},{"$f":"INDEX('CEN. POR AREA'!A14:BS58,MATCH('BOLETINES '!D5,'CEN. POR AREA'!A14:A58,0),67)","v":0},0]
[null,null,"COSMOVISIONES, FILOSOFÍA Y SICOLOGÍA ",{"$f":"INDEX('CEN. POR AREA'!A14:Q58,MATCH('BOLETINES '!D5,'CEN. POR AREA'!A14:A58,0),15)","v":0},{"$f":"INDEX('CEN. POR AREA'!A14:AI58,MATCH('BOLETINES '!D5,'CEN. POR AREA'!A14:A58,0),33)","v":0},{"$f":"INDEX('CEN. POR AREA'!A14:BA58,MATCH('BOLETINES '!D5,'CEN. POR AREA'!A14:A58,0),51)","v":0},{"$f":"INDEX('CEN. POR AREA'!A14:BS58,MATCH('BOLETINES '!D5,'CEN. POR AREA'!A14:A58,0),69)","v":0},0]
[null,null,"VALORES, ESPIRITUALIDAD Y RELIGIONES",{"$f":"INDEX('CEN. POR AREA'!A14:Q58,MATCH('BOLETINES '!D5,'CEN. POR AREA'!A14:A58,0),16)","v":0},{"$f":"INDEX('CEN. POR AREA'!A14:AI58,MATCH('BOLETINES '!D5,'CEN. POR AREA'!A14:A58,0),34)","v":0},{"$f":"INDEX('CEN. POR AREA'!A14:BA58,MATCH('BOLETINES '!D5,'CEN. POR AREA'!A14:A58,0),52)","v":0},{"$f":"INDEX('CEN. POR AREA'!A14:BS58,MATCH('BOLETINES '!D5,'CEN. POR AREA'!A14:A58,0),70)","v":0},0]
[null,null,"TEC. TECNOLÓGICA GENERAL/ESPECIALIZADA ",{"$f":"INDEX('CEN. POR AREA'!A14:Q58,MATCH('BOLETINES '!D5,'CEN. POR AREA'!A14:A58,0),17)","v":0},{"$f":"INDEX('CEN. POR AREA'!A14:AI58,MATCH('BOLETINES '!D5,'CEN. POR AREA'!A14:A58,0),35)","v":0},{"$f":"INDEX('CEN. POR AREA'!A14:BA58,MATCH('BOLETINES '!D5,'CEN. POR AREA'!A14:A58,0),53)","v":0},{"$f":"INDEX('CEN. POR AREA'!A14:BS58,MATCH('BOLETINES '!D5,'CEN. POR AREA'!A14:A58,0),71)","v":0},0]
[]
[]
[]
[null,null,{"$f":"CARATULA!G22","v":0},null,null,{"$f":"CARATULA!G24","v":0}]

{"sheet":"NOT_ALT","index":16,"n_rows":51,"n_cols":4,"rows_kept":51,"cut":false,"hidden":true,"merged":[]}
[]
[]
[]
[]
[]
["Nº","NOTA","Nº","APELLIDOS Y NOMBRES"]
[1,{"$f":"IF('CEN. POR AREA'!BY$14<=1,\" \",LARGE('CEN. POR AREA'!BY$14:BY$58,1))","v":{"$error":"#NUM!"}},{"$f":"IF(B7<=1,\" \",MATCH(B7,'CEN. POR AREA'!BY$14:BY$58,0))","v":{"$error":"#NUM!"}},{"$f":"LOOKUP(C7,'CEN. POR AREA'!B$14:B$58:'CEN. POR AREA'!C$14:C$58)","v":{"$error":"#NUM!"}}]
[2,{"$f":"IF('CEN. POR AREA'!BY$14<=1,\" \",LARGE('CEN. POR AREA'!BY$14:BY$58,2))","v":{"$error":"#NUM!"}},{"$f":"IF(B8<=1,\" \",MATCH(B8,'CEN. POR AREA'!BY$14:BY$58,0))","v":{"$error":"#NUM!"}},{"$f":"LOOKUP(C8,'CEN. POR AREA'!B$14:B$58:'CEN. POR AREA'!C$14:C$58)","v":{"$error":"#NUM!"}}]
[3,{"$f":"IF('CEN. POR AREA'!BY$14<=1,\" \",LARGE('CEN. POR AREA'!BY$14:BY$58,3))","v":{"$error":"#NUM!"}},{"$f":"IF(B9<=1,\" \",MATCH(B9,'CEN. POR AREA'!BY$14:BY$58,0))","v":{"$error":"#NUM!"}},{"$f":"LOOKUP(C9,'CEN. POR AREA'!B$14:B$58:'CEN. POR AREA'!C$14:C$58)","v":{"$error":"#NUM!"}}]
[4,{"$f":"IF('CEN. POR AREA'!BY$14<=1,\" \",LARGE('CEN. POR AREA'!BY$14:BY$58,4))","v":{"$error":"#NUM!"}},{"$f":"IF(B10<=1,\" \",MATCH(B10,'CEN. POR AREA'!BY$14:BY$58,0))","v":{"$error":"#NUM!"}},{"$f":"LOOKUP(C10,'CEN. POR AREA'!B$14:B$58:'CEN. POR AREA'!C$14:C$58)","v":{"$error":"#NUM!"}}]
[5,{"$f":"IF('CEN. POR AREA'!BY$14<=1,\" \",LARGE('CEN. POR AREA'!BY$14:BY$58,5))","v":{"$error":"#NUM!"}},{"$f":"IF(B11<=1,\" \",MATCH(B11,'CEN. POR AREA'!BY$14:BY$58,0))","v":{"$error":"#NUM!"}},{"$f":"LOOKUP(C11,'CEN. POR AREA'!B$14:B$58:'CEN. POR AREA'!C$14:C$58)","v":{"$error":"#NUM!"}}]
[6,{"$f":"IF('CEN. POR AREA'!BY$14<=1,\" \",LARGE('CEN. POR AREA'!BY$14:BY$58,6))","v":{"$error":"#NUM!"}},{"$f":"IF(B12<=1,\" \",MATCH(B12,'CEN. POR AREA'!BY$14:BY$58,0))","v":{"$error":"#NUM!"}},{"$f":"LOOKUP(C12,'CEN. POR AREA'!B$14:B$58:'CEN. POR AREA'!C$14:C$58)","v":{"$error":"#NUM!"}}]
[7,{"$f":"IF('CEN. POR AREA'!BY$14<=1,\" \",LARGE('CEN. POR AREA'!BY$14:BY$58,7))","v":{"$error":"#NUM!"}},{"$f":"IF(B13<=1,\" \",MATCH(B13,'CEN. POR AREA'!BY$14:BY$58,0))","v":{"$error":"#NUM!"}},{"$f":"LOOKUP(C13,'CEN. POR AREA'!B$14:B$58:'CEN. POR AREA'!C$14:C$58)","v":{"$error":"#NUM!"}}]
[8,{"$f":"IF('CEN. POR AREA'!BY$14<=1,\" \",LARGE('CEN. POR AREA'!BY$14:BY$58,8))","v":{"$error":"#NUM!"}},{"$f":"IF(B14<=1,\" \",MATCH(B14,'CEN. POR AREA'!BY$14:BY$58,0))","v":{"$error":"#NUM!"}},{"$f":"LOOKUP(C14,'CEN. POR AREA'!B$14:B$58:'CEN. POR AREA'!C$14:C$58)","v":{"$error":"#NUM!"}}]
[9,{"$f":"IF('CEN. POR AREA'!BY$14<=1,\" \",LARGE('CEN. POR AREA'!BY$14:BY$58,9))","v":{"$error":"#NUM!"}},{"$f":"IF(B15<=1,\" \",MATCH(B15,'CEN. POR AREA'!BY$14:BY$58,0))","v":{"$error":"#NUM!"}},{"$f":"LOOKUP(C15,'CEN. POR AREA'!B$14:B$58:'CEN. POR AREA'!C$14:C$58)","v":{"$error":"#NUM!"}}]
[10,{"$f":"IF('CEN. POR AREA'!BY$14<=1,\" \",LARGE('CEN. POR AREA'!BY$14:BY$58,10))","v":{"$error":"#NUM!"}},{"$f":"IF(B16<=1,\" \",MATCH(B16,'CEN. POR AREA'!BY$14:BY$58,0))","v":{"$error":"#NUM!"}},{"$f":"LOOKUP(C16,'CEN. POR AREA'!B$14:B$58:'CEN. POR AREA'!C$14:C$58)","v":{"$error":"#NUM!"}}]
[11,{"$f":"IF('CEN. POR AREA'!BY$14<=1,\" \",LARGE('CEN. POR AREA'!BY$14:BY$58,11))","v":{"$error":"#NUM!"}},{"$f":"IF(B17<=1,\" \",MATCH(B17,'CEN. POR AREA'!BY$14:BY$58,0))","v":{"$error":"#NUM!"}},{"$f":"LOOKUP(C17,'CEN. POR AREA'!B$14:B$58:'CEN. POR AREA'!C$14:C$58)","v":{"$error":"#NUM!"}}]
[12,{"$f":"IF('CEN. POR AREA'!BY$14<=1,\" \",LARGE('CEN. POR AREA'!BY$14:BY$58,12))","v":{"$error":"#NUM!"}},{"$f":"IF(B18<=1,\" \",MATCH(B18,'CEN. POR AREA'!BY$14:BY$58,0))","v":{"$error":"#NUM!"}},{"$f":"LOOKUP(C18,'CEN. POR AREA'!B$14:B$58:'CEN. POR AREA'!C$14:C$58)","v":{"$error":"#NUM!"}}]
[13,{"$f":"IF('CEN. POR AREA'!BY$14<=1,\" \",LARGE('CEN. POR AREA'!BY$14:BY$58,13))","v":{"$error":"#NUM!"}},{"$f":"IF(B19<=1,\" \",MATCH(B19,'CEN. POR AREA'!BY$14:BY$58,0))","v":{"$error":"#NUM!"}},{"$f":"LOOKUP(C19,'CEN. POR AREA'!B$14:B$58:'CEN. POR AREA'!C$14:C$58)","v":{"$error":"#NUM!"}}]
[14,{"$f":"IF('CEN. POR AREA'!BY$14<=1,\" \",LARGE('CEN. POR AREA'!BY$14:BY$58,14))","v":{"$error":"#NUM!"}},{"$f":"IF(B20<=1,\" \",MATCH(B20,'CEN. POR AREA'!BY$14:BY$58,0))","v":{"$error":"#NUM!"}},{"$f":"LOOKUP(C20,'CEN. POR AREA'!B$14:B$58:'CEN. POR AREA'!C$14:C$58)","v":{"$error":"#NUM!"}}]
[15,{"$f":"IF('CEN. POR AREA'!BY$14<=1,\" \",LARGE('CEN. POR AREA'!BY$14:BY$58,15))","v":{"$error":"#NUM!"}},{"$f":"IF(B21<=1,\" \",MATCH(B21,'CEN. POR AREA'!BY$14:BY$58,0))","v":{"$error":"#NUM!"}},{"$f":"LOOKUP(C21,'CEN. POR AREA'!B$14:B$58:'CEN. POR AREA'!C$14:C$58)","v":{"$error":"#NUM!"}}]
[16,{"$f":"IF('CEN. POR AREA'!BY$14<=1,\" \",LARGE('CEN. POR AREA'!BY$14:BY$58,16))","v":{"$error":"#NUM!"}},{"$f":"IF(B22<=1,\" \",MATCH(B22,'CEN. POR AREA'!BY$14:BY$58,0))","v":{"$error":"#NUM!"}},{"$f":"LOOKUP(C22,'CEN. POR AREA'!B$14:B$58:'CEN. POR AREA'!C$14:C$58)","v":{"$error":"#NUM!"}}]
[17,{"$f":"IF('CEN. POR AREA'!BY$14<=1,\" \",LARGE('CEN. POR AREA'!BY$14:BY$58,17))","v":{"$error":"#NUM!"}},{"$f":"IF(B23<=1,\" \",MATCH(B23,'CEN. POR AREA'!BY$14:BY$58,0))","v":{"$error":"#NUM!"}},{"$f":"LOOKUP(C23,'CEN. POR AREA'!B$14:B$58:'CEN. POR AREA'!C$14:C$58)","v":{"$error":"#NUM!"}}]
[18,{"$f":"IF('CEN. POR AREA'!BY$14<=1,\" \",LARGE('CEN. POR AREA'!BY$14:BY$58,18))","v":{"$error":"#NUM!"}},{"$f":"IF(B24<=1,\" \",MATCH(B24,'CEN. POR AREA'!BY$14:BY$58,0))","v":{"$error":"#NUM!"}},{"$f":"LOOKUP(C24,'CEN. POR AREA'!B$14:B$58:'CEN. POR AREA'!C$14:C$58)","v":{"$error":"#NUM!"}}]
[19,{"$f":"IF('CEN. POR AREA'!BY$14<=1,\" \",LARGE('CEN. POR AREA'!BY$14:BY$58,19))","v":{"$error":"#NUM!"}},{"$f":"IF(B25<=1,\" \",MATCH(B25,'CEN. POR AREA'!BY$14:BY$58,0))","v":{"$error":"#NUM!"}},{"$f":"LOOKUP(C25,'CEN. POR AREA'!B$14:B$58:'CEN. POR AREA'!C$14:C$58)","v":{"$error":"#NUM!"}}]
[20,{"$f":"IF('CEN. POR AREA'!BY$14<=1,\" \",LARGE('CEN. POR AREA'!BY$14:BY$58,20))","v":{"$error":"#NUM!"}},{"$f":"IF(B26<=1,\" \",MATCH(B26,'CEN. POR AREA'!BY$14:BY$58,0))","v":{"$error":"#NUM!"}},{"$f":"LOOKUP(C26,'CEN. POR AREA'!B$14:B$58:'CEN. POR AREA'!C$14:C$58)","v":{"$error":"#NUM!"}}]
[21,{"$f":"IF('CEN. POR AREA'!BY$14<=1,\" \",LARGE('CEN. POR AREA'!BY$14:BY$58,21))","v":{"$error":"#NUM!"}},{"$f":"IF(B27<=1,\" \",MATCH(B27,'CEN. POR AREA'!BY$14:BY$58,0))","v":{"$error":"#NUM!"}},{"$f":"LOOKUP(C27,'CEN. POR AREA'!B$14:B$58:'CEN. POR AREA'!C$14:C$58)","v":{"$error":"#NUM!"}}]
[22,{"$f":"IF('CEN. POR AREA'!BY$14<=1,\" \",LARGE('CEN. POR AREA'!BY$14:BY$58,22))","v":{"$error":"#NUM!"}},{"$f":"IF(B28<=1,\" \",MATCH(B28,'CEN. POR AREA'!BY$14:BY$58,0))","v":{"$error":"#NUM!"}},{"$f":"LOOKUP(C28,'CEN. POR AREA'!B$14:B$58:'CEN. POR AREA'!C$14:C$58)","v":{"$error":"#NUM!"}}]
[23,{"$f":"IF('CEN. POR AREA'!BY$14<=1,\" \",LARGE('CEN. POR AREA'!BY$14:BY$58,23))","v":{"$error":"#NUM!"}},{"$f":"IF(B29<=1,\" \",MATCH(B29,'CEN. POR AREA'!BY$14:BY$58,0))","v":{"$error":"#NUM!"}},{"$f":"LOOKUP(C29,'CEN. POR AREA'!B$14:B$58:'CEN. POR AREA'!C$14:C$58)","v":{"$error":"#NUM!"}}]
[24,{"$f":"IF('CEN. POR AREA'!BY$14<=1,\" \",LARGE('CEN. POR AREA'!BY$14:BY$58,24))","v":{"$error":"#NUM!"}},{"$f":"IF(B30<=1,\" \",MATCH(B30,'CEN. POR AREA'!BY$14:BY$58,0))","v":{"$error":"#NUM!"}},{"$f":"LOOKUP(C30,'CEN. POR AREA'!B$14:B$58:'CEN. POR AREA'!C$14:C$58)","v":{"$error":"#NUM!"}}]
[25,{"$f":"IF('CEN. POR AREA'!BY$14<=1,\" \",LARGE('CEN. POR AREA'!BY$14:BY$58,25))","v":{"$error":"#NUM!"}},{"$f":"IF(B31<=1,\" \",MATCH(B31,'CEN. POR AREA'!BY$14:BY$58,0))","v":{"$error":"#NUM!"}},{"$f":"LOOKUP(C31,'CEN. POR AREA'!B$14:B$58:'CEN. POR AREA'!C$14:C$58)","v":{"$error":"#NUM!"}}]
[26,{"$f":"IF('CEN. POR AREA'!BY$14<=1,\" \",LARGE('CEN. POR AREA'!BY$14:BY$58,26))","v":{"$error":"#NUM!"}},{"$f":"IF(B32<=1,\" \",MATCH(B32,'CEN. POR AREA'!BY$14:BY$58,0))","v":{"$error":"#NUM!"}},{"$f":"LOOKUP(C32,'CEN. POR AREA'!B$14:B$58:'CEN. POR AREA'!C$14:C$58)","v":{"$error":"#NUM!"}}]
[27,{"$f":"IF('CEN. POR AREA'!BY$14<=1,\" \",LARGE('CEN. POR AREA'!BY$14:BY$58,27))","v":{"$error":"#NUM!"}},{"$f":"IF(B33<=1,\" \",MATCH(B33,'CEN. POR AREA'!BY$14:BY$58,0))","v":{"$error":"#NUM!"}},{"$f":"LOOKUP(C33,'CEN. POR AREA'!B$14:B$58:'CEN. POR AREA'!C$14:C$58)","v":{"$error":"#NUM!"}}]
[28,{"$f":"IF('CEN. POR AREA'!BY$14<=1,\" \",LARGE('CEN. POR AREA'!BY$14:BY$58,28))","v":{"$error":"#NUM!"}},{"$f":"IF(B34<=1,\" \",MATCH(B34,'CEN. POR AREA'!BY$14:BY$58,0))","v":{"$error":"#NUM!"}},{"$f":"LOOKUP(C34,'CEN. POR AREA'!B$14:B$58:'CEN. POR AREA'!C$14:C$58)","v":{"$error":"#NUM!"}}]
[29,{"$f":"IF('CEN. POR AREA'!BY$14<=1,\" \",LARGE('CEN. POR AREA'!BY$14:BY$58,29))","v":{"$error":"#NUM!"}},{"$f":"IF(B35<=1,\" \",MATCH(B35,'CEN. POR AREA'!BY$14:BY$58,0))","v":{"$error":"#NUM!"}},{"$f":"LOOKUP(C35,'CEN. POR AREA'!B$14:B$58:'CEN. POR AREA'!C$14:C$58)","v":{"$error":"#NUM!"}}]
[30,{"$f":"IF('CEN. POR AREA'!BY$14<=1,\" \",LARGE('CEN. POR AREA'!BY$14:BY$58,30))","v":{"$error":"#NUM!"}},{"$f":"IF(B36<=1,\" \",MATCH(B36,'CEN. POR AREA'!BY$14:BY$58,0))","v":{"$error":"#NUM!"}},{"$f":"LOOKUP(C36,'CEN. POR AREA'!B$14:B$58:'CEN. POR AREA'!C$14:C$58)","v":{"$error":"#NUM!"}}]
[31,{"$f":"IF('CEN. POR AREA'!BY$14<=1,\" \",LARGE('CEN. POR AREA'!BY$14:BY$58,31))","v":{"$error":"#NUM!"}},{"$f":"IF(B37<=1,\" \",MATCH(B37,'CEN. POR AREA'!BY$14:BY$58,0))","v":{"$error":"#NUM!"}},{"$f":"LOOKUP(C37,'CEN. POR AREA'!B$14:B$58:'CEN. POR AREA'!C$14:C$58)","v":{"$error":"#NUM!"}}]
[32,{"$f":"IF('CEN. POR AREA'!BY$14<=1,\" \",LARGE('CEN. POR AREA'!BY$14:BY$58,32))","v":{"$error":"#NUM!"}},{"$f":"IF(B38<=1,\" \",MATCH(B38,'CEN. POR AREA'!BY$14:BY$58,0))","v":{"$error":"#NUM!"}},{"$f":"LOOKUP(C38,'CEN. POR AREA'!B$14:B$58:'CEN. POR AREA'!C$14:C$58)","v":{"$error":"#NUM!"}}]
[33,{"$f":"IF('CEN. POR AREA'!BY$14<=1,\" \",LARGE('CEN. POR AREA'!BY$14:BY$58,33))","v":{"$error":"#NUM!"}},{"$f":"IF(B39<=1,\" \",MATCH(B39,'CEN. POR AREA'!BY$14:BY$58,0))","v":{"$error":"#NUM!"}},{"$f":"LOOKUP(C39,'CEN. POR AREA'!B$14:B$58:'CEN. POR AREA'!C$14:C$58)","v":{"$error":"#NUM!"}}]
[34,{"$f":"IF('CEN. POR AREA'!BY$14<=1,\" \",LARGE('CEN. POR AREA'!BY$14:BY$58,34))","v":{"$error":"#NUM!"}},{"$f":"IF(B40<=1,\" \",MATCH(B40,'CEN. POR AREA'!BY$14:BY$58,0))","v":{"$error":"#NUM!"}},{"$f":"LOOKUP(C40,'CEN. POR AREA'!B$14:B$58:'CEN. POR AREA'!C$14:C$58)","v":{"$error":"#NUM!"}}]
[35,{"$f":"IF('CEN. POR AREA'!BY$14<=1,\" \",LARGE('CEN. POR AREA'!BY$14:BY$58,35))","v":{"$error":"#NUM!"}},{"$f":"IF(B41<=1,\" \",MATCH(B41,'CEN. POR AREA'!BY$14:BY$58,0))","v":{"$error":"#NUM!"}},{"$f":"LOOKUP(C41,'CEN. POR AREA'!B$14:B$58:'CEN. POR AREA'!C$14:C$58)","v":{"$error":"#NUM!"}}]
[36,{"$f":"IF('CEN. POR AREA'!BY$14<=1,\" \",LARGE('CEN. POR AREA'!BY$14:BY$58,36))","v":{"$error":"#NUM!"}},{"$f":"IF(B42<=1,\" \",MATCH(B42,'CEN. POR AREA'!BY$14:BY$58,0))","v":{"$error":"#NUM!"}},{"$f":"LOOKUP(C42,'CEN. POR AREA'!B$14:B$58:'CEN. POR AREA'!C$14:C$58)","v":{"$error":"#NUM!"}}]
[37,{"$f":"IF('CEN. POR AREA'!BY$14<=1,\" \",LARGE('CEN. POR AREA'!BY$14:BY$58,37))","v":{"$error":"#NUM!"}},{"$f":"IF(B43<=1,\" \",MATCH(B43,'CEN. POR AREA'!BY$14:BY$58,0))","v":{"$error":"#NUM!"}},{"$f":"LOOKUP(C43,'CEN. POR AREA'!B$14:B$58:'CEN. POR AREA'!C$14:C$58)","v":{"$error":"#NUM!"}}]
[38,{"$f":"IF('CEN. POR AREA'!BY$14<=1,\" \",LARGE('CEN. POR AREA'!BY$14:BY$58,38))","v":{"$error":"#NUM!"}},{"$f":"IF(B44<=1,\" \",MATCH(B44,'CEN. POR AREA'!BY$14:BY$58,0))","v":{"$error":"#NUM!"}},{"$f":"LOOKUP(C44,'CEN. POR AREA'!B$14:B$58:'CEN. POR AREA'!C$14:C$58)","v":{"$error":"#NUM!"}}]
[39,{"$f":"IF('CEN. POR AREA'!BY$14<=1,\" \",LARGE('CEN. POR AREA'!BY$14:BY$58,39))","v":{"$error":"#NUM!"}},{"$f":"IF(B45<=1,\" \",MATCH(B45,'CEN. POR AREA'!BY$14:BY$58,0))","v":{"$error":"#NUM!"}},{"$f":"LOOKUP(C45,'CEN. POR AREA'!B$14:B$58:'CEN. POR AREA'!C$14:C$58)","v":{"$error":"#NUM!"}}]
[40,{"$f":"IF('CEN. POR AREA'!BY$14<=1,\" \",LARGE('CEN. POR AREA'!BY$14:BY$58,40))","v":{"$error":"#NUM!"}},{"$f":"IF(B46<=1,\" \",MATCH(B46,'CEN. POR AREA'!BY$14:BY$58,0))","v":{"$error":"#NUM!"}},{"$f":"LOOKUP(C46,'CEN. POR AREA'!B$14:B$58:'CEN. POR AREA'!C$14:C$58)","v":{"$error":"#NUM!"}}]
[41,{"$f":"IF('CEN. POR AREA'!BY$14<=1,\" \",LARGE('CEN. POR AREA'!BY$14:BY$58,41))","v":{"$error":"#NUM!"}},{"$f":"IF(B47<=1,\" \",MATCH(B47,'CEN. POR AREA'!BY$14:BY$58,0))","v":{"$error":"#NUM!"}},{"$f":"LOOKUP(C47,'CEN. POR AREA'!B$14:B$58:'CEN. POR AREA'!C$14:C$58)","v":{"$error":"#NUM!"}}]
[42,{"$f":"IF('CEN. POR AREA'!BY$14<=1,\" \",LARGE('CEN. POR AREA'!BY$14:BY$58,42))","v":{"$error":"#NUM!"}},{"$f":"IF(B48<=1,\" \",MATCH(B48,'CEN. POR AREA'!BY$14:BY$58,0))","v":{"$error":"#NUM!"}},{"$f":"LOOKUP(C48,'CEN. POR AREA'!B$14:B$58:'CEN. POR AREA'!C$14:C$58)","v":{"$error":"#NUM!"}}]
[43,{"$f":"IF('CEN. POR AREA'!BY$14<=1,\" \",LARGE('CEN. POR AREA'!BY$14:BY$58,43))","v":{"$error":"#NUM!"}},{"$f":"IF(B49<=1,\" \",MATCH(B49,'CEN. POR AREA'!BY$14:BY$58,0))","v":{"$error":"#NUM!"}},{"$f":"LOOKUP(C49,'CEN. POR AREA'!B$14:B$58:'CEN. POR AREA'!C$14:C$58)","v":{"$error":"#NUM!"}}]
[44,{"$f":"IF('CEN. POR AREA'!BY$14<=1,\" \",LARGE('CEN. POR AREA'!BY$14:BY$58,44))","v":{"$error":"#NUM!"}},{"$f":"IF(B50<=1,\" \",MATCH(B50,'CEN. POR AREA'!BY$14:BY$58,0))","v":{"$error":"#NUM!"}},{"$f":"LOOKUP(C50,'CEN. POR AREA'!B$14:B$58:'CEN. POR AREA'!C$14:C$58)","v":{"$error":"#NUM!"}}]
[45,{"$f":"IF('CEN. POR AREA'!BY$14<=1,\" \",LARGE('CEN. POR AREA'!BY$14:BY$58,45))","v":{"$error":"#NUM!"}},{"$f":"IF(B51<=1,\" \",MATCH(B51,'CEN. POR AREA'!BY$14:BY$58,0))","v":{"$error":"#NUM!"}},{"$f":"LOOKUP(C51,'CEN. POR AREA'!B$14:B$58:'CEN. POR AREA'!C$14:C$58)","v":{"$error":"#NUM!"}}]

{"sheet":"EST_DEST","index":17,"n_rows":52,"n_cols":18,"rows_kept":52,"cut":false,"hidden":false,"merged":[[10,1,10,6],[10,7,10,12],[10,13,10,18],[2,2,2,17],[4,5,4,11],[4,12,5,13],[4,14,5,15],[5,5,5,10],[6,2,6,4],[6,5,6,15],[7,2,7,4],[7,5,7,13],[9,1,9,18],[11,1,11,6],[11,7,11,12],[11,13,11,18],[12,1,12,6],[12,7,12,12],[12,13,12,18],[17,4,17,5],[17,6,17,12],[17,13,17,15],[19,4,19,5],[19,6,19,12],[19,13,19,15],[20,4,20,5],[20,6,20,12],[20,13,20,15],[21,4,21,5],[21,6,21,12],[21,13,21,15],[22,4,22,5],[22,6,22,12],[22,13,22,15],[23,4,23,5],[23,6,23,12],[23,13,23,15],[27,13,27,15],[24,4,24,5],[24,6,24,12],[24,13,24,15],[25,4,25,5],[25,6,25,12],[25,13,25,15],[33,4,33,5],[33,6,33,12],[33,13,33,15],[30,4,30,5],[30,6,30,12],[30,13,30,15],[31,4,31,5],[31,6,31,12],[31,13,31,15],[4,1,4,4],[5,1,5,4],[32,4,32,5],[32,6,32,12],[32,13,32,15],[28,4,28,5],[28,6,28,12],[28,13,28,15],[29,4,29,5],[29,6,29,12],[29,13,29,15],[26,4,26,5],[26,6,26,12],[26,13,26,15],[27,4,27,5],[27,6,27,12],[39,2,39,7],[39,13,39,18],[40,2,40,7],[40,13,40,18],[43,17,43,18]]}
[]
[]
[null,null,"ESTUDIANTES DESTACADOS ANUAL"]
[]
[null,"Unidad Educativa:",null,null,null,{"$f":"IF((CARATULA!G20)=0,\"\",(CARATULA!G20))","v":""},null,null,null,null,null,null,"Gestión:",null,{"$f":"IF((CARATULA!G34)=0,\"\",(CARATULA!G34))","v":""}]
[null,"Año de Escolaridad:",null,null,null,{"$f":"CONCATENATE(CARATULA!G28,\" \",CARATULA!H28)","v":" "}]
[null,null,"Nivel:",null,null,{"$f":"IF((CARATULA!G26)=0,\"\",(CARATULA!G26))","v":""}]
[null,null,"Maestro/a:",null,null,{"$f":"IF((CARATULA!G24)=0,\"\",(CARATULA!G24))","v":""}]
[]
[null,"CUADRO DE HONOR"]
[null,"PRIMER LUGAR",null,null,null,null,null,"SEGUNDO LUGAR",null,null,null,null,null,"TERCER LUGAR"]
[null,{"$f":"IF((NOT_ALT!B7)=0,\"\",(NOT_ALT!B7))","v":{"$error":"#NUM!"}},null,null,null,null,null,{"$f":"IF((NOT_ALT!B8)=0,\"\",(NOT_ALT!B8))","v":{"$error":"#NUM!"}},null,null,null,null,null,{"$f":"IF((NOT_ALT!B9)=0,\"\",(NOT_ALT!B9))","v":{"$error":"#NUM!"}}]
[null,{"$f":"IF((NOT_ALT!D7)=0,\"\",(NOT_ALT!D7))","v":{"$error":"#NUM!"}},null,null,null,null,null,{"$f":"IF((NOT_ALT!D8)=0,\"\",(NOT_ALT!D8))","v":{"$error":"#NUM!"}},null,null,null,null,null,{"$f":"IF((NOT_ALT!D9)=0,\"\",(NOT_ALT!D9))","v":{"$error":"#NUM!"}}]
[]
[]
[]
[]
[null,null,null,null,"LUGAR",null,"APELLIDOS Y NOMBRES",null,null,null,null,null,null,"VALORACIÓN"]
[]
[null,null,null,null,"1er lugar",null,{"$f":"[5]NOT_ALT!D7","v":"URIONA ESCOBAR WILDER "},null,null,null,null,null,null,{"$f":"[5]NOT_ALT!B7","v":93.636399999999995}]
[null,null,null,null,"2do lugar",null,{"$f":"[5]NOT_ALT!D8","v":"RONCAL OVANDO KATHERIN ANDREA"},null,null,null,null,null,null,{"$f":"[5]NOT_ALT!B8","v":90.2727}]
[null,null,null,null,"3er lugar",null,{"$f":"[5]NOT_ALT!D9","v":"GARVIZU VEIZAGA JUAN JOSE"},null,null,null,null,null,null,{"$f":"[5]NOT_ALT!B9","v":83.454499999999996}]
[null,null,null,null,"4to lugar",null,{"$f":"IF((NOT_ALT!D10)=0,\"\",(NOT_ALT!D10))","v":{"$error":"#NUM!"}},null,null,null,null,null,null,{"$f":"IF((NOT_ALT!B10)=0,\"\",(NOT_ALT!B10))","v":{"$error":"#NUM!"}}]
[null,null,null,null,"5to lugar",null,{"$f":"IF((NOT_ALT!D11)=0,\"\",(NOT_ALT!D11))","v":{"$error":"#NUM!"}},null,null,null,null,null,null,{"$f":"IF((NOT_ALT!B11)=0,\"\",(NOT_ALT!B11))","v":{"$error":"#NUM!"}}]
[null,null,null,null,"6to lugar",null,{"$f":"IF((NOT_ALT!D12)=0,\"\",(NOT_ALT!D12))","v":{"$error":"#NUM!"}},null,null,null,null,null,null,{"$f":"IF((NOT_ALT!B12)=0,\"\",(NOT_ALT!B12))","v":{"$error":"#NUM!"}}]
[null,null,null,null,"7mo lugar",null,{"$f":"IF((NOT_ALT!D13)=0,\"\",(NOT_ALT!D13))","v":{"$error":"#NUM!"}},null,null,null,null,null,null,{"$f":"IF((NOT_ALT!B13)=0,\"\",(NOT_ALT!B13))","v":{"$error":"#NUM!"}}]
[null,null,null,null,"8vo lugar",null,{"$f":"IF((NOT_ALT!D14)=0,\"\",(NOT_ALT!D14))","v":{"$error":"#NUM!"}},null,null,null,null,null,null,{"$f":"IF((NOT_ALT!B14)=0,\"\",(NOT_ALT!B14))","v":{"$error":"#NUM!"}}]
[null,null,null,null,"9no lugar",null,{"$f":"IF((NOT_ALT!D15)=0,\"\",(NOT_ALT!D15))","v":{"$error":"#NUM!"}},null,null,null,null,null,null,{"$f":"IF((NOT_ALT!B15)=0,\"\",(NOT_ALT!B15))","v":{"$error":"#NUM!"}}]
[null,null,null,null,"10mo lugar",null,{"$f":"IF((NOT_ALT!D16)=0,\"\",(NOT_ALT!D16))","v":{"$error":"#NUM!"}},null,null,null,null,null,null,{"$f":"IF((NOT_ALT!B16)=0,\"\",(NOT_ALT!B16))","v":{"$error":"#NUM!"}}]
[null,null,null,null,"11mo lugar",null,{"$f":"IF((NOT_ALT!D17)=0,\"\",(NOT_ALT!D17))","v":{"$error":"#NUM!"}},null,null,null,null,null,null,{"$f":"IF((NOT_ALT!B17)=0,\"\",(NOT_ALT!B17))","v":{"$error":"#NUM!"}}]
[null,null,null,null,"12mo lugar",null,{"$f":"IF((NOT_ALT!D18)=0,\"\",(NOT_ALT!D18))","v":{"$error":"#NUM!"}},null,null,null,null,null,null,{"$f":"IF((NOT_ALT!B18)=0,\"\",(NOT_ALT!B18))","v":{"$error":"#NUM!"}}]
[null,null,null,null,"13er lugar",null,{"$f":"IF((NOT_ALT!D19)=0,\"\",(NOT_ALT!D19))","v":{"$error":"#NUM!"}},null,null,null,null,null,null,{"$f":"IF((NOT_ALT!B19)=0,\"\",(NOT_ALT!B19))","v":{"$error":"#NUM!"}}]
[null,null,null,null,"14to lugar",null,{"$f":"IF((NOT_ALT!D20)=0,\"\",(NOT_ALT!D20))","v":{"$error":"#NUM!"}},null,null,null,null,null,null,{"$f":"IF((NOT_ALT!B20)=0,\"\",(NOT_ALT!B20))","v":{"$error":"#NUM!"}}]
[null,null,null,null,"15to lugar",null,{"$f":"IF((NOT_ALT!D21)=0,\"\",(NOT_ALT!D21))","v":{"$error":"#NUM!"}},null,null,null,null,null,null,{"$f":"IF((NOT_ALT!B21)=0,\"\",(NOT_ALT!B21))","v":{"$error":"#NUM!"}}]
[]
[]
[]
[]
[]
[null,null,{"$f":"IF((CARATULA!G24)=0,\"\",([5]INICIO!AX12))","v":""},null,null,null,null,null,null,null,null,null,null,{"$f":"IF((CARATULA!G22)=0,\"\",(CARATULA!G22))","v":""}]
[null,null,{"$f":"IF(C40=\"\",\"\",(CARATULA!D24))","v":""},null,null,null,null,null,null,null,null,null,null,{"$f":"IF(N40=\"\",\"\",(CARATULA!D22))","v":""}]
[]
[]
[null,null,null,null,null,null,null,null,null,null,null,null,null,null,null,null,"Fecha de impresión:",{"$f":"TODAY()","v":"2018-06-13"}]
[]
[]
[]
[]
[null,"ESTUDIANTES DESTACADOS 1° BIMESTRE"]
[null,"ESTUDIANTES DESTACADOS HASTA DEL 1° AL 2° BIMESTRE"]
[null,"ESTUDIANTES DESTACADOS HASTA DEL 1° AL 3° BIMESTRE"]
[null,"ESTUDIANTES DESTACADOS ANUAL"]